{"text_format":"3","workbook":"xlsx","n_sheets":1,"sheets":["SIDINGULWAZI-R5"],"read":"whole","date_system":"1900"}

{"sheet":"SIDINGULWAZI-R5","index":0,"n_rows":2420,"n_cols":5,"rows_kept":2420,"merged":[[174,0,174,3],[254,0,254,3],[293,0,293,3],[386,0,386,3],[473,0,473,3],[501,0,501,3],[533,0,533,3],[676,0,676,3],[707,0,707,3],[724,0,724,3],[828,0,828,3],[856,0,856,3],[934,0,934,3],[972,0,972,3],[997,0,997,3],[1100,0,1100,3],[1123,0,1123,3],[1178,0,1178,3],[1365,0,1365,3],[1392,0,1392,3],[1436,0,1436,3],[1614,0,1614,3],[1699,0,1699,3],[1714,0,1714,3],[2261,0,2261,3],[2332,0,2332,3],[2376,0,2376,3],[2379,0,2379,4],[2380,0,2380,3],[2381,0,2381,3],[2382,0,2382,3],[2383,0,2383,3],[2384,0,2384,3],[2385,0,2385,3],[2386,0,2386,3],[2387,0,2387,3],[2388,0,2388,3],[2389,0,2389,3],[2390,0,2390,3],[2391,0,2391,3],[2392,0,2392,3],[2393,0,2393,3],[2394,0,2394,3],[2395,0,2395,3],[2396,0,2396,3],[2397,0,2397,3],[2398,0,2398,3],[2399,0,2399,3],[2400,0,2400,3],[2401,0,2401,3],[2402,0,2402,3],[2403,0,2403,3],[2404,0,2404,3],[2405,0,2405,3],[2406,0,2406,3],[2407,0,2407,3],[2408,0,2408,3],[2409,0,2409,3],[2410,0,2410,3],[2411,0,2411,3],[2412,0,2412,3],[2413,0,2413,3],[2414,0,2414,3],[2415,0,2415,3],[2416,0,2416,3],[2417,0,2417,3],[2418,0,2418,3],[2419,0,2419,3]]}
["SIDINGULWAZI-R5"]
["Upgrading & Renovations - Tender Bill of Quantities"]
[]
["DESCRIPTION","UNIT","QUANTITY","RATE","AMOUNT"]
["BILL NO. 1 "]
["PRELIMINARIES"]
[]
["CPAP WORK GROUP: 190 - Unless Otherwise Indicated"]
["All prices/rates to be Nett & Excluding Value Added Tax "]
["General"]
["i)\tThe agreement is to be the JBCC Series 2000 Principal Building Agreement, Edition 4.1 May 2005, and other contract documents that together form the contract between the employer and contractor"]
["ii)\tThe preliminaries are to be the JBCC Series 2000 Code 2103 Preliminaries prepared by the Joint Building Contracts Committee, May 2005 edition and shall be deemed to be incorporated herein "]
["iii)\tWhere standard clauses or alternatives are not entirely applicable to this contract such modifications, corrections or supplements as will apply are given under each relevant clause heading "]
["iv)\tTenderers are referred to the abovementioned documents for the full intent and meaning of each clause thereof (hereinafter referred to by heading and clause number only) for which such allowance must be made as may be considered necessary "]
["v) \tWhere any item is not relevant to this specific contract such item is marked N/A (signifying \"not applicable\") "]
["vi)\tIf Alternative A as set out in clause B10.3 hereinafter is to be used for the adjustment of the preliminaries each item priced is to be allocated to one or more of the three categories, where \"F\" denotes a fixed amount (amount not to be varied), \"V\" denotes an amount variable in proportion to value and \"T\" denotes an amount in proportion to time "]
["vii)\tAny reference to the words \"Tender\" or \"Tenderer\" herein and/or in any other documentation shall be construed to have the same meaning as the words \"Bib\" or \"Bidder\" "]
[]
[]
[]
["SECTION A: PRINCIPAL BUILDING AGREEMENT "]
["Definitions (A1) "]
["[1.1] Replace the following definitions in DEFINITIONS AND INTERPRETATIONS with the following wording:  AGREEMENT means the agreement arising from the signing of the Form of offer and Acceptance by the parties.  BILLS OF QUANTITIES means the document drawn up in accordance with the pricing instructions contained in the pricing data.  CONSTRUCTION PERIOD means the period commencing on the date that the agreement made in terms of the Offer and Acceptance comes into effect and ending on the date of practical completion.  CONTRACT DOCUMENTS means the agreement and all documents referenced therein. "]
["CONTRACT DRAWINGS means the drawings listed in the scope of works.  CONTRACT SUM means the total price in the Form of Offer and Acceptance.  SCHEDULE means the variables listed in the Contract Data. [1.6.4] Delete sub-clause 1.6.4"]
[]
["Definitions and interpretation (clause 1)  F:.......................... V:.......................... T:.......................... ","Item",1,null,{"$f":"+C26*D26","v":0}]
[]
["Objective and Preparation (A2 to A14) "]
[]
["Offer acceptance and performance (clause 2)F:.......................... V:.......................... T:.......................... ","Item",1,null,{"$f":"+C30*D30","v":0}]
["Documents (clause 3)[3.1] The Employer will not be required to provide apayment guarantee in terms of clause 3.1, clause 3.3 orany other clause.[3.5] Delete sub-clause 3.5 and replace with:The employer will arrange for the signing of the contractdocumentation.[3.6] Delete sub-clause 3.6F:.......................... V:.......................... T:.......................... ","Item",1,null,0]
["Design responsibility (clause 4)F:.......................... V:.......................... T:.......................... ","Item",1,null,0]
["Employer's agents (clause 5)  F:.......................... V:.......................... T:.......................... ","Item",1,null,0]
["Contractor's site representative (clause 6)F:.......................... V:.......................... T:.......................... ","Item",1,null,0]
["Compliance with laws and regulations (clause 7)Without limiting the generality of the provisions ofClause 7.0,the contractor's attention is drawn to theprovisions of theConstruction Regulations - 2003 issued in terms of theOccupational Health and Safety Act - 1993. It isspecifically stated that the employer shall prepare adocumented Health and Safety specification for theworks and that the employer shall ensure that thecontractor has made provision for the cost of health andsafety measures during the execution of the works. Thecontractor shall price opposite this item for thecompliance with the Act and the regulations and thereasonable provisions of the aforementioned health and safety specificationsF:.......................... V:.......................... T:.......................... ","Item",1,null,0]
["Works risk (clause 8)F:.......................... V:.......................... T:.......................... ","Item",1,null,0]
["Indemnities (clause 9)F:.......................... V:.......................... T:.......................... ","Item",1,null,0]
["General insurances (clause 10)F:.......................... V:.......................... T:.......................... ","Item",1,null,0]
["Special insurances (clause 11)F:.......................... V:.......................... T:.......................... ","Item",1,null,0]
["Effecting insurance (clause 12)F:.......................... V:.......................... T:.......................... ","Item",1,null,0]
["Assignment (clause 13)F:.......................... V:.......................... T:.......................... ","Item",1,null,0]
["Security (clause 14)F:.......................... V:.......................... T:.......................... ","Item",1,null,0]
[]
["Execution (A15-A23) "]
[]
["Preparation for and execution of the works (clause 15) The contractor must allow for the execution of the project in 4 Phases i.e. Phase 1, 2A, 2B, & 2C as set out in Drawing No. SD/00-1-06, SD/00-1-07, SD/00-1-08 & SD/00-1-09 F:.......................... V:.......................... T:..........................  ","Item",1,null,{"$f":"+C46*D46","v":0}]
["Site Access (clause 16)F:.......................... V:.......................... T:.......................... ","Item",1,null,0]
["Contract instructions (clause 17)F:.......................... V:.......................... T:.......................... ","Item",1,null,0]
["Setting out of the works (clause 18)The contractor shall notify the principal agent of anyencroachments of adjoining foundations, buildings,structures, pavements, boundaries, etc. exist in orderthat the necessary arrangements may be made for therectification of any such encroachments.F:.......................... V:.......................... T:.......................... ","Item",1,null,0]
["Temporary works and plant (clause 19)Sub-clause 19.1.1 - The contractor must provide, erect,maintain and remove at completion all requiredtemporary fencing, hoarding screen barriers, accessgates, etc.Sub-clause 19.1.2 - The contractor shall providemaintain and remove on completion a meeting room atleast 8,0 x 5,0m on plan and 2,6m high internally.F:.......................... V:.......................... T:.......................... ","Item",1,null,0]
["One main notice board shall be provided (clause 19.2)F:.......................... V:.......................... T:.......................... ","Item",1,null,0]
["Nominated subcontractors (clause 20)F:.......................... V:.......................... T:.......................... ","Item",1,null,0]
["Selected subcontractors (clause 21)F:.......................... V:.......................... T:.......................... ","Item",1,null,0]
["Employer's Direct Contractors (clause 22)F:.......................... V:.......................... T:.......................... ","Item",1,null,0]
["Contractor's Domestic Sub-Contractors (Clause 23)F:.......................... V:.......................... T:.......................... ","Item",1,null,0]
[]
["Completion (A24-A30) "]
["Practical completion (clause 24)F:.......................... V:.......................... T:.......................... ","Item",1,null,{"$f":"+C58*D58","v":0}]
["Works completion (clause 25)F:.......................... V:.......................... T:.......................... ","Item",1,null,0]
["Final completion (clause 26)F:.......................... V:.......................... T:.......................... ","Item",1,null,0]
["Latent defects liability period (clause 27)F:.......................... V:.......................... T:.......................... ","Item",1,null,0]
["Sectional completion (clause 28)F:.......................... V:.......................... T:.......................... ","Item",1,null,0]
["Revision of date of practical completion (clause 29)The removal and replacement of materials and/orworkmanship which do not conform to specification ordrawing shall not constitute grounds for the extension ofthe construction period nor for adjustment of thecontract value (Clause 29.3)F:.......................... V:.......................... T:.......................... ","Item",1,null,0]
["Penalty for non-completion (clause 30)F:.......................... V:.......................... T:.......................... ","Item",1,null,0]
[]
["Payment (A31 - A35) "]
["Interim payment to the contractor (clause 31)The inclusion of materials and goods stored off site inthe amount authorized for payment in terms of clause31.4 shall be at the sole discretion of the Principal Agentand such inclusion shall only be considered upon theprovision by the Contractor of an approved guaranteeissued by a registered commercial bank.Clause 31.6.5 is therefore not applicable.Materials and goods stored off site shall not be includedin the amount authorized for payment.Clause 31.6.5 shall be deemed to be deleted.Notwithstanding this or any other clause, materials andgoods stored off site shall not be included in the amountauthorized for payment.Clause 31.9 shall be altered to read as follows:\"The Employer shall pay to the Contractor the amountcertified within twenty one (21) calendar days of the dateof issue of the payment certificate.Payment shall be subject to the Contractor giving theEmployer a VAT invoice for the amount due within therelevant period for payment\"F:.......................... V:.......................... T:.......................... ","Item",1,null,{"$f":"+C67*D67","v":0}]
["Adjustment to the contract value (clause 32)Where the Contractor fails to select a choice at clause3.2.4 page 51 of the Principal Building AgreementContract Data - CE, the contractor will be deemed tohave selected NO.F:.......................... V:.......................... T:.......................... ","Item",1,null,0]
["Recovery of expense and loss (clause 33)F:.......................... V:.......................... T:.......................... ","Item",1,null,0]
["Final account and final payment (clause 34)F:.......................... V:.......................... T:.......................... ","Item",1,null,0]
["Payment to other parties (clause 35)F:.......................... V:.......................... T:.......................... ","Item",1,null,0]
[]
["Termination (A36-A39) "]
["Termination by Employer - Contractor's default (clause 36)F:.......................... V:.......................... T:.......................... ","Item",1,null,{"$f":"+C74*D74","v":0}]
["Termination by Employer - loss and damage (clause 37)F:.......................... V:.......................... T:.......................... ","Item",1,null,0]
["Termination by Contractor - Employer's default (clause 38)F:.......................... V:.......................... T:.......................... ","Item",1,null,0]
["Termination - cessation of the works (clause 39)F:.......................... V:.......................... T:.......................... ","Item",1,null,0]
[]
["Dispute (A40) "]
["Dispute Settlement (clause 40)F:.......................... V:.......................... T:.......................... ","Item",1,null,{"$f":"+C80*D80","v":0}]
["Contract Agreement (A41) "]
["Post tender provisions (Clause 41)The required post tender information shall be inserted inthe post tender provisions after consultation with thecontractor.F:.......................... V:.......................... T:.......................... ","Item",1,null,{"$f":"+C82*D82","v":0}]
["Contractual agreement (Clause 42)The required information of the contracting parties andthe amount of the accepted contract sum shall beinserted in the contractual agreement for the signatureof the agreement by the contracting parties.F:.......................... V:.......................... T:.......................... ","Item",1,null,0]
[]
["SECTION B:  PRELIMINARIES "]
[]
["Definitions and interpretation (B1) "]
["Definition and interpretation (B1.1 - B1.6.5)See also clause A1.0 of Section A for additional and / oramended definitions which shall apply equally to thissectionF:.......................... V:.......................... T:.......................... ","Item",1,null,{"$f":"+C88*D88","v":0}]
[]
["Documents (B2) "]
["Checking of documents (B2.1)F:.......................... V:.......................... T:.......................... ","Item",1,null,{"$f":"+C91*D91","v":0}]
["Provisional bills of quantities (B2.2)F:.......................... V:.......................... T:.......................... ","Item",1,null,0]
["Availability of construction documentation (B2.3)The budgetary allowances and selected or nominatedsub-contract amounts allocated for subsequent tradesincluded in this document will be separately procured,based on multiple procurement of selected or nominatedsub-contractors during the construction periodF:.......................... V:.......................... T:.......................... ","Item",1,null,0]
[]
["The site (B3) "]
["Previous work and adjoining properties"]
["Previous work-dimension accuracy (B3.1)F:.......................... V:.......................... T:.......................... ","Item",1,null,{"$f":"+C97*D97","v":0}]
["Previous work - defects (B3.2)F:.......................... V:.......................... T:.......................... ","Item",1,null,0]
["Inspection of adjoining properties (B3.3)F:.......................... V:.......................... T:.......................... ","Item",1,null,0]
[]
["Samples, Shop Drawings and Manufacturer's Instructions (B4) "]
["Samples of materials (B4.1)F:.......................... V:.......................... T:.......................... ","Item",1,null,{"$f":"+C102*D102","v":0}]
["Workmanship samples (B4.2)F:.......................... V:.......................... T:.......................... ","Item",1,null,0]
["Shop drawings (B4.3)F:.......................... V:.......................... T:.......................... ","Item",1,null,0]
["Compliance with Manufacturer's Instructions (B4.4)F:.......................... V:.......................... T:.......................... ","Item",1,null,0]
[]
["Deposits and Fees (B5) "]
["Deposits and fees (B5.1)F:.......................... V:.......................... T:.......................... ","Item",1,null,{"$f":"+C108*D108","v":0}]
[]
["Temporary services (B6) "]
["Water (B6.1)F:.......................... V:.......................... T:.......................... ","Item",1,null,{"$f":"+C111*D111","v":0}]
["Electricity (B6.2)F:.......................... V:.......................... T:.......................... ","Item",1,null,0]
["Telecommunication facilities (B6.3)F:.......................... V:.......................... T:.......................... ","Item",1,null,0]
["Ablution facilities (B6.5)F:.......................... V:.......................... T:.......................... ","Item",1,null,0]
[]
["Prime cost amounts (B7) "]
["Responsibility for prime cost amounts (B7.1)F:.......................... V:.......................... T:.......................... ","Item",1,null,{"$f":"+C117*D117","v":0}]
[]
["Attendance on N/S Subcontractors (B8) "]
["Special attendance (B8.1)F:.......................... V:.......................... T:.......................... ","Item",1,null,{"$f":"+C120*D120","v":0}]
["Commissioning - Fuel, water and power (B9.3)F:.......................... V:.......................... T:.......................... ","Item",1,null,0]
[]
["General (B9) "]
["Protection of works (B9.1)F:.......................... V:.......................... T:.......................... ","Item",1,null,{"$f":"+C124*D124","v":0}]
["Protection/isolation of existing/sectionally occupied works (B9.2)F:.......................... V:.......................... T:.......................... ","Item",1,null,0]
["Security of the Works (B9.3)F:.......................... V:.......................... T:.......................... ","Item",1,null,0]
["Notice before covering work (B9.4)F:.......................... V:.......................... T:.......................... ","Item",1,null,0]
["Disturbance (B9.5)F:.......................... V:.......................... T:.......................... ","Item",1,null,0]
["Environmental Disturbance (B9.6)F:.......................... V:.......................... T:.......................... ","Item",1,null,0]
["Works cleaning and clearing (B9.7)F:.......................... V:.......................... T:.......................... ","Item",1,null,0]
["Vermin (B9.8)F:.......................... V:.......................... T:.......................... ","Item",1,null,0]
["Overhand work (B9.9)F:.......................... V:.......................... T:.......................... ","Item",1,null,0]
[]
["Schedule of variables (B10) "]
["Information necessary for elections and completion of those clauses contained in the schedule which are necessary for tender purposes is given hereunder. Where no information is given it shall mean that either no details or specific requirements are available or that the clause is not relevant to this specific contract."]
["10.1 \tProvisional bills of quantities (B2.2)\tThe quantities are provisional: NO  F:.......................... V:.......................... T:..........................        \t"]
["10.2 \tAvailability of construction documentation (B2.3)\tConstruction documentation is complete: YESF:.......................... V:.......................... T:.......................... \t"]
["10.3 \tPrevious work - dimensional accuracy (B3.1)  "]
["10.4\tPrevious work - defects (B3.2)  \t"]
["10.5 \tInspection of adjoining properties (B3.3) \t"]
["10.6\tWater (B7.2)\t             Option A (by contractor) - YES             Option B (by employer - free of charge) - NO             Option C (by employer - metered) - NO"]
["10.7\tElectricity (B7.3)\t             Option A (by contractor) - YES             Option B (by employer - free of charge) - NO             Option C (by employer - metered) - NO"]
["10.8\tTelecommunications (B7.4)\t             Telephone - YES             Facsimile - YES             eMail - NO"]
["10.9\tAblution facilities (B7.5)\t             Option A (by contractor) - YES             Option B (by employer)) - NO          "]
["10.10\tProtection of the works (B9.1) "]
["10.11\tProtection of existing/sectionally occupied works (B9.2)                 Protection /isolation is required - YES"]
["10.12\tDisturbance (B9.5) "]
["10.13\tEnvironmental Disturbance (B9.6) "]
[]
["SECTION  C: SPECIFIC PRELIMINARIES"]
[]
["C1  CONTRACT DRAWINGSThe drawings issued with the tender documents do not comprise the complete set butserve as a guide only for tendering purposes and for indicating the scope of the work toenable the tenderer to acquaint himself with the nature and extent of the works and the manner in which they are to be executedShould any part of the drawings not be clearly intelligible to the tenderer he shall, before submitting his tender, obtain clarification in writing from the Principal AgentF:.......................... V:.......................... T:.......................... ","Item",1,null,{"$f":"+C152*D152","v":0}]
["C2  TRADE NAMESWherever a trade name for any product has been described in the Bills of Quantities document the Tenderer’s attention is drawn to the fact that any other product of equal quality may be used subject to the written approval of the Principal Agent being obtained prior to the closing date for submission of tendersIf prior written approval for an alternative product is not obtained, the product described shall be deemed to have been tendered for.F:.......................... V:.......................... T:.......................... ","Item",1,null,0]
["C3\tHIV/AIDS AWARENESSIt is required of the Contractor to thoroughly study the HIV/AIDS Specification (PW1544) of the Department that must be read together with and is deemed to beincorporated under this Section of the Bills of Quantities. Provision for pricing of HIV/AIDS awareness is made under items C3.1 to C3.5 hereafter and it is explicitlypointed out that all requirements of the aforementioned specification are deemed to be priced hereunder, as the said items represent the only method of measurement and no additional items or extras to the contract in this regard shall be entertained.The Contractor must take note that compliance with the HIV/AIDS Specification is compulsory. In the event of partial or total non-compliance, the Principal Agent,notwithstanding the provisions of Clause A 31 of Section A or any other clause to the contrary, reserves the right to delay issuing any progress payment certificate until the Contractor provides satisfactory proof of compliance. The Contractor shall not be entitled to any compensation of whatsoever nature, including interest, due to such delay of payment.F:.......................... V:.......................... T:.......................... "]
["C3.1\tAWARENESS CAMPAIGNSelection, appointment, briefing and making available of an Awareness Campaign including provision of all relevant services, all in accordance with the HIV/AIDSSpecification.F:.......................... V:.......................... T:.......................... ","Item",1,null,{"$f":"+C155*D155","v":0}]
["C3.2\tAWARENESS WORKSHOPS  Selection and appointment of a competent Service Provider approved by the Principal Agent, provision of a Service Provider Workshop Plan and a suitable venue, conducting of awareness workshops by means of traditional and/or modern multi-media techniques, including follow-up courses, making available all tuition material and performing assessment procedures, all in accordance with the HIV/AIDS Specification.   F:.......................... V:.......................... T:.......................... ","Item",1,null,0]
["C3.3\tPOSTERS, BOOKLETS, VIDEOS, ETC.Provision, displaying, maintaining and replacing when necessary of four plastic laminated posters, booklets and educational videos, etc. for the duration of theconstruction period, all in accordance with the HIV/AIDS Specification.F:.......................... V:.......................... T:.......................... ","Item",1,null,0]
[{"$nulls":4},0]
["C3.4\tACCESS TO CONDOMSProvision and maintenance of condom dispensers fixed in position, including male and female condoms, replenishing male and female condoms on a daily basis as required for the duration of the construction period, all in accordance with the HIV/AIDS Specification.F:.......................... V:.......................... T:.......................... ","Item",1,null,0]
[{"$nulls":4},0]
["C3.5\tMONITORINGMonitoring HIV/AIDS awareness of workers, providing the Principal Agent with access to information including making available all reports, thoroughly completed and reflecting the correct information, for the duration of the construction period and close out, all in accordance with the HIV/AIDS Specification.F:.......................... V:.......................... T:.......................... ","Item",1,null,0]
["C4   OCCUPATIONAL HEALTH AND SAFETY ACTThe contractor shall comply with all the requirements set out in the Construction Regulations, 2003 issued under the Occupational Health and Safety Act, 1993 (Act No 85 of 1993).It is required of the contractor to thoroughly study the Health and Safety Specification that must be read together with and is deemed to be incorporated under this Section of the Bills of QuantitiesThe Contractor must take note that compliance with the Occupational Health and Safety Act, Construction Regulations and Health and Safety Specification is compulsory.  In the event of partial or total non-compliance, the Principal Agent notwithstanding the provisions of clause A31.0 of Section A or any other clause to the contrary, reserves the right to delay issuing any progress payment certificate until the contractor provides satisfactory proof of compliance. The Contractor shall not be entitled to any compensation of whatsoever nature, including interest, due to such delay of payment.Provision for pricing of the Occupational Health and Safety Act, Construction Regulations and Health and Safety Specification is made under this clause and it is explicitly pointed out that all requirements of the aforementioned are deemed to be priced hereunder and no additional claims in this regard shall be entertained.F:.......................... V:.......................... T:.......................... ","Item",1,null,0]
["C5\tPROPRIETARY BRANDED PRODUCTSThe Contractor shall take delivery of, handle, store, use, apply and/or fix all proprietary branded products in strict accordance with the manufacturer's instruction after consultation with the manufacturer's authorised representative.F:.......................... V:.......................... T:.......................... ","Item",1,null,0]
["C6   GENERAL PREAMBLES  Should overtime be required to be worked for any reason whatsoever, the costs of such overtime are to be borne by the Contractor unless the Principal Agent has specifically authorised in writing, prior to the execution thereof, that costs for such overtime are to be borne by the Employer.  F:.......................... V:.......................... T:.......................... ","Item",1,null,0]
["C7  AS BUILT DRAWINGS  The position of construction breaks and the extent of individual concrete pours are to be recorded by the Contractor on the Structural Engineer's drawings and are to be submitted to the Principal Agent and the Structural Engineer for their records.  F:.......................... V:.......................... T:.......................... ","Item",1,null,0]
["C8   SITE INSTRUCTIONS  Site instructions issued on site are to be recorded in triplicate in a Site Instruction Book which is to be maintained on Site by the Contractor.  F:.......................... V:.......................... T:.......................... ","Item",1,null,0]
["C9  LABOUR RECORD  At the end of each week the contractor shall provide the principal agent with a written record, in schedule form, reflecting the number and description of tradesmen and labourers employed by him and all subcontractors on the works each day.  F:.......................... V:.......................... T:.......................... .","Item",1,null,0]
["C10  PLANT RECORD  At the end of each week the contractor shall provide the principal agent with a written record, in schedule form, reflecting the number, type and capacity of all plant, excluding hand tools, currently used on the works.  F:.......................... V:.......................... T:.......................... ","Item",1,null,0]
["C11  NON CESSION OF MONIES  The contractor shall not cede nor assign his rights or claims to any monies due or to become due under this contract.  F:.......................... V:.......................... T:.......................... ","Item",1,null,0]
["C12  WARANTEES FOR MATERIAL & WORKMANSHIP  Where warranties for materials and/or workmanship are called for, the contractor shall obtain a written warranty, addressed to the employer from the firm supplying the materials and/or doing the work and shall deliver the same to the principal agent on the certified completion of the contract. The warranty shall state that the workmanship, materials and installation are warranted for a specific period from the date of final completion and that any defects that may arise during the specified period shall be made good at the expense of the firm supplying the materials and/or doing the work upon written notice to do so. The warranty will not be enforced if the work is damaged by defects in construction of the building in which case the responsibility for replacement shall rest entirely with the Contractor.  F:.......................... V:.......................... T:.......................... ","Item",1,null,0]
["C13  CO-OPERATION OF CONTRACTOR FOR COST MANAGEMENT  It is specifically agreed that the contractor accepts the obligation of assisting the principal agent in implementing proper cost management. The contractor will be advised by the principal agent of all cost management procedures which will be implemented to ensure that the final building cost does not exceed the budget. The principal agent undertakes to make available to the contractor all budgetary allowances and cost assessments/reports to enable the proper procedure to be implemented and the contractor shall attended all cost plan review and management meetings. The contractor undertakes to extend these procedures as necessary to all sub-contractors.  F:.......................... V:.......................... T:.......................... ","Item",1,null,0]
["C14  TESTING OF WINDOWS FOR WATER TIGHTNESS  Each window shall be tested for water tightness with water sprayed on using adequate pressure. If in the opinion of the principal agent, the pressure proves to be inadequate, then the pressure shall be boosted by means of compressed air or other approved means.  F:.......................... V:.......................... T:.......................... ","Item",1,null,0]
["C15   TESTING OF FLAT ROOF WATERPROOFING FOR WATER TIGHTNESS  Flat roof waterproof areas shall be prepared with small sand dykes around them of a size and enclosing an area approved by the principal agent, flooded with water and kept \"ponded\" for at least 36 hours as a test to ensure the water tightness of the waterproofing and before any further construction work is carried out above the waterproofing. A written guarantee of 10 years must be provided for all waterproofing.  F:.......................... V:.......................... T:.......................... ","Item",1,null,0]
[]
["TOTAL FOR BILL NO. 1",{"$nulls":3},{"$f":"SUM(E5:E173)","v":0}]
["BILL NO. 2"]
["ALTERATIONS (PROVISIONAL)"]
[]
["CPAP WORK GROUP: 102 - Unless Otherwise Indicated"]
["MODEL PREAMBLES The tenderer is referred to the \"Model Preambles for  Trades 2008\" for supplementary and comprehensive expansion of descriptions, appropriate provision for which shall be deemed to have been included in all relevant rates"]
["Descriptions and Preambles Tenderers are referred to Trades to follow hereafter for preambles and full descriptions of materials and items not fully described in this Trade and which shall apply equally to work in this Trade, unless otherwise described."]
["Trade Names and Proprietary Products: All descriptions or clauses where trades names or proprietary products are specified, are deemed to include the phrase \"or other approved\"."]
[]
["SUPPLEMENTARY PREAMBLES"]
["Work within existing buildings All the work within this Bill shall be deemed to be within the existing buildings and rates are to include therefore. Rates Rates for breaking down and removal of any portion of the structures are to include for complete breaking down and removal of all finishes, attached joinery, reinforcement, brick reinforcement, conduits, pipes, lintels, etc. that may occur within the relevant structures."]
[]
["REMOVAL OF EXISTING WORK"]
[]
["Breaking down and removing brickwork, etc."]
["Half brick walls","m2",32,null,{"$f":"+C190*D190","v":0}]
["One brick walls","m2",19,null,0]
[]
["Taking out and removing doors, windows, etc. from brickwork to be demolished"]
["Timber single door and steel frame not exceeding 2,5m²","No",2,null,{"$f":"+C194*D194","v":0}]
[]
["Carefully taking out and removing doors, security gates, windows, etc. from brickwork to remain (building up or altering openings elsewhere)"]
["Steel window not exceeding 2,5m² ","No",1,null,{"$f":"+C197*D197","v":0}]
["Steel window not exceeding 2,5m² and set aside for re-use","No",1,null,0]
["Timber single door and steel frame not exceeding 2,5m² and prepare opening for new frame (elsewhere measured)","No",1,null,0]
["Single steel security gate not exceeding 2,5m² and set aside for re-use","No",1,null,0]
[]
["REMOVING EXISTING FLOOR FINISHES"]
[]
["Taking up and removing vinyl floor coverings, carpeting, etc. and preparing screed to receive new floor coverings"]
["Vinyl floor tiles inclusive of skirtings","m2",147,null,{"$f":"+C205*D205","v":0}]
[]
["REMOVING EXISTING SANITARY FITTINGS"]
[]
["Taking out and removing sanitary fittings complete with fixing brackets, associated piping and fittings, etc. and making good floor and wall finishes "]
["Stainless steel Sink","No",2,null,{"$f":"+C210*D210","v":0}]
[]
["BUILDING UP OPENINGS"]
[]
["Brickwork in NFP bricks in class II mortar in building up openings including cutting, toothing and bonding on sides as required"]
["One brick wall of two half brick skins bagged and sealed","m2",1,null,{"$f":"+C215*D215","v":0}]
[]
["MAKING GOOD OF FINISHES ETC"]
[]
["Making good Corobrik Topaz Satin FBX face brickwork"]
["Extra over ordinary brickwork for external face brickwork ","m2",1,null,{"$f":"+C220*D220","v":0}]
[]
["Making good plaster finishes"]
["One coat (1:5) internal cement plaster finished with a steel trowel on"]
["Walls in patches ","m2",1,null,{"$f":"+C224*D224","v":0}]
["Walls in narrow widths not exceeding 300mm wide ","m2",2,null,0]
[]
["Making good 25mm thick cement (1:4) screed"]
["(1:4) Cement mortar screeds finished with a steel trowel on concrete"]
["Floors in narrow widths not exceeding 300mm wide","m2",3,null,{"$f":"+C229*D229","v":0}]
[]
["BUILD IN EXISTING DOORS & WINDOWS "]
[]
["Build existing steel window size 889mm x 854mm previously removed and set aside for re-use, into new opening","No",1,null,{"$f":"+C233*D233","v":0}]
["Build existing steel security gate size 1026mm x 2188mm previously removed and set aside for re-use, into new opening","No",1,null,0]
[]
["CUT OPENINGS THROUGH EXISTING WALLS FOR BUILDING IN DOORS & WINDOWS "]
[]
["Carefully cutting and breaking out to form opening through one brick wall for window including installing facebrick lintel, sloping facebrick on edge cill one side and fibre cement cill other side and making good internal plaster on one side and facebrick reveals on other side (paintwork elsewhere measured) "]
["Form opening for window size 889 x 854mm high through one brick wall with Corobrik Topaz Satin FBX face brickwork one side and internal cement plaster other side, install 230mm wide facebrick-on-edge lintel pointed on all exposed faces and 200mm wide facebrick-on-edge sill set sloping to 25º and slightly projecting one side and 15mm x 150mm wide fibre cement sill bedded flat and slightly projecting other side (building in existing window elsewhere measured)","No",1,null,{"$f":"+C239*D239","v":0}]
[]
["Carefully cutting and breaking out to enlarge opening through one brick wall for new door frame where window removed including installing facebrick lintel and making good internal plaster on one side and facebrick on other side (paintwork elsewhere measured) "]
["Enlarge 889 x 854mm opening for building in of new door frame size 813 x 2032mm high through one brick wall with Corobrik Topaz Satin FBX face brickwork one side and internal cement plaster other side and install 230mm facebrick-on-edge lintel pointed on all exposed faces (new door frame elsewhere measured)","No",1,null,{"$f":"+C242*D242","v":0}]
[]
["SERVICING OF EXISTING WINDOWS"]
[]
["Service existing steel windows"]
["Overhaul, adjust and service to ensure proper operation of window unit not exceeding 2,5m2 including lubricating and easing handles, catches, sliding stays and swivel hinges where necessary ","No",23,null,{"$f":"+C247*D247","v":0}]
["Extra on servicing existing steel window sash for supply and fitting new catch","No",4,null,0]
["Extra on servicing existing steel window sash for supply and fitting new swivel hinge","No",4,null,0]
[]
["Carefully take out and remove"]
["Glass from steel windows including cleaning out rebates and preparing for new glass (elsewhere measured) ","m2",1,null,{"$f":"+C252*D252","v":0}]
["Rake out glazing putty, prepare rebates and re-putty.","m",10,null,0]
[]
["TOTAL FOR BILL NO. 2",{"$nulls":3},{"$f":"SUM(E190:E254)","v":0}]
["BILL NO. 3"]
["EARTHWORKS (PROVISIONAL)"]
[]
["CPAP WORK GROUP: 104 - Unless Otherwise Indicated"]
["MODEL PREAMBLES The tenderer is referred to the \"Model Preambles for  Trades 2008\" for supplementary and comprehensive expansion of descriptions, appropriate provision for which shall be deemed to have been included in all relevant rates"]
["Descriptions and Preambles Tenderers are referred to Trades to follow hereafter for preambles and full descriptions of materials and items not fully described in this Trade and which shall apply equally to work in this Trade, unless otherwise described."]
["Trade Names and Proprietary Products: All descriptions or clauses where trades names or proprietary products are specified, are deemed to include the phrase \"or other approved\"."]
[]
["SUPPLEMENTARY PREAMBLES"]
["Nature of ground The nature of the ground is assumed to be sandy, therefore  \"soft excavation\",  but possibly interspersed with \"intermediate material\" or \"hard rock\"."]
["Carting away Descriptions of carting away of excavated material shall be deemed to include loading excavated material onto trucks directly from the excavations or, alternatively, from stock piles situated on the building site"]
["Filling Before any material is used for filling the full test results of such materials must be submitted to the Employer for his approval and prices are to include therefore. All filling material to be supplied by the Contractor , shall be found by him and shall be his sole responsibility."]
[]
["EXCAVATION, FILLING, ETC"]
[]
["Excavation not exceeding 2 metres deep below natural or reduced ground level in G5 material previously compacted to 95% MOD AASHTO and set aside for reuse"]
["Ground beams","m3",442,null,{"$f":"+C272*D272","v":0}]
[]
["Risk of collapse of excavations"]
["Allow for risk of collapse to sides of trench and hole excavations not exceeding 1,5 m deep","m2",3172,null,{"$f":"+C275*D275","v":0}]
[]
["Extra over excavation in soft material for trenches and holes for excavation in"]
["Intermediate excavation","m3",40,null,{"$f":"+C278*D278","v":0}]
["Hard rock excavation","m3",40,null,0]
[]
["Keeping excavations free of water"]
["Keeping excavations free of all water other than subterranean water ","Item",1,null,{"$f":"+C282*D282","v":0}]
[]
["Filling, etc"]
[]
["Approved G5 natural gravel filling previously excavated and set aside for reuse in layers not exceeding 150mm and compacted to 95% MOD AASHTO density"]
["G5 Natural gravel in backfilling to raft foundation excavations","m3",114,null,{"$f":"+C287*D287","v":0}]
[]
["SOIL POISONING"]
[]
["Apply Chlorodane or Aldrin soil insecticides in strict accordance with manufacturers instructions and SABS 1165:"]
["Termite poisoning of ground surfaces  under solid floors ","m2",3991,null,{"$f":"+C292*D292","v":0}]
[]
["TOTAL FOR BILL NO. 3",{"$nulls":3},{"$f":"SUM(E271:E293)","v":0}]
["BILL NO. 4"]
["CONCRETE, FORMWORK & REINFORCEMENT"]
[]
["CPAP WORK GROUP: As Indicated"]
["MODEL PREAMBLES The tenderer is referred to the \"Model Preambles for  Trades 2008\" for supplementary and comprehensive expansion of descriptions, appropriate provision for which shall be deemed to have been included in all relevant rates "]
["Descriptions and Preambles Tenderers are referred to Trades to follow hereafter for preambles and full descriptions of materials and items not fully described in this Trade and which shall apply equally to work in this Trade, unless otherwise described."]
["Trade Names and Proprietary Products: All descriptions or clauses where trades names or proprietary products are specified, are deemed to include the phrase \"or other approved\"."]
[]
["SUPPLEMENTARY PREAMBLES"]
["In situ concrete All concrete work will be done in accordance with the applicable departmental specifications and SABS 1200G and where any discrepancies occur the former shall take preference"]
["Cement Cement must be Portland cement in accordance with SABS 471, unless otherwise described"]
[]
["Formwork"]
["The vertical strutting shall be carried down to such construction as is sufficiently strong to afford the required support without damage and shall remain in position until the newly constructed work is able to support itself."]
["Formwork to sides of bases, pile caps, ground beams, etc will only be measured where it is prescribed by the engineer for design reasons.  Formwork necessitated by irregularity or collapse of excavated faces will not be measured and the cost thereof shall be deemed to be included in the allowance for taking the risk of collapse of the sides of the excavations, provision for which is made in \"Earthworks\""]
["Formwork must be considered to be propped up to heights not exceeding 3,5m high unless otherwise stated"]
["25 x 25mm Chamfered corners to all exposed edges of concrete walkway slabs"]
[]
["REINFORCED CONCRETE [CPAP WG: 110]"]
[]
["30MPa/19mm Concrete "]
["Raft foundations comprising slabs and ground beams","m3",935,null,{"$f":"+C316*D316","v":0}]
["Columns","m3",4,null,0]
["Infill in hollow brick piers","m3",6,null,0]
["Isolated beams","m3",4,null,0]
["Slabs and beams","m3",353,null,0]
["Cavity wall in foundations","m3",19,null,0]
[]
["40MPa/19mm Concrete "]
["Stairs, landings and beams","m3",12,null,{"$f":"+C324*D324","v":0}]
["Ramps and landings","m3",33,null,0]
[]
["TEST CUBES"]
["Allow for preparing set of three 152 x 152 x 152mm concrete test cubes cast from batches of concrete required for the contract as specified, made, stored, cured and tested in accordance with SABS methods 861 and 863 including use of approved cube moulds, transporting, paying all charges and submitting reports to Employer (Provisional)","No",25,null,{"$f":"+C328*D328","v":0}]
[]
["CONCRETE SUNDRIES"]
[]
["Finishing top surfaces of concrete"]
["Power float finish to surface beds, slabs, etc","m2",4178,null,{"$f":"+C333*D333","v":0}]
["Wood float and broom finish to surface beds, slabs, etc","m2",1141,null,{"$f":"+C334*D334","v":0}]
["Power float non-slip finish to surface beds, slabs, etc","m2",165,null,0]
[]
["FORMWORK [CPAP WG: 111] "]
[]
["Smooth formwork "]
["Edges, risers, ends, etc. not exceeding 300mm high or wide","m",535,null,{"$f":"+C340*D340","v":0}]
["Raking and stepped outer edge of stairs not exceeding 300mm high or wide","m",42,null,0]
["Raking outer edge of ramps and landings not exceeding 300mm high or wide","m",221,null,0]
["Sides of ground beams","m2",1130,null,0]
["Sides of columns","m2",61,null,0]
["Sides and soffits of beams","m2",154,null,0]
["Sides and soffits of isolated beams propped up exceeding 5.0m and not exceeding 6.5m ","m2",44,null,0]
["Soffit of slabs","m2",1311,null,0]
["Raking soffits of stairs","m2",31,null,0]
["Soffits of landings","m2",26,null,0]
["Soffits of ramps and landings","m2",165,null,0]
[]
["Boxing in smooth formwork to form"]
["25 x 25mm Chamfer along top edge of ground beam/slab","m",428,null,{"$f":"+C353*D353","v":0}]
["115 x 85mm Rebate along top edge of slab","m",189,null,0]
[]
["Boxing out smooth formwork to form"]
["150mm Wide x 170mm High horizontal projection to side along bottom edge of ground beam to form toe","m",535,null,{"$f":"+C357*D357","v":0}]
[]
["MOVEMENT JOINTS, ETC (PROVISIONAL)"]
[]
["Two layers 375µm Brikgrip DPC embossed black polyethylene sheeting in slip joints between horizontal concrete and brick surfaces including cement mortar bed "]
["Horizontal slip joint not exceeding 300mm wide","m2",25,null,{"$f":"+C362*D362","v":0}]
["Horizontal slip joint exceeding 300mm wide","m2",25,null,0]
[]
["Movement joints with 15mm expanded polyurethane between vertical concrete surfaces "]
["15mm Expanded polyurethane in joints not exceeding 300mm high","m",28,null,{"$f":"+C366*D366","v":0}]
[]
["Reaming out Expansion Joints "]
["Ream out top edge of concrete ground beam to form 10mm wide x 26mm deep horizontal recess for sealant (sealant elsewhere measured) [JOINT TYPE A]","m",172,null,{"$f":"+C369*D369","v":0}]
[]
["STEEL REINFORCEMENT (PROVISIONAL) [CPAP WG: 114]"]
[]
["Mild /high tensile steel reinforcement to structural concrete work"]
["Rods of various diameters in raft foundations","t",34.73,null,{"$f":"+C374*D374","v":0}]
["Rods of various diameters in slabs and beams","t",31.38,null,0]
["Rods of various diameters in column bases","t",0.12,null,0]
["Rods of various diameters in stairs and landings","t",0.12,null,0]
[]
["Steel reinforcement bar sundries"]
["R20 dowel bar 700mm long  with one end de-bonded by lubricating with grease and inserted into and including ± Ø24mm ID x 70mm long Expansion Cap/Sleeve, all as indicated on Engineer's Drawing R20-002-00-713 (JOINT TYPE A) ","No",575,null,{"$f":"+C380*D380","v":0}]
["Bitumen or Lime Wash bond breaker on faces of concrete","m2",100,null,0]
[]
["Mesh reinforcement in concrete surface beds, slabs, etc."]
["Mesh Ref.193 in raft foundations","m2",7992,null,{"$f":"+C384*D384","v":0}]
["Mesh Ref.193 in cavity walls","m2",171,null,0]
[]
["TOTAL FOR BILL NO. 4",{"$nulls":3},{"$f":"SUM(E315:E386)","v":0}]
["BILL NO. 5"]
["MASONRY"]
[]
["CPAP WORK GROUP: 116 - Unless Otherwise Indicated"]
["MODEL PREAMBLES The tenderer is referred to the \"Model Preambles for  Trades 2008\" for supplementary and comprehensive expansion of descriptions, appropriate provision for which shall be deemed to have been included in all relevant rates"]
["Descriptions and Preambles Tenderers are referred to Trades to follow hereafter for preambles and full descriptions of materials and items not fully described in this Trade and which shall apply equally to work in this Trade, unless otherwise described."]
["Trade Names and Proprietary Products: All descriptions or clauses where trades names or proprietary products are specified, are deemed to include the phrase \"or other approved\"."]
[]
["SUPPLEMENTARY PREAMBLES"]
["Sizes in descriptions Where sizes in descriptions are given in brick units, \"one brick\" shall represent the length and \"half brick\" the width of a brick Brick reinforcement Brick reinforcement shall be lapped not less than 300mm at end joints and for a length equal to the width of the widest reinforcement at intersections"]
[]
["BRICKWORK"]
[]
["Brickwork of NFP bricks (7 MPa nominal compressive strength) in accordance with SANS 227:2007 in Class II mortar"]
["Half brick wall in lining to concrete","m2",284,null,{"$f":"+C402*D402","v":0}]
["Half brick wall in lining to brickwork","m2",357,null,0]
["Half brick wall in hollow brick pier size 1730 x 345mm exceeding 5.0m and not exceeding 6.5m high","m2",146,null,0]
["Half brick wall in beamfilling","m2",685,null,0]
["One brick wall in beamfilling","m2",1,null,0]
["Half brick wall in superstructure","m2",566,null,0]
["One brick wall in superstructure","m2",610,null,0]
["One brick wall in fire walls above wall plate level","m2",165,null,0]
["One brick wall of two half brick skins bagged and sealed","m2",3579,null,0]
["Mass brickwork in rectangular piers","m3",21,null,0]
["330mm Cavity wall of two half brick skins with Ref.193 mesh and cavity filled with concrete as the work proceeds (mesh and concrete elsewhere measured)","m2",171,null,0]
["Two brick wall of two one brick skins with 15mm expanded polyurethane between skins (polyurethane elsewhere) ","m2",258,null,0]
[]
["BRICKWORK SUNDRIES"]
[]
["Galvanised high tensile steel welded mesh brick reinforcement consisting of two 3.55mm main wires and 2.80mm cross wires electrically welded at 300mm centres"]
["75mm Wide reinforcement built in horizontally","m",3792,null,{"$f":"+C418*D418","v":0}]
["150mm Wide reinforcement built in horizontally","m",22325,null,0]
[]
["Steel bar reinforcement"]
["Y6 steel reinforcement bars built in horizontally in joints between brick courses (Provisional)","m",2607,null,{"$f":"+C422*D422","v":0}]
[]
["Galvanised hoop iron cramps, ties, etc:"]
["30 x 1.6mm Roof tie 1,5m long with one end built 6 courses into brickwork and other end wrapped around and nailed to timber rafters.","No",1040,null,{"$f":"+C425*D425","v":0}]
["30 x 1.6mm Concertina wall tie 600mm long with one end shot-nailed to existing brickwork and other end built 300mm into new brickwork ","No",66,null,0]
[]
["Prestressed fabricated lintels"]
["100 x 70 mm Pre-stressed concrete lintels built into brickwork","m",152,null,{"$f":"+C429*D429","v":0}]
[]
["Turning Pieces"]
["Turning piece to flat arch 230mm wide on soffit, including all wedging and propping.","m",797,null,{"$f":"+C432*D432","v":0}]
[]
["Movement joints with 15mm expanded polyurethane between vertical brick surfaces"]
["15mm Joints in superstructure not exceeding 300mm wide","m",88,null,{"$f":"+C435*D435","v":0}]
["15mm Joints in superstructure ","m2",258,null,0]
[]
["FACE BRICKWORK"]
[]
["Face brickwork in Corobrik Topaz Satin FBX face bricks in stretcher bond and pointed with square recessed horizontal and vertical joints with grey mortar"]
["Half brick wall faced both sides","m2",5,null,{"$f":"+C441*D441","v":0}]
["Extra over ordinary brickwork for face brickwork in beamfilling","m2",850,null,0]
["Extra over ordinary brickwork for face brickwork in piers","m2",315,null,0]
["Extra over ordinary brickwork for external face brickwork","m2",4301,null,0]
["Extra over ordinary brickwork for internal face brickwork","m2",869,null,0]
[]
["Header course copings, sills, etc. of Corobrik Topaz Satin FBX face bricks pointed with recessed joints on all exposed faces with grey mortar"]
["230mm Wide brick-on-edge lintel pointed on both ends and 230mm soffit","m",852,null,{"$f":"+C448*D448","v":0}]
["200mm Wide brick-on-edge sill set sloping to 25° and slightly projecting","m",440,null,0]
[]
["Face brickwork in Corobrik Black Travertine FBX face bricks in stretcher bond and pointed with square recessed horizontal and vertical joints with charcoal mortar "]
["Extra over ordinary brickwork for face brickwork in piers","m2",318,null,{"$f":"+C452*D452","v":0}]
["Extra over ordinary brickwork for external face brickwork","m2",357,null,0]
[]
["Header course copings, sills, etc. of Corobrik Black Traverine FBX face bricks pointed with recessed joints on all exposed faces with charcoal mortar"]
["115mm Wide cut brick-on-edge roller course pointed on one end and 115mm soffit","m",247,null,{"$f":"+C456*D456","v":0}]
[]
["Face brickwork in Corobrik SilverGrey Satin FBX face bricks in stretcher bond and pointed with square recessed horizontal and vertical joints with grey mortar"]
["Extra over ordinary brickwork for external face brickwork","m2",224,null,{"$f":"+C459*D459","v":0}]
[]
["Face brickwork sundries"]
["Fair raking cutting to face brickwork","m",62,null,{"$f":"+C462*D462","v":0}]
[]
["NUTEC FIBRE-CEMENT WINDOW SILLS"]
[]
["Nutec or similar approved Fibre Cement Windowsills in single lengths, complete with Lugs"]
["15mm Thick x 150mm wide sill bedded flat and slightly projecting in Class II mortar","m",440,null,{"$f":"+C467*D467","v":0}]
[]
["DECORATIVE SCREEN WALLS AND GRILLES"]
[]
["Screen walls of type L.G. Green (Type GB112) or similar approved precast concrete grille blocks size 295x295x115mm finished smooth on exposed surfaces, in class II mortar pointed with flush joints "]
["Walls flush pointed on both sides","m2",111,null,{"$f":"+C472*D472","v":0}]
[]
["TOTAL FOR BILL NO. 5",{"$nulls":3},{"$f":"SUM(E400:E473)","v":0}]
["BILL NO. 6"]
["WATERPROOFING"]
[]
["CPAP WORK GROUP: 120 - Unless Otherwise Indicated"]
["MODEL PREAMBLES The tenderer is referred to the \"Model Preambles for  Trades 2008\" for supplementary and comprehensive expansion of descriptions, appropriate provision for which shall be deemed to have been included in all relevant rates"]
["Descriptions and Preambles Tenderers are referred to Trades to follow hereafter for preambles and full descriptions of materials and items not fully described in this Trade and which shall apply equally to work in this Trade, unless otherwise described."]
["Trade Names and Proprietary Products: All descriptions or clauses where trades names or proprietary products are specified, are deemed to include the phrase \"or other approved\"."]
[]
["DAMPPROOFING OF WALLS AND FLOORS"]
[]
["375µm Brikgrip DPC embossed black polyethylene sheeting"]
["One layer to walls, under sills, etc.","m2",818,null,{"$f":"+C486*D486","v":0}]
[]
["250µm Gunplas USB Green polyethylene waterproof sheeting, with minimum 200mm overlaps at intersections, sealed at laps with Gunplas pressure sensitive tape"]
["One layer damp proofing under raft foundation","m2",7163,null,{"$f":"+C489*D489","v":0}]
[]
["JOINT SEALANTS ETC"]
[]
["Sikaflex 11FC One-Component Polyurethane Elastic or similar approved joint sealant in "]
["15 x 20mm In expansion joints between vertical concrete surfaces","m",28,null,{"$f":"+C494*D494","v":0}]
[]
["Approved Field Moulded sealing compound including Ø10mm bond breaking cord, bond breaker, primer, etc as per Engineer's Drawing R20-002-00-713 (JOINT TYPE A) "]
["12 x 23mm In horizontal expansion joints in floors ","m",172,null,{"$f":"+C497*D497","v":0}]
[]
["Approved Field Moulded sealing compound including raking out 10mm bitumen impregnated soft board "]
["15 x 10mm In vertical expansion joints in walls","m",181,null,{"$f":"+C500*D500","v":0}]
[]
["TOTAL FOR BILL NO. 6",{"$nulls":3},{"$f":"SUM(E484:E501)","v":0}]
["BILL NO. 7"]
["ROOF COVERINGS"]
[]
["CPAP WORK GROUP: 124 - Unless Otherwise Indicated"]
["MODEL PREAMBLES The tenderer is referred to the \"Model Preambles for  Trades 2008\" for supplementary and comprehensive expansion of descriptions, appropriate provision for which shall be deemed to have been included in all relevant rates"]
["Descriptions and Preambles Tenderers are referred to Trades to follow hereafter for preambles and full descriptions of materials and items not fully described in this Trade and which shall apply equally to work in this Trade, unless otherwise described."]
["Trade Names and Proprietary Products: All descriptions or clauses where trades names or proprietary products are specified, are deemed to include the phrase \"or other approved\"."]
[]
["PROFILED METAL ROOF SHEETING AND ACCESSORIES"]
[]
["Roof sheeting shall be double-interlocking concealed-fix Klip-Lok 406 profile roll-formed in continuous lengths from certified 0.58mm Galvanized Z200 steel with a Chromadek colour coated finish to one side and a standard Pebble Grey backing coat to other side, fixed to timber purlins using D1 Starting clips, D2 Duplex clips, D3 Finishing clips and class 4 Fasteners in strict accordance with the Manufacturer's specification by a Global Roofing Solutions approved Contractor (all bending of troughs to form dams and drips to be included in the rate for the sheeting)"]
["Roof covering with pitch not exceeding 25° ","m2",4627,null,{"$f":"+C514*D514","v":0}]
[]
["Side cladding sheeting shall be Corrugated 10.5 profile roll-formed in continuous lengths from certified 0.58mm Galvanized Z200 steel with a Chromadek colour coated finish to one side and a standard Pebble Grey backing coat to other side, fixed to timber purlins using No.14 Top speed Hex Head screws 50mm long and shall incorporate 19mm bonded washers in strict accordance with the Manufacturer's specification by a Global Roofing Solutions approved Contractor "]
["Vertical apex cladding ","m2",328,null,{"$f":"+C517*D517","v":0}]
[]
["Flashings shall be manufactured from certified 0.58mm Galvanized Z200 steel with a Chromadek colour coated finish to one side and a standard Pebble Grey backing coat to other side and fixed by way of S10 brackets , all in strict accordance with the Manufacturer's specification using the appropriate tools available from Global Roofing Solutions "]
["Ridge cap 462mm girth 1 times bent","m",10,null,{"$f":"+C520*D520","v":0}]
["Apron flashing 462mm girth 3 times bent","m",291,null,0]
["Hip cap 462mm girth 1 times bent","m",212,null,0]
["Headwall flashing 375mm girth 2 times bent ","m",364,null,0]
["Sidewall flashing 408mm girth 2 times bent ","m",11,null,0]
["Counter flashing 185mm girth 2 times bent ","m",375,null,0]
["Serrated broad flute closures to match profile of roof sheeting","m",1099,null,0]
["Cross-linked, closed cell Polyethylene broad flute closures to match profile of roof sheeting","m",1099,null,0]
[]
["ROOF INSULATION"]
[]
["Polypropylene laminate roofing underlayment"]
["2-Ply 400µm Polypropylene laminate roofing underlayment ","m2",4579,null,{"$f":"+C532*D532","v":0}]
[]
["TOTAL FOR BILL NO. 7",{"$nulls":3},{"$f":"SUM(E513:E533)","v":0}]
["BILL NO. 8"]
["CARPENTRY & JOINERY"]
[]
["CPAP WORK GROUP: 126 - Unless Otherwise Indicated"]
["MODEL PREAMBLES The tenderer is referred to the \"Model Preambles for  Trades 2008\" for supplementary and comprehensive expansion of descriptions, appropriate provision for which shall be deemed to have been included in all relevant rates"]
["Descriptions and Preambles Tenderers are referred to Trades to follow hereafter for preambles and full descriptions of materials and items not fully described in this Trade and which shall apply equally to work in this Trade, unless otherwise described."]
["Trade Names and Proprietary Products: All descriptions or clauses where trades names or proprietary products are specified, are deemed to include the phrase \"or other approved\"."]
[]
["SUPPLEMENTARY PREAMBLES"]
["Timber door frames Rates for timber door frames shall be deemed inclusive of approved mild steel dowels into bottoms of frames and into concrete, and galvanized hoop iron cramps to sides of frames at 400mm centres and build into brickwork"]
["Joinery Descriptions of tops shall be deemed inclusive of securing with approved metal clips or hardwood rebated buttons at 300mm centres"]
[]
["PREFABRICATED ROOF TRUSSES, ETC."]
[]
["The following in plate nailed timber roof truss construction with a combination of 5° and 15° pitch and suitable for steel roof sheeting from an approved supplier, delivered to site, hoisted and fixed in position on and including timber wall plates, complete with all required purlins, bracing, hurricane clips, metalwork fixings and Engineer's Certificates"]
["Trusses for hipped roof to Double Storey BUILDING A (overall roof area ±495m² measured on flat) with a combination of 5° & 15° pitches, complete as per Architectural Drawings No.00-1-02 & -05","No",1,null,{"$f":"+C550*D550","v":0}]
["Trusses for hipped roof to Double Storey BUILDING B (overall roof area ±420m² measured on flat) with a combination of 5° & 15° pitches, complete as per Architectural Drawings No.00-2-02 & -05 ","No",1,null,0]
["Trusses for hipped roof to Double Storey BUILDING C (overall roof area ±120m² measured on flat) with a  5° pitch, complete as per Architectural Drawings No.00-3-01 & -02 ","No",1,null,0]
["Trusses for hipped roof to Double Storey BUILDING D (overall roof area ±416m² measured on flat) with a combination of 5° & 15° pitches, complete as per Architectural Drawings No.00-4-02 & -05 ","No",2,null,0]
["Trusses for hipped roof to Single Storey BUILDING E (overall roof area ±593m² measured on flat) with a combination of 5° & 15° pitches, complete as per Architectural Drawings No.00-5-01 & -04 ","No",1,null,0]
["Trusses for hipped roof to Single Storey BUILDING F (overall roof area ±244m² measured on flat) with a combination of 5° & 15° pitches, complete as per Architectural Drawings No.00-6-01 & -02 ","No",1,null,0]
["Trusses for hipped roof to Single Storey BUILDING G (overall roof area ±323m² measured on flat) with a combination of 5° & 15° pitches, complete as per Architectural Drawings No.00-7-01 & -02 ","No",1,null,0]
["Trusses for hipped roof to Single Storey BUILDING H (overall roof area ±244m² measured on flat) with a combination of 5° & 15° pitches, complete as per Architectural Drawings No.00-8-01 & -02 ","No",1,null,0]
["Trusses for gable roof to Single Storey BUILDING J (overall roof area ±68m² measured on flat) with a 5° pitch, complete as per Architectural Drawings No.00-9-01 & -02 ","No",1,null,0]
["Trusses for hipped roof to Single Storey BUILDING K (overall roof area ±362m² measured on flat) with a combination of 5° & 15° pitches, complete as per Architectural Drawings No.00-10-01 & -02 ","No",1,null,0]
["Trusses for hipped roof to Single Storey BUILDING L (overall roof area ±285m² measured on flat) with a combination of 5° & 15° pitches, complete as per Architectural Drawings No.00-11-01 & -02 ","No",1,null,0]
["Trusses for hipped roof to Single Storey BUILDING M (overall roof area ±361m² measured on flat) with a combination of 5° & 15° pitches, complete as per Architectural Drawings No.00-12-01 & -02 ","No",1,null,0]
["Rafters for mono-pitch flat roof to Single Storey BUILDING N (overall roof area ±72m² measured on flat) with a 5° pitch, complete as per Architectural Drawings No.00-13-01 ","No",1,null,0]
[]
["ROOF CONSTRUCTION"]
[]
["Grade S5 Treated Sawn South African Pine"]
["50 x 50mm Fascia stiffening purlins","m",3464,null,{"$f":"+C567*D567","v":0}]
["50 x 76mm Barge board trimmer battens","m",7,null,0]
["50 x 76mm Gable trims","m",7,null,0]
[]
["ROOF SUNDRIES"]
["Two coats Carbolinium on sawn roof timbers","m2",1969,null,{"$f":"+C572*D572","v":0}]
[]
["EAVES, VERGES, ETC."]
[]
["Approved Fibre Cement Fascias & Barge Boards"]
[]
["Fibre cement fascia boards, medium density plain, fittings and fixing accessories fixed to timber supporting structure with Ø4mm x 50mm long galvanised mild steel counter sunk screws or to steel supporting structure with Ø6mm x 30mm long galvanised mild steel bolts, nuts and washers (Supporting structure measured elsewhere), inclusive of plastic H-profile fascia joiners "]
["12 x 225mm Fascia boards fixed to timber supporting structure with 4mm diameter x 50mm long galvanised mild steel counter sunk screws","m",2808,null,{"$f":"+C579*D579","v":0}]
[]
["Fibre cement barge boards, either socketed or plain, fittings and fixing accessories fixed to timber supporting structure with Ø4mm x 50mm long galvanised mild steel counter sunk screws or to steel supporting structure with Ø6mm x 30mm long galvanised mild steel bolts, nuts and washers (Supporting structure measured elsewhere), with and including jointing strips for butt-jointing and for plastic H-Profile apex jointing including all cutting and waste (measured net).   "]
["80 x 275mm Socketless barge boards fixed to timber supporting structure with 4mm diameter x 50mm long galvanised mild steel counter sunk screws","m",406,null,{"$f":"+C582*D582","v":0}]
[]
["SKIRTINGS"]
[]
["NOTE: Prices for wrot meranti skirtings are to include for treatment with PCP or equal approved clear termite treatment."]
[]
["Wrot kiln dried Meranti:"]
["19 x 76mm Arris rounded and ploughed at back skirting board and 19mm quadrant bead plugged and screwed to walls.","m",1360,null,{"$f":"+C589*D589","v":0}]
[]
["FLUSH DOORS"]
[]
["Semi-solid core flush panel door with hardwood edge strips and commercial ply finish suitable for painting both sides hung to steel frames:"]
["40mm Thick door, size 813 x 2032mm","No",11,null,{"$f":"+C594*D594","v":0}]
["40mm Thick door, size 762 x 1982mm","No",34,null,0]
[]
["Solid laminated flush panel door with hardwood edge strips and commercial ply finish suitable for painting both sides hung to steel frames:"]
["40mm Thick door, size 813 x 1830mm","No",1,null,{"$f":"+C598*D598","v":0}]
["40mm Thick door, size 813 x 2032mm","No",24,null,0]
[]
["FRAMED DOORS, ETC."]
[]
["Wrot Meranti framed, ledged and braced batten doors with 40x110mm stiles and top rail, 20x150mm middle ledge, 20x225mm bottom ledge and 20x110mm braces, hung to steel frames:"]
["44mm Thick door, size 813 x 2032","No",66,null,{"$f":"+C604*D604","v":0}]
["44mm Thick double door, size 1613 x 2032mm with rebated meeting styles ","No",1,null,0]
[]
["PREAMBLES TO JOINERY WORK"]
[]
["CUPBOARDS"]
[]
["CUPBOARD CONSTRUCTION"]
["Doors, drawer fronts and cupboard carcases to be constructed out of 18mm Melamine faced V313 moisture resistant particle board (identifiable by green in colour) with 2mm high impact edging or 18x10mm hardwood edging or 18x10mm hardwood edging with 18mm Melamine faced V313 moisture resistant particle board  back panel pinned to wall with 80x8mm plugs and screws. Cupboard to be sealed with clear silicone along wall edges. Cupboard to be painted as per general paint specifications. Colour to be approved by Architect"]
[]
["DRAWER CONSTRUCTION"]
["Doors, drawer fronts and cupboard carcases to be constructed out of 18mm Melamine faced V313 moisture resistant particle board (identifiable by green in colour) with 2mm high impact edging or 18mx10mm hardwood edging with 6mm hardboard base in grooves in front and side panels. Drawer installed with approved 550mm drawer glider rails with self-closing feature. Drawer to be painted as per general paint specifications. Colour to be approved by Architect"]
[]
["ADJUSTABLE SHELF"]
["19mm x 5ply Blockboard shelf panels on removable plastic/steel studs in Ø5mm factory drilled holes at 32mm c/c, 4 x per shelf. Shelves to be painted as per general paint specifications. Colour to be approved by Architect "]
[]
["IRONMONGERY"]
[]
["Handles"]
["Aluminium pull handle 91x35mm with bolt-through fix, as per UNION type AL 55123AS or similar approved."]
[]
["Door & Drawer lock"]
["RX44/46 Cam Lock (19mm) Series 95 as per UNION or similar approved. All keys per roomto be same keyed and one master key per department."]
[]
["Hinges"]
["1 Pair nickel plated Conways B2518 type flush opening 110° hinges per door leaf. "]
[]
["CUBICLE CONSTRUCTION"]
["Cubicle to be constructed out of 19mm x 5ply Blockbord panels. 18mm Melamine faced V313 moisture resistant particle board. Cubicle to be painted as per general paint specifications. Colour to be approved by Architect "]
[]
["WORKTOPS (PROVISIONAL)"]
[]
["Worktops to be manufactured from 30mm Ceasarstone with 3mm rounded edge profile. Worktop screw fixed from beneath to steel framework and edges silicone sealed along walls. Colour: Mocha Code - 2370"]
["Worktop Type WT-1 600mm wide in various lengths, fixed to galvanised mild steel brackets (elsewhere measured) (Refer Worktop Schedule No. CD/16-6-2-01)","m",276,null,{"$f":"+C637*D637","v":0}]
[]
["Worktop brackets made up out of 50x50x5mm hot-dip galvanised mild steel angle section and 50x5mm diagonal flat bar, neatly welded together and joints made smooth, with holes drilled for expansion bolts on vertical arm of bracket and self-tapping screws on horizontal arm   "]
["Worktop Type WT-1 gallows bracket 550mm wide x 460mm high, holed for and bolted to brickwork with and including two M10 x 75mm expansion bolts (Refer Worktop Schedule No. CD/16-6-2-02) ","No",295,null,{"$f":"+C640*D640","v":0}]
[]
["School Bench "]
["School Bench 2600mm long x 500mm wide x 850mm high overall fixed in position complete on gallows brackets (elsewhere measured) and with wood finished with three coats Elvolac Polyacrythane clear polyurethane in accordance with the manufacturer's specifications (Refer Worktop Schedule No. CD/16-6-2-03 & 04) ","No",1,null,{"$f":"+C643*D643","v":0}]
[]
["Scool Bench brackets made up out of 40x40x5mm hot-dip galvanised mild steel angle section and 40x5mm diagonal flat bar, neatly welded together and joints made smooth, with holes drilled for expansion bolts on vertical arm of bracket and self-tapping screws on horizontal arm   "]
["School Bench gallows bracket 460mm wide x 380mm high, holed for and bolted to brickwork with and including two M10 x 75mm expansion bolts (Refer Worktop Schedule No. CD/16-6-2-04)   ","No",5,null,{"$f":"+C646*D646","v":0}]
[]
["FLOOR & WALL CUPBOARDS (PROVISIONAL)"]
[]
["The Tenderer is to refer to the preceding PREAMBLES TO JOINERY WORK, Architectural Drawings No. CD/16-6-1-02, -03, -04, -05 (Typical Details) and the Item Specific Architectural Drawing as noted against each item to be priced inclusive of all specified ironmongery"]
["Floor Mounted Cupboard Type A - 600 x 600 x 750mm with 1 x Drawer (Refer Cupboard Schedule No. CD/16-6-1-02) ","No",1,null,{"$f":"+C651*D651","v":0}]
["Floor Mounted Cupboard Type B - 600 x 600 x 750mm with 3 x Drawers (Refer Cupboard Schedule No. CD/16-6-1-03) ","No",8,null,0]
["Floor Mounted Cupboard Type C - 600 x 600 x 900mm with 2 x Shelves (Refer Cupboard Schedule No. CD/16-6-1-04) ","No",1,null,0]
["Floor Mounted Cupboard Type D - 600 x 600 x 2100mm with 5 x Shelves (Refer Cupboard Schedule No. CD/16-6-1-05) ","No",2,null,0]
[]
["SPECIALIST ITEMS (PROVISIONAL)"]
[]
["The Tenderer is to refer to the preceding PREAMBLES TO JOINERY WORK, Architectural Drawings No. CD/16-6-1-02, -03, -04, -05 (Typical Details) and the Item Specific Architectural Drawing as noted against each item to be priced inclusive of all specified ironmongery"]
["Small Magazine Shelf 1200mm wide x 940mm high as detailed on Architectural Drawing No. CD/16-6-4-02 with wood finished with three coats Elvolac Polyacrythane clear polyurethane in accordance with the manufacturer's specifications and fixed in position complete [GRADE R] ","No",5,null,{"$f":"+C659*D659","v":0}]
["Large Magazine Shelf 1200mm wide x 1500mm high as detailed on Architectural Drawing No. CD/16-6-4-08 with wood finished with three coats Elvolac Polyacrythane clear polyurethane in accordance with the manufacturer's specifications and fixed in position complete [MEDIA] ","No",1,null,0]
["Island Book Shelf 3936mm wide x 1500mm high x 704mm deep as detailed on Architectural Drawing No. CD/16-6-4-07 with wood finished with three coats Elvolac Polyacrythane clear polyurethane in accordance with the manufacturer's specifications and fixed in position complete [MEDIA] ","No",3,null,0]
["Book Shelf 3936mm wide x 1500mm high x 352mm deep as detailed on Architectural Drawing No. CD/16-6-4-06 with wood finished with three coats Elvolac Polyacrythane clear polyurethane in accordance with the manufacturer's specifications and fixed in position complete [MEDIA] ","No",2,null,0]
["Book Shelf 3936mm wide x 940mm high x 330mm deep as detailed on Architectural Drawing No. CD/16-6-4-03 with wood finished with three coats Elvolac Polyacrythane clear polyurethane in accordance with the manufacturer's specifications and fixed in position complete [GRADE R] ","No",5,null,0]
["Pigeon Hole Shelf 3936mm wide x 940mm high x 330mm deep as detailed on Architectural Drawing No. CD/16-6-4-04 with wood finished with three coats Elvolac Polyacrythane clear polyurethane in accordance with the manufacturer's specifications and fixed in position complete [GADE R] ","No",5,null,0]
["Newspaper Stand 1700mm wide x 990mm high x 680mm deep as detailed on Architectural Drawing No. CD/16-6-4-09 with wood finished with three coats Elvolac Polyacrythane clear polyurethane and steel frame finished with \"Hammerite\" paint in accordance with the manufacturer's specifications prior to installation and fixed in position complete [MEDIA] ","No",1,null,0]
["9-station Computer Bench 7230mm long x 600mm wide x 750mm high overall as detailed on Architectural Drawing No. CD/16-6-4-10 comprising 30mm Ceasarstone top (elsewhere measured), 25x25x2.5mm Mild Steel Square tube and 25x25x2.5mm angle framing carcass and 22mm Pine Plywood bottom shelf; all wood components to be finished with three coats Elvolac Polyacrythane clear polyurethane and steel frame finished with \"Hammerite\" paint in accordance with the manufacturer's specifications prior to installation and fixed in position complete [COMPUTER] ","No",2,null,0]
["11-station Computer Bench 8865mm long x 600mm wide x 750mm high overall as detailed on Architectural Drawing No. CD/16-6-4-10 comprising 30mm Ceasarstone top (elsewhere measured), 25x25x2.5mm Mild Steel Square tube and 25x25x2.5mm angle framing carcass and 22mm Pine Plywood bottom shelf; all wood components to be finished with three coats Elvolac Polyacrythane clear polyurethane and steel frame finished with \"Hammerite\" paint in accordance with the manufacturer's specifications prior to installation and fixed in position complete [COMPUTER] ","No",2,null,0]
["Teachers Computer Bench 1500mm long x 600mm wide x 750mm high overall as detailed on Architectural Drawing No. CD/16-6-4-10 comprising 30mm Ceasarstone top (elsewhere measured), 25x25x2.5mm Mild Steel Square tube and 25x25x2.5mm angleframing carcass and 22mm Pine Plywood bottom shelf; all wood components to be finished with three coats Elvolac Polyacrythane clear polyurethane and steel frame finished with \"Hammerite\" paint in accordance with the manufacturer's specifications prior to installation and fixed in position complete [COMPUTER] ","No",1,null,0]
[]
["SHELVING (PROVISIONAL)"]
[]
["The following in adjustable shelving "]
["22mm Thick laminated S.A. pine blockboard, screwed to rails or brackets (measured elsewhere)"]
["305mm Wide shelving.","m",368,null,{"$f":"+C674*D674","v":0}]
["380mm Wide shelving.","m",60,null,0]
[]
["TOTAL FOR BILL NO. 8",{"$nulls":3},{"$f":"SUM(E549:E676)","v":0}]
["BILL NO. 9"]
["CEILINGS, PARTITIONS & ACCESS FLOORING"]
[]
["CPAP WORK GROUP: 129 - Unless Otherwise Indicated"]
["MODEL PREAMBLES The tenderer is referred to the \"Model Preambles for  Trades 2008\" for supplementary and comprehensive expansion of descriptions, appropriate provision for which shall be deemed to have been included in all relevant rates"]
["Descriptions and Preambles Tenderers are referred to Trades to follow hereafter for preambles and full descriptions of materials and items not fully described in this Trade and which shall apply equally to work in this Trade, unless otherwise described."]
["Trade Names and Proprietary Products: All descriptions or clauses where trades names or proprietary products are specified, are deemed to include the phrase \"or other approved\"."]
[]
["NAILED UP CEILINGS"]
[]
["9.5mm Skimmed plasterboard ceiling boards seamless jointed and fixed to and including 38 x 38mm timber brandering installed at maximum 450mm centres using 32mm galvanised clout nails at maximum 150mm centres "]
["Ceilings including 38 x 50mm sawn softwood brandering at maximum 450mm centres in one direction and at joints and cornices in other direction ","m2",2341,null,{"$f":"+C689*D689","v":0}]
[]
["6mm Everite Nutec or equal approved fibre cement ceiling boards complete with steel H-profile jointing strips:"]
["Ceilings including 38 x 38mm sawn softwood brandering at maximum 500mm centres in one direction only","m2",549,null,{"$f":"+C692*D692","v":0}]
[]
["CORNICES"]
[]
["Wrot SA Pine"]
["75 x 20mm Cornice fixed to wall","m",1749,null,{"$f":"+C697*D697","v":0}]
[]
["Everite Nucornice coved cornice to nailed up ceilings"]
["75mm Nucornice paper covered polystyrene core cove fixed to wall ","m",601,null,{"$f":"+C700*D700","v":0}]
[]
["CEILING ACCESS PANELS"]
["Gyproc Standard Access Panel size 600x600mm comprising of powder-coated aluminium frame and gypsum board door and fitted with a push catch lock and cable and hook safety mechanism ","No",35,null,{"$f":"+C703*D703","v":0}]
[]
["INSULATION"]
["100mm Thick Isotherm or equal approved thermally bonded polyester ceiling insulation 11.5kg/m2 closely fitted with ends butted firmly between tie beams and laid loose on top of brandering between roof timbers, all in accordance with the Manufacturer's Specifications (measured net)  ","m2",2341,null,{"$f":"+C706*D706","v":0}]
[]
["TOTAL FOR BILL NO. 9",{"$nulls":3},{"$f":"SUM(E688:E707)","v":0}]
["BILL NO. 10"]
["FLOOR COVERINGS, WALL LININGS, ETC"]
[]
["CPAP WORK GROUP: 130 - Unless Otherwise Indicated"]
["MODEL PREAMBLES The tenderer is referred to the \"Model Preambles for  Trades 2008\" for supplementary and comprehensive expansion of descriptions, appropriate provision for which shall be deemed to have been included in all relevant rates"]
["Descriptions and Preambles Tenderers are referred to Trades to follow hereafter for preambles and full descriptions of materials and items not fully described in this Trade and which shall apply equally to work in this Trade, unless otherwise described."]
["Trade Names and Proprietary Products: All descriptions or clauses where trades names or proprietary products are specified, are deemed to include the phrase \"or other approved\"."]
[]
["FLOOR COVERINGS"]
[]
["300 x 300 x 2.5mm Polyflor Polyflex Plus or similar approved vinyl tiles"]
["On floors laid in multi colours","m2",2850,null,{"$f":"+C720*D720","v":0}]
[]
["Remove all loose dirt such as dust, grit, sand, etc. by vacuuming, clean by machine scrubbing using alkali detergent diluted in strict accordance with the manufacturer's instructions and wet vacuum dirty cleaning solution off floor. Rinse until all traces of the alkali detergent are removed and apply three coats \"Mepol H\" gloss sealer in strict accordance with the manufacturer's instructions:"]
["Vinyl floor tiles","m2",2851,null,{"$f":"+C723*D723","v":0}]
[]
["TOTAL FOR BILL NO. 10",{"$nulls":3},{"$f":"SUM(E716:E724)","v":0}]
["BILL NO. 11"]
["IRONMONGERY"]
[]
["CPAP WORK GROUP: 132 - Unless Otherwise Indicated"]
["MODEL PREAMBLES The tenderer is referred to the \"Model Preambles for  Trades 2008\" for supplementary and comprehensive expansion of descriptions, appropriate provision for which shall be deemed to have been included in all relevant rates"]
["Descriptions and Preambles Tenderers are referred to Trades to follow hereafter for preambles and full descriptions of materials and items not fully described in this Trade and which shall apply equally to work in this Trade, unless otherwise described."]
["Trade Names and Proprietary Products: All descriptions or clauses where trades names or proprietary products are specified, are deemed to include the phrase \"or other approved\"."]
[]
["SUPPLEMENTARY PREAMBLES"]
["Fixing All ironmongery is fixed to timber unless otherwise noted."]
[]
["ASSA ABLOY or similar approved"]
[]
["DOOR FURNITURE"]
["Gower Furniture Blank Code: CZ682-06CH","No",1,null,{"$f":"+C740*D740","v":0}]
["Gower 2 Lever Lockset Code: CZ6822495-CH","No",35,null,0]
["Gower 4 Lever Lockset Code: CZ6822461-CH","No",57,null,0]
["Dove pull handle Code: AL5D02AS on narrow plate on blank 192x45mm narrow back plate without piercing","No",64,null,0]
["Dove pull handle Code: AL5D66-06AS on Backplate Blank ","No",2,null,0]
["Dove Push Plate Blank - 152 x 152mm Code: AL5066-06AS","No",2,null,0]
[]
["INDICATOR BOLTS"]
["Silver anodised aluminium Indicator Bolt Code: AL8294AS ","No",32,null,{"$f":"+C748*D748","v":0}]
["Paraplegic Facility Indicator Bolt Code: AL37651AS ","No",5,null,0]
[]
["LOCK"]
["Roller Catch Code: ARC1182SS ","No",1,null,{"$f":"+C752*D752","v":0}]
[]
["DOOR STOP"]
["Aluminium Door Stop Code: AL8730AS","No",42,null,{"$f":"+C755*D755","v":0}]
[]
["DOOR HOLDER"]
["Bildware 150 x 30mm Satin Chrome Door Holder Code: B3441SC","No",55,null,{"$f":"+C758*D758","v":0}]
[]
["COAT HOOK"]
["Silver anodised aluminium rubber tipped hat, coat and robe hook Code: AL8722AS ","No",37,null,{"$f":"+C761*D761","v":0}]
[]
["CABIN HOOK"]
["150mm Satin Chrome Cabin Hook Brass Halcast  Code: CABIN SC","No",66,null,{"$f":"+C764*D764","v":0}]
[]
["FLUSHBOLTS"]
["Flush Bolt with anodised silver finish Code: AL8208-150AS","No",2,null,{"$f":"+C767*D767","v":0}]
[]
["REBATE CONVERSION SET"]
["Rebate Set - Stainless Steel - for Case size 76 Code: 2700SS","No",1,null,{"$f":"+C770*D770","v":0}]
[]
["PADLOCK"]
["50mm Brass Padlock with 28mm Hardened Steel Shackle KD Code: UN335000000000","No",59,null,{"$f":"+C773*D773","v":0}]
[]
["DOOR CLOSER"]
["Rack and Pinion Closer EN 3-6 SIL Code: DC300","No",2,null,{"$f":"+C776*D776","v":0}]
["Cam Action Closer EN 3/4 SIL Code: DC175","No",5,null,0]
[]
["ENGRAVED PICTOGRAM"]
["AL5066-06/ASE11 152 x 152 x 2mm silver anodised aluminium engraved Female Pictogram","No",10,null,{"$f":"+C780*D780","v":0}]
["AL5066-06/ASE01 152 x 152 x 2mm silver anodised aluminium engraved Electrical Hazard","No",10,null,0]
["AL5066-06/ASE10 152 x 152 x 2mm silver anodised aluminium engraved Male Pictogram","No",10,null,0]
["AL5066-06/ASE14 152 x 152 x 2mm silver anodised aluminium engraved Paraplegic Pictogram","No",5,null,0]
[]
["SUNDRIES"]
["Patent Fixing Screw Code: RH7024","No",136,null,{"$f":"+C786*D786","v":0}]
[]
["KICK PLATES"]
[]
["813 x 150 x 1.2mm Stainless steel kick plate ","No",14,null,{"$f":"+C790*D790","v":0}]
["813 x 900 x 1.2mm PVC kick plate ","No",8,null,0]
[]
["PINNING BOARDS, WRITING BOARDS, PROJECTION SCREENS, ETC"]
[]
["Parrot or similar approved boards including all fixing to brickwork in accordance with the manufacturer's instructions "]
["Parrot or similar approved Educational Non-Mag Chalkboard overall size 4860 x 1220mm comprising the following components and fixed to walls with integrated pen tray and fasteners as per manufactureres sppecification A) 2 x Edu Boards side panel 1220 x 1220 Non-Mag Chalkboard  Products - Code: ED3052.B) 2 x Edu Boards swing leafs 1220 x 1210 Non-Mag Chalkboard Products - Code: ED5052.C) 1 x Edu Boards centre panel 2420 x 1220 Non-Mag Chalkboard  Products - Code: ED9076.D) 2 x Grey plastic hinge and aluminium mountings.                                               Products - Code: AL0320.(Refer Accessories Specification AB-3)","No",37,null,{"$f":"+C796*D796","v":0}]
["Parrot (Code: BD 0984) Magnetic White Board size 3000 x 1200mm or similar approved with 1,2mm high pressure laminate finish, suitable for writing on with dry wipe pen on 13mm softboard with 31 x 20mm natural anodised aluminium angle frame all round. Board fixed to wall complete with integrated pen tray, mounting brackets and fasteners as per Manufacturers specification (Refer Accessories Specification AB-4)","No",1,null,0]
["Parrot (Code: BD3841) or similar approved Pinning Display Case size 1200 x 900 x 75mm with durable and hard wearing carpet surface on soft board backing with 75mm natural anodised aluminium frame all round and toughened sliding glass panels with built in security lock, fixed to wall as per Manufacturers Specification. Parrot Products (Refer Accessories Specification AB-2) ","No",1,null,0]
["Purpose made Pinboard overall size 4200 x 900mm high, comprising 10mm Softboard cut to long lengths as required and glued to wall with contact adhesive and 19x44mm planed and filleted Saligna surround with all corners neatly mitred and fixed to wall over Softboard with countersunk and pelleted screws at 300mm centres (Refer Accessories Specification AB-1)  ","No",48,null,0]
[]
["BATHROOM FITTINGS"]
[]
["Serra ROL SQ3 or similar approved 3-stack lockable stainless steel toilet roll dispenser (Refer Accessories Specification ATR-1)  ","No",12,null,{"$f":"+C803*D803","v":0}]
["Purpose made hot-dip galvanised mild steel toilet roll holder comprising 100mm wide x 3mm thick U-shaped bracket 500mm girth twice holed for and bolted to wall with Ø8mm expansion bolts, and twice holed for and including Ø27.5mm x 2 mm wall thickness x 280mm long removable pipe toilet roll holder with one end with Ø40mm x 3mm thick end plate welded on and other end holed for and including 38mm brass padlock to be provided for each toilet roll holder with one key to fit all padlocks in each ablution block (Refer Accessories Specification ATR-2) ","No",27,null,0]
["SERRA Disposor Standard Wall Bin (Code: SD1129) or similar approved unit size 385mm high x 340mm wide x 250mm deep manufactured from grade 304 Stainless Steel bright annealed finish (Refer Accessories Specification ATD-1)","No",4,null,0]
["Franke (Code: M600HD) or similar approved Security and Vandal Resistant surface mounted heavy duty mirror size 590 x 490mm manufactured from 8mm thick 18/10 stainless steel, surface high polished, revolving overturned, thief and vandal proof mounting system (Refer Accessories Specification AM-1) ","No",34,null,0]
[]
["GRAB RAILS"]
[]
["Railman Grab Rails or similar approved  Ø32mm grade 304 satin polished stainless steel paraplegic grab rails fixed to brickwork or concrete "]
["Dogleg grab rail 300x300x300mm with 2 flanges (Ref: DL2)","No",5,null,{"$f":"+C811*D811","v":0}]
["Cistern rail 750x206x206mm for Protea (Ref: SR2)","No",5,null,0]
[]
["KEY CABINETS"]
["TOOLROOM (Code: KC10) or similar approved white baked epoxy coated sheet metal Key Cabinet for 25 keys, size 310mm high x 185mm wide x 50mm deep (Refer Accessories Specification AMS-1) ","No",42,null,{"$f":"+C815*D815","v":0}]
["TOOLROOM (Code: KC20) or similar approved white baked epoxy coated sheet metal Key Cabinet for 50 keys, size 550mm high x 270mm wide x 50mm deep (Refer Accessories Specification AMS-2) ","No",1,null,0]
[]
["SUNDRIES"]
["3 x 25mm Brass floor finish dividing strip embedded in cement screed.","m",52,null,{"$f":"+C819*D819","v":0}]
[]
["SHELVING"]
[]
["Shelco or similar approved epoxy powder coated enamel shelving system"]
["Double slot wall band 915mm long, fixed to brickwork or concrete","No",223,null,{"$f":"+C824*D824","v":0}]
["Double slot wall band 1830mm long, fixed to brickwork or concrete","No",33,null,0]
["Heavy duty bracket for 305mm wide wood shelves","No",526,null,0]
["Heavy duty bracket for 380mm wide wood shelves","No",120,null,0]
[]
["TOTAL FOR BILL NO. 11",{"$nulls":3},{"$f":"SUM(E739:E828)","v":0}]
["BILL NO. 12"]
["STUCTURAL STEELWORK (PROVISIONAL)"]
[]
["CPAP WORK GROUP: 134 - Unless Otherwise Indicated"]
["MODEL PREAMBLES The tenderer is referred to the \"Model Preambles for  Trades 2008\" for supplementary and comprehensive expansion of descriptions, appropriate provision for which shall be deemed to have been included in all relevant rates"]
["Trade Names and Proprietary Products: All descriptions or clauses where trades names or proprietary products are specified, are deemed to include the phrase \"or other approved\"."]
[]
["NOTE:"]
["1. All steel must be grade 350 WA to SABS 1431."]
["2. All bolts and nuts to be grade 4,6 to SABS 135. Bolts shall be hot dip galvanised to BS763 and it must be possible to screw mate parts together by hand."]
["3. All fasteners must be supplied by the Contractor."]
["4. All welding must be 6mm full fillet or butt welds to SABS 044 and SABS 455."]
["5. All construction and workshop details must be approved by the Engineer before fabrication is started."]
["6. Structural steelwork must be carried out according to SABS 1200H."]
["7. All bolts and nuts must have washers."]
["8. Prices for all structural steelwork are to include for the following:"]
["(a) preparation and submission of two complete sets of shop drawings to the Engineer for approval;"]
["(b) fabrication;"]
["(c) delivery to site;"]
["(d) storage, if necessary;"]
["(e) hoisting and erection complete, including all holing, galvanised mild steel bolts, washers, packing pieces, bolting, welding, etc.;"]
[]
["HOT DIP GALVANISED MILD STEEL COLUMNS, RAFTERS, PURLINS, STAIRCASE, ETC"]
[]
["Manufacture to Engineer's specification and erect on site as per the Engineer's details all structural steel roof components including struts, braces, cleats, bearers, gussets, connection plates, bolts, etc. necessary for the proper functioning of the roof"]
["Covered walkway roof steelwork ","t",7.52,null,0]
[]
["TOTAL FOR BILL NO. 12",{"$nulls":3},{"$f":"SUM(E831:E856)","v":0}]
["BILL NO. 13"]
["METALWORK"]
[]
["CPAP WORK GROUP: 136 - Unless Otherwise Indicated"]
["MODEL PREAMBLES The tenderer is referred to the \"Model Preambles for  Trades 2008\" for supplementary and comprehensive expansion of descriptions, appropriate provision for which shall be deemed to have been included in all relevant rates"]
["Descriptions and Preambles Tenderers are referred to Trades to follow hereafter for preambles and full descriptions of materials and items not fully described in this Trade and which shall apply equally to work in this Trade, unless otherwise described."]
["Trade Names and Proprietary Products: All descriptions or clauses where trades names or proprietary products are specified, are deemed to include the phrase \"or other approved\"."]
[]
["HOT DIP GALVANISED WELDED GATES"]
[]
["Security gates and frames comprising 60x40x3mm rectangular section frames with two 40x6mm horizontal rails and Ø19mm vertical bars equally spaced, 55x40x8mm padlock plates and each leaf hung to and including 40x40x3mm square section frame with three Ø25mm x 80mm bullet hinges, bolted to wall with M16 expansion bolts with heads tack welded to prevent removal, all as detailed on Architectural Drawing CD/16-4-4-06"]
["Single gate and frame overall size 1026mm wide x 2138mm high (SG1) ","No",67,null,0]
["Single gate with side panel and frame, overall size 1552mm wide x 2125mm high (SG2) ","No",1,null,0]
["Double gate with side panels and frame, overall size 3640mm wide x 2295mm high (DG1) ","No",1,null,0]
["Double gate with side panels and frame, overall size 2190mm wide x 2295mm high (DG2) ","No",1,null,0]
["Double gate with side panel and frame, overall size 1865mm wide x 2270mm high (DG3) ","No",1,null,0]
["Double gate with side panels and frame, overall size 2070mm wide x 2295mm high (DG4) ","No",1,null,0]
[]
["HOT DIP GALVANIZED PRESSED STEEL DOOR FRAMES"]
[]
["1,2mm Double rebated frames with mitred, welded and reinforced corners and fitted with one-and-a-half pairs of 100mm five-knuckle loose pin steel hinges for each door or each leaf of double doors, and with one pair of 75mm five-knuckle loose pin steel hinges for each fanlight, suitable for half brick walls:"]
["Frame for door 813 x 2032mm high.","No",25,null,0]
["Frame for door 762 x 2032mm high.","No",34,null,0]
[]
["1,2mm Double rebated frames with mitred, welded and reinforced corners and fitted with one-and-a-half pairs of 100mm five-knuckle loose pin steel hinges for each door or each leaf of double doors, and with one pair of 75mm five-knuckle loose pin steel hinges for each fanlight, suitable for one brick walls:"]
["Frame for door 813 x 2032mm high.","No",76,null,0]
["Frame for double door 1613 x 2032mm high","No",1,null,0]
[]
["HOT DIP GALVANISED WELDED BALUSTRADING & GRABRAILS"]
[]
["Balustrading 1000mm high overall, comprising  Ø50mmx3mm tubing handrail, 40x40x2.5mm square tubing posts each with Ø10mmx40mm long round bar handrail support on topend and 160x50x10mm baseplate twice drilled for and including M10x50mm expansion bolts at ±1070mm centres, 40x8mm flat bar top and bottom rails and 10x10mm square bar vertical bars equally spaced at ±90mm centres between posts, bolted to concrete or brickwork"]
["Horizontal balustrading 1000mm high ","m",170,null,0]
["Raking balustrading 1000mm high ","m",72,null,0]
[]
["Wall mounted handrail comprising Ø50mm x 3mm tubing handrail with Ø10mm x 215mm girth round bar L-shaped brackets at 1500mm centres, with ends drilled and epoxied 75mm deep into concrete or brickwork"]
["Horizontal grabrail","m",14,null,0]
["Raking grabrail","m",23,null,0]
[]
["HOT DIP GALVANISED STEEL WINDOWS, DOORS, ETC."]
[]
["Standard residential type windows with 20 x 5mm burglar bars factory fitted to opening sections and to line through with the glazing bars, including standard brass fittings "]
["Window type E1, 533 x 654mm high (W01)","No",55,null,0]
["Window type E2, 1022 x 654mm high (W02)","No",1,null,0]
["Window type C2F, 1022 x 949mm high (W03)","No",2,null,0]
["Window type G2C2, 1022 x 1264mm high (W04)","No",28,null,0]
["Window type C4F, 1511 x 946mm high (W09)","No",3,null,0]
[]
["Standard school type windows with 20 x 5mm burglar bars factory fitted to opening sections and to line through with the glazing bars, including standard brass fittings "]
["Window type 3-HCH, size 889 x 457mm high (W06)","No",26,null,0]
["Composite window type 3-CH/3-CH/9-F/LT, overall size 889 x 1248mm high (W07)","No",218,null,0]
["Composite window type 3-HCH/9F/LT, overall size 889 x 854mm high (W08)","No",181,null,0]
[]
["Standard residential French-type door "]
["Door type DDA 1511 x 2134mm high (D01)","No",2,null,0]
[]
["STEEL STRONGROOM DOORS, VENTILATORS, ETC."]
[]
["Mutual Austen Safes or similar record room door and ventilator suitable for 230mm walls and fixed to brickwork or concrete"]
["DS1 or similar approved record room door and frame overall size 1000mm wide x 2030mm high overall with 1 x  keylock. (Mass: 180kg)","No",1,null,0]
["Double ended telescopic strongroom ventilator size 230x230mm","No",3,null,0]
[]
["HOT DIP GALVANISED STEEL ROLLER SHUTTERS "]
[]
["Serranda Alusolid or similar approved powder coated aluminium push-up roller shutter door with standard bottom rail, end-locked 65 x 1.5mm slats, 75mm wide guides, 285mm high overhead box, canopy cover, extruded aluminium T-bar with rubber seal, powder coated ancillary components including end plates, guide rails, slide bolt and fixed to concrete or brickwork soffits and jambs "]
["Roller shutter door for opening size 2000 x 1165mm high (RS1) ","No",1,null,0]
["Roller shutter door for opening size 1650 x 2100mm high (RS2) ","No",1,null,0]
["Roller shutter door for opening size 2500 x 1165mm high (RS3) ","No",1,null,0]
[]
["ALUMINIUM WINDOWS & DOORS - ALL MATERIALS USED MUST BE AAAMSA TESTED AND MUST COMPLY WITH SANS 10400 PART N AND SANS 10137:2011  [CPAP WG: 149]"]
["FRAME: Aluminium frame with accurately mitred corners with clip-on glazing beads to match, complete with neoprene seals and screw and plug fixed to brickwork or concrete"]
["DOOR & FRAME FINISH: Surfaces to receive 60-80µm powder coating to SANS 1578 and SANS 1796"]
["ACCESSORIES: Stainless steel heavy duty friction hinges, double draft seals and black powder coated aluminium window handles"]
["GLAZING: Safety Glazing shall be permanently marked by the installer in such a manner that the markings are visible in individual panes after installation in accordance with SANS 10400-N and all glazing shall be executed strictly in accordance with SANS 10137:2011"]
[]
["Purpose made natural anodised aluminium window made from Clip 44 Shopfront Section and glazed with 6mm Clear Laminated Safety Glass all to comply with AAAMSA regulations and fixed to concrete or brickwork (refer Architectural Drawing No. CD/16-5-01)"]
["Purpose made fixed window 1400mm wide x 1430mm high frame with 6mm clear laminated clear safety glass pane size 1400mm wide x 1330mm high (W05) ","No",1,null,0]
[]
["TOTAL FOR BILL NO. 13",{"$nulls":3},{"$f":"SUM(E868:E933)","v":0}]
["BILL NO. 14"]
["PLASTERING"]
[]
["CPAP WORK GROUP: 142 - Unless Otherwise Indicated"]
["MODEL PREAMBLES The tenderer is referred to the \"Model Preambles for  Trades 2008\" for supplementary and comprehensive expansion of descriptions, appropriate provision for which shall be deemed to have been included in all relevant rates"]
["Descriptions and Preambles Tenderers are referred to Trades to follow hereafter for preambles and full descriptions of materials and items not fully described in this Trade and which shall apply equally to work in this Trade, unless otherwise described."]
["Trade Names and Proprietary Products: All descriptions or clauses where trades names or proprietary products are specified, are deemed to include the phrase \"or other approved\"."]
[]
["GRANOLITHIC"]
[]
["Tinted grano comprising 2 parts washed granite or approved stone chippings maximum size 5mm, ½ part clean pit sand sieved through 2.4mm mesh and 1 part cement on concrete"]
["25mm Thick on floors and landings","m2",1051,null,0]
["12mm Thick skirting 75mm high, including quarter round coving at junction of floor and wall.","m",518,null,0]
[]
["SCREEDS"]
[]
["Cement screeds (1:3) on concrete"]
["25mm Thick on floors and landings","m2",2593,null,0]
[]
["TAL Screedmaster or similar approved in accordance with TAL specifications, incuding TAL Floor Primer Slurry Coat (two parts cement to one part floor primer) or similar approved, applied on wood floated surfaces to receive vinyl tiles (tiles elsewhere measured)"]
["3mm Finish to woodfloated floors","m2",2715,null,0]
[]
["INTERNAL PLASTER"]
[]
["One coat (1:5) cement plaster to brickwork finished with a steel trowel on"]
["Walls","m2",4237,null,0]
["Narrow widths","m2",233,null,0]
[]
["One coat (1:3) cement plaster to concrete finished with a steel trowel on"]
["Concrete soffits","m2",787,null,0]
[]
["EXTERNAL PLASTER"]
[]
["One coat (1:4) cement plaster finished with a wood float on:"]
["On walls","m2",18,null,0]
["On narrow widths ","m2",1,null,0]
[]
["TOTAL FOR BILL NO. 14",{"$nulls":3},{"$f":"SUM(E945:E972)","v":0}]
["BILL NO. 15"]
["TILING"]
[]
["CPAP WORK GROUP: 144 - Unless Otherwise Indicated"]
["MODEL PREAMBLES The tenderer is referred to the \"Model Preambles for  Trades 2008\" for supplementary and comprehensive expansion of descriptions, appropriate provision for which shall be deemed to have been included in all relevant rates"]
["Descriptions and Preambles Tenderers are referred to Trades to follow hereafter for preambles and full descriptions of materials and items not fully described in this Trade and which shall apply equally to work in this Trade, unless otherwise described."]
["Trade Names and Proprietary Products: All descriptions or clauses where trades names or proprietary products are specified, are deemed to include the phrase \"or other approved\"."]
[]
["WALL TILING"]
[]
["Tile Africa Code: TACN1956YD - MWC-4 Matt White or similar approved 200x200x6mm white glazed ceramic tiles fixed with approved adhesive and flush pointed with approved tinted epoxy grout on "]
["Walls","m2",241,null,0]
["Walls in narrow widths not exceeding 300mm wide","m2",2,null,0]
["Walls in isolated panels not exceeding 1m²","m2",8,null,0]
[]
["Wall Tile Edge Trims"]
["M-Trim (code: PRE070), or similar approved, 7mm PVC Round Edge Trim (Provisional)","m",20,null,0]
["M-Trim (code: PCE070), or similar approved, 7mm PVC Concave Edge Trim (Provisional)","m",20,null,0]
[]
["FLOOR TILING"]
[]
["Samca Salt & Pepper Beige A-Grade Slip Resistant (code:VSP30353A) or similar approved 350x350mm ceramic tiles fixed with approved adhesive to screed (screed elsewhere measured) and flush pointed with approved tinted epoxy grout on "]
["On floors","m2",67,null,0]
[]
["TOTAL FOR BILL NO. 15",{"$nulls":3},{"$f":"SUM(E984:E996)","v":0}]
["BILL NO. 16"]
["PLUMBING & DRAINAGE (PROVISIONAL)"]
[]
["CPAP WORK GROUP: 148 - Unless Otherwise Indicated"]
["MODEL PREAMBLES The tenderer is referred to the \"Model Preambles for  Trades 2008\" for supplementary and comprehensive expansion of descriptions, appropriate provision for which shall be deemed to have been included in all relevant rates"]
["Descriptions and Preambles Tenderers are referred to Trades to follow hereafter for preambles and full descriptions of materials and items not fully described in this Trade and which shall apply equally to work in this Trade, unless otherwise described."]
["Trade Names and Proprietary Products: All descriptions or clauses where trades names or proprietary products are specified, are deemed to include the phrase \"or other approved\"."]
[]
["RAINWATER DISPOSAL"]
[]
["0.6mm Extruded seamless aluminium gutters pre-painted with double coat Polymer Silicon baked enamel "]
["150 x 150mm Square gutter fixed to falls with aluminium brackets bolted to steel supporting structure with galvanised bolts, nuts and washers at 500mm centres","m",1005,null,0]
["Extra over gutter for drop-box","No",81,null,0]
["Extra over gutter for  100 x 75mm outlet with nozzle","No",81,null,0]
["Extra over gutter for stopend","No",16,null,0]
["Extra over gutter for angle","No",48,null,0]
[]
["0.6mm Aluminium down pipes pre-painted internally and externally with double coat Polymer Silicon baked enamel "]
["100 x 75mm Down pipe secured to wall at 1000mm centres with and including pre-painted aluminium straps fixed to walls with nail plugs and/or fixed to steel supports with galvanised self-tapping screws","m",374,null,0]
["Extra over 100 x 75mm downpipe for bend","No",162,null,0]
["Extra over 100 x 75mm downpipe for shoe","No",81,null,0]
[]
["SANITARY FITTINGS"]
[]
["The following in sanitary fittings fixed in position complete and connected to services:"]
["Vitreous China"]
["Vaal Springbok (code:703102WH) or similar approved white vitreous china wall-hung basin size 400x550x270mm fixed to wall with two white semi-concealed brackets (code:8118Z000) complete with one white taphole stopper (code:60900001) including anti-fungal polysulphide sealant at junction of basin and wall ","No",8,null,0]
["Vaal Aquasave (code:750155WH) or similar approved white vitreous china WC suite complete with seat  ","No",6,null,0]
["Vaal Protea Paraplegic 90˚(code:750246WH) or similar approved white vitreous china outlet pan and matching 9 litre cistern with purpose-made chrome-plated side-flush lever suite, complete white Buxton Sta-Tite (code:8515Z100) solid hard double flap plastic toilet seat","No",5,null,0]
[]
["Stainless Steel"]
["Franke Trendline (code:311850) or similar approved Grade 304 18/10 stainless steel single end-bowl drop-on sink, overall size 1200x535mm with 460x355x140mm deep bowl, mounted on 25x25mm square stainless steel front leg with adjustable foot plugged and screwed to floor and gallows bracket twice bolted to wall with M8 galvanised expansion bolts and including anti-fungal polysulphide sealant at junction of sink and wall ","No",1,null,0]
[]
["Rotomoulded Polyethylene"]
["Atlas Plastics \"Cindy\" wash hand basin size 400x300x194mm (code:384AP), or similar approved,  fixed in position with galvanised expansion bolts as per Manufacturer's specifications including anti-fungal polysulphide sealant at junction of basin and wall","No",30,null,0]
["Atlas Plastics \"Aries Duct Pan\" pedestal size 369x458x414mm without flap (code:586AP) complete with 6 litre cistern size 178x438x273mm (code:522AP) with all internal fittings, or similar approved, fixed in position with expansion bolts","No",24,null,0]
["Atlas Plastics \"Bambi P-Trap Pan\" pedestal size 282x360x300mm without flap (code:626AP) complete with 6 litre cistern size 178x438x273mm (code:522AP) with all internal fittings, or similar approved, fixed in position with expansion bolts","No",6,null,0]
["Atlas Plastics bowl urinal size 320x350x495mm high (code:507AP) complete with 38mm chrome plated domical grating and waste and top inlet spreader (code 7054Z1), or similar approved, fixed in position on and including two hanger brackets as supplied by the Manufacturer with galvanised expansion bolts","No",8,null,0]
["Atlas Plastics 40 litre washtrough size 412x528x275mm  (code:366AP), or similar approved, fixed in position on and including galvanised steel brackets with galvanised expansion bolts as per Manufacturer's specifications  including anti-fungal polysulphide sealant at junction of basin and wall","No",5,null,0]
[]
["WASTES, ETC"]
["Cobra (code:303) or similar approved Ø32mm chrome-plated slotted basin waste union with flanged backnut and washer","No",8,null,0]
["Cobra (code:308) or similar approved Ø32mm chrome-plated unslotted basin waste complete with plug, chain and stay ","No",36,null,0]
["Cobra (code:317) or similar approved Ø40mm chrome-plated unslotted sink waste union complete with plug, chain and stay ","No",1,null,0]
["Cobra (code:323CP) or similar approved Ø40mm rough brass screwed male shower waste with Ø75mm chrome-plated shower grating","No",1,null,0]
[]
["TRAPS, ETC."]
["Cobra (code:350) Ø32 x Ø40mm chrome-plated deep seal bottle trap complete with Cobra (code:C-362/1) bottle trap tail pipe and Cobra (code:C-362/3) Ø40mm chrome plated sliding wall flange for tail pipe, or similar approved","No",43,null,0]
["Cobra (code:360) Ø40 x Ø40mm chrome-plated deep seal bottle trap complete with Cobra (code:C-362/1) bottle trap tail pipe and Cobra (code:C-362/3) Ø40mm chrome plated sliding wall flange for tail pipe, or similar approved","No",9,null,0]
["Cobra (code:373) or similar approved Ø40mm brass shower P-trap with shallow seal and chrome-plated grating","No",1,null,0]
[]
["TAPS, VALVES, ETC."]
["Cobra Carina (code:114CA-15) or similar approved chrome-plated square pattern pillar tap with aerator outlet and flanged back-nut","No",8,null,0]
["Cobra Star (code:206EXT-15) or similar approved chrome-plated extended bib tap with sliding wall flange","No",2,null,0]
["Cobra (code:KM2.202-15), or similar approved, 15mm chrome plated demand push button bibtap with flow straightener","No",35,null,0]
["Cobra (code:832/350F) or similar approved chrome-plated angle stop valve complete with 350mm braided flexible hose connector","No",89,null,0]
["Shower set comprising Cobra (code:KM2-301), or similar approved, brushed chrome non hold open under-tile metering stop tap and Cobra (code:KP2.6), or similar approved,15mm chrome plated Vandal Master vandal-resistant shower head with self-cleaning nozzle ","No",1,null,0]
["Cobra (code:108-20) or similar approved 20mm brass hose bib tap with 1/¾\" hose union","No",4,null,0]
["20mm Cobra ref. 1001/125-20 or, similar approved, cast brass full-way FxF gate valve","No",4,null,0]
["Cobra (code:KM2-201), or similar approved, brushed chrome non hold open 15mm metering bibtap ","No",4,null,0]
["Cobra Junior Flushmaster (code:FJ6-000) or similar approved exposed chrome plated flush complete with 3/4\" Ball-O-Stop control inlet, wall flange, additional toilet piston screw and non-hold open feature","No",8,null,0]
["Cobra (code:FJT5-5) or similar approved chrome plated offset urinal flush pipe 215mm long x 15mm outlet for junior flushmaster, including inlet adaptor for urinal flush valves","No",8,null,0]
[]
["SANITARY PIPE WORK"]
[]
["uPVC (S&V) pipes to comply with SABS 967"]
["50mm Pipe","m",173,null,0]
["110mm Pipe","m",164,null,0]
[]
["Extra over uPVC (S&V) pipes for fittings:"]
["40 x 50mm Adaptor","No",8,null,0]
["50mm Bend","No",90,null,0]
["50mm Access bend","No",8,null,0]
["110mm Bend","No",82,null,0]
["110mm Access junction","No",82,null,0]
["110mm Reducing junction single access heel","No",45,null,0]
["110mm Pan connector","No",41,null,0]
["110mm Air vent valve","No",41,null,0]
["110mm Air vent cowl ","No",6,null,0]
[]
["WATER SUPPLY"]
[]
["Class 460/0 copper pipes"]
["15mm Pipes ","m",563,null,0]
["15mm Pipes chased into brick walls","m",36,null,0]
["22mm Pipes","m",92,null,0]
[]
["Extra over Class 460/2 copper pipes for 'Copcal' (Capillary) fittings"]
["15mm Fittings","No",1074,null,0]
["22mm Fittings","No",166,null,0]
[]
["Extra over Class 460/0 copper pipes for 'Conex' (Compression) fittings"]
["15mm Fittings","No",2,null,0]
["22mm Fittings","No",4,null,0]
[]
["WATER BOILERS & GEYSERS"]
["Franke Kitchen Systems “ZIP Hydroboil”, or similar approved, 5 litre white powder coated water boiler, plugged and screwed to wall (Product code: 2610008). ","No",1,null,0]
["Kwikot Kwiksol or similar approved direct close coupled thermosyphon solar heating system with one 2000 x 1000 x 80mm high flat solar panel collector (Code:SOL PANEL 2B), system to include 150 Litre SOL-150-DIR round solar water heater complying with SABS 1307-2007, overall size Ø538mm x 1035mm long with 22mm copper pipe and operating at 400kPa with 400kPa Kwikot Multi pressure control and expansion relief valve (Code:KHN3.214), 20mm draincock and 22mm insulated pipework including two Kwikot vacuum breakers (Code: KHN4-200CX) installed on hot and cold water supply, including all necessary brackets, lagging, thermostatic mixing valve and 7-day digital geyser timer. Geyser to be positioned horizontally on roof at least 300mm higher than the Kwikot solar connector panel, all in accordance with SANS 10254:2004 and SANS 10106:2006, connected to single phase electrical power supply with isolator 1m away from connection on geyser ","No",1,null,0]
[]
["FIRE APPLIANCES"]
["4.5kg DCP SABS Fire Extinguisher including brackets for wall mounting","No",50,null,0]
[]
["TOTAL FOR BILL NO. 16",{"$nulls":3},{"$f":"SUM(E1007:E1100)","v":0}]
["BILL NO. 17"]
["GLAZING"]
[]
["CPAP WORK GROUP: 150 - Unless Otherwise Indicated"]
["MODEL PREAMBLES The tenderer is referred to the \"Model Preambles for  Trades 2008\" for supplementary and comprehensive expansion of descriptions, appropriate provision for which shall be deemed to have been included in all relevant rates"]
["Descriptions and Preambles Tenderers are referred to Trades to follow hereafter for preambles and full descriptions of materials and items not fully described in this Trade and which shall apply equally to work in this Trade, unless otherwise described."]
["Trade Names and Proprietary Products: All descriptions or clauses where trades names or proprietary products are specified, are deemed to include the phrase \"or other approved\"."]
["Safety Glazing: Safety Glazing shall be permanently marked by the installer in such a manner that the markings are visible in individual panes after installation in accordance with SANS 10400-N and all glazing shall be executed strictly in accordance with SANS 10137:2011"]
[]
["GLAZING TO STEEL WITH PUTTY"]
[]
["6.38mm Clear Laminated Glass"]
["Panes exceeding 0,1m² and not exceeding 0,5m²","m2",184,null,0]
[]
["6.38mm Opaque Laminated Glass "]
["Panes exceeding 0,1m² and not exceeding 0,5m²","m2",141,null,0]
[]
["MIRRORS"]
[]
["6mm Silvered float glass copper backed mirrors with polished edges fixed with four chrome-plated dome capped screws to brickwork or concrete"]
["600 x 400mm Mirror","No",34,null,0]
[]
["TOTAL FOR BILL NO. 17",{"$nulls":3},{"$f":"SUM(E1112:E1122)","v":0}]
["BILL NO. 18"]
["PAINTWORK"]
[]
["CPAP WORK GROUP: 152 - Unless Otherwise Indicated"]
["MODEL PREAMBLES The tenderer is referred to the \"Model Preambles for  Trades 2008\" for supplementary and comprehensive expansion of descriptions, appropriate provision for which shall be deemed to have been included in all relevant rates"]
["Descriptions and Preambles Tenderers are referred to Trades to follow hereafter for preambles and full descriptions of materials and items not fully described in this Trade and which shall apply equally to work in this Trade, unless otherwise described."]
["Trade Names and Proprietary Products: All descriptions or clauses where trades names or proprietary products are specified, are deemed to include the phrase \"or other approved\"."]
[]
["PAINTWORK TO PREVIOUSLY PAINTED WORK"]
[]
["ON PLASTER, ETC."]
["Prepare and brush surface to remove all loose contaminants, clean down, make good cracks and minor defects with \"Polycell Mendall 90\", apply one coat \"Professional Plaster Primer\", one coat \"Universal Undercoat\" and two coats \"Double Velvet (DV)\" polyurethane enamel paint on "]
["Internal plastered walls ","m2",126,null,0]
["Internal Rhinoboard ceilings and cornices","m2",148,null,0]
[]
["ON WOOD"]
["Prepare and brush surface to remove all loose contaminants, sand, knot with \"Plascon Woodcare Knot Seal PK2\" and apply three coats \"Woodcare Clear Plus\" clear gloss varnish, sanding lightly between coats on : "]
["Doors","m2",3,null,0]
[]
["PAINTWORK TO NEW WORK"]
[]
["ON PLASTER, ETC."]
["Clean down, make good cracks and minor defects with \"Polycell Mendall 90\", apply one coat \"Professional Plaster Primer\", one coat \"Universal Undercoat\" and two coats \"Double Velvet (DV)\" polyurethane enamel paint on "]
["Internal plastered walls","m2",4318,null,0]
["Internal plastered soffits","m2",787,null,0]
["Internal fibre cement sills","m2",66,null,0]
["Internal Rhinoboard ceilings and cornices","m2",2341,null,0]
["Cornices not exceeding 300mm girth","m",1749,null,0]
[]
["Clean down, make good cracks and minor defects with \"Polycell Mendall 90\", apply one coat \"Professional Plaster Primer\", one coat \"Universal Undercoat\" and two coats \"Wall 'n All (WAA)\" polyurethane enamel paint on : "]
["External plastered walls","m2",18,null,0]
["External fibre cement fascias & bargeboards","m2",1521,null,0]
["External fibre cement ceilings and cornices","m2",549,null,0]
[]
["ON METAL SURFACES"]
[]
["Prepare, clean and degrease with \"Galvanised Iron Cleaner GIC1\", apply one coat \"Galvanised Iron Primer PP1000\" and two coats \"Velvaglo Satin VLO\" on:"]
["Doors","m2",233,null,0]
[]
["ON WOOD SURFACES, ETC."]
[]
["Prepare, sand, knot with \"Plascon Woodcare Knot Seal PK2\", apply one coat \"Plascon Wood Primer (PP800)\" and apply two coats 'Plascon Velvaglo Satin (VLO)\" on : "]
["Doors","m2",17,null,0]
[]
["Prepare, sand, knot with \"Plascon Woodcare Knot Seal PK2\" and apply three coats \"Woodcare Clear Plus\" clear gloss varnish, sanding lightly between coats on :"]
["Doors","m2",214,null,0]
["Skirtings, rails, etc not exceeding 300mm girth","m",1360,null,0]
[]
["Prepare, sand and apply three coats \"Woodoc 30\", sanding lightly between coats on :"]
["General surfaces of joinery fittings","m2",2258,null,0]
[]
["Clean, prepare and apply three coats \"Elvolac Polyacrythane\" clear polyurethane paint on:"]
["Worktops","m2",285,null,0]
[]
["TOTAL FOR BILL NO. 18",{"$nulls":3},{"$f":"SUM(E1137:E1178)","v":0}]
["BILL NO. 19"]
["GENERAL EXTERNAL WORKS (PROVISIONAL)"]
[]
["CPAP WORK GROUP: As Indicated"]
["MODEL PREAMBLES The tenderer is referred to the \"Model Preambles for  Trades 2008\" for supplementary and comprehensive expansion of descriptions, appropriate provision for which shall be deemed to have been included in all relevant rates"]
["Descriptions and Preambles Tenderers are referred to Trades to follow hereafter for preambles and full descriptions of materials and items not fully described in this Trade and which shall apply equally to work in this Trade, unless otherwise described."]
["Trade Names and Proprietary Products: All descriptions or clauses where trades names or proprietary products are specified, are deemed to include the phrase \"or other approved\"."]
[]
["TEMPORARY BARRIERS, SCREENS, ETC [CPAP WG: 136]"]
[]
["Temporary barriers, screens, etc including removal and allow for re-use"]
["SANS approved weld mesh type temporary barrier fencing and 80% green shade cloth,1.8m high fixed to and including 100mm diameter CCA treated gum poles set securely minimum 600mm deep in ground at maximum 3m spacing, including re-using barrier as the work progresses on site as per the construction programme","m",200,null,0]
[]
["DEMOLITIONS, ETC [CPAP WG: 102]"]
[]
["Demolish and cart away from Site"]
["Existing Grade R Ablution","No",1,null,0]
[]
["GRASSING [CPAP WG: 104] "]
[]
["Levelling and compaction of surfaces"]
["Levelling, scarifying for a depth of 150mm, breaking down oversized material, adding suitable material where necessary and compacting to 95% Mod AASHTO dry density","m2",2492,null,0]
[]
["Topsoil, compost, lime and fertilizer"]
["Approved imported topsoil, spread evenly in ±150mm layer and roll to compact and level ","m3",374,null,0]
["Fertilize top 150mm depth of soil with a 8,3% \"P-Super phosphate\" mixture to a rate of 0,075kg/m² and a 3:2:1 (30) fertilizer to a rate of 0,035kg/m² before commencing with planting","m2",2492,null,0]
[]
["Grassing"]
["Paspalum grass in sods (instant lawn) closely packed on sufficiently watered base and top-dressed as necessary to even surfaces","m2",2492,null,0]
[]
["COMBI COURT"]
[]
["Excavation in soft material not exceeding 2 metres deep below natural or reduced ground level and temporary stockpile within the confines of the site for re-use and/or spoil "]
["Reducing levels across soil raft platform areas [CPAP WG: 104] ","m3",374,null,0]
[]
["Compaction of surfaces"]
["Rip in-situ material to a depth of 150mm under raft foundations and re-compact to 90% MOD AASHTO density [CPAP WG: 104]  ","m2",869,null,0]
[]
["G5 Natural gravel filling imported from an approved source supplied by the Contractor in layers not exceeding 150mm and compacted to 95% MOD AASHTO density "]
["G5 Natural gravel in fill under raft foundations in layers not exceeding 150mm and compacted to 95% MOD AASHTO density [CPAP WG: 104]  ","m3",261,null,0]
[]
["40MPa/19mm Concrete"]
["Surface beds [CPAP WG: 110] ","m3",236,null,0]
[]
["Finishing top surfaces of concrete"]
["Power Float non-slip finish to surface beds, slabs, etc [CPAP WG: 110] ","m2",869,null,0]
[]
["Smooth formwork"]
["Edges, risers, ends, etc. not exceeding 300mm high or wide [CPAP WG: 111] ","m",2728,null,0]
[]
["Saw cut joints and reaming "]
["3 x 40mm Saw cut joints in top of concrete  [CPAP WG: 111] ","m",299,null,0]
[]
["Reaming out Expansion Joints "]
["Ream out top edge of concrete slab to form 10mm wide x 26mm deep horizontal recess for sealant (sealant elsewhere measured) [JOINT TYPE A+C] [CPAP WG: 104]","m",409,null,0]
[]
["Steel Dowels"]
[" Ø6.35mm x 114.3mm long OCTO galvanised steel dowel bar de-bonded by lubricating with grease and inserted into and including Ø6.35mm ID x ±60mm deep drilled hole, all as indicated on Engineer's Drawing R20-002-00-739 (JOINT TYPE A)  [CPAP WG: 114]","No",275,null,0]
[]
["Sikaflex Pro 3 WF sealing compound including Ø10mm bond breaking cord, bond breaker, primer, etc as per Engineer's Drawing R20-002-00-739 (JOINT TYPE A) "]
["10 x 10mm In horizontal expansion joints in floors [CPAP WG: 120]","m",409,null,0]
[]
["Mesh reinforcement in concrete surface beds, slabs, etc."]
["Ref.193 mesh reinforcement in surface beds [CPAP WG: 114]","m2",1739,null,0]
[]
["250µm Gunplas USB Green polyethylene waterproof sheeting, with minimum 200mm overlaps at intersections, sealed at laps with Gunplas pressure sensitive tape"]
["One layer damp proofing under slab [CPAP WG: 120]","m2",869,null,0]
[]
["COMBI COURT SEATING"]
[]
["Excavation in soft material not exceeding 2 metres deep below natural or reduced ground level and temporary stockpile within the confines of the site for re-use and/or spoil "]
["Reducing levels across soil raft platform areas [CPAP WG: 104] ","m3",116,null,0]
[]
["Compaction of surfaces"]
["Rip in-situ material to a depth of 150mm under raft foundations and re-compact to 90% MOD AASHTO density [CPAP WG: 104]  ","m2",258,null,0]
[]
["G5 Natural gravel filling imported from an approved source supplied by the Contractor in layers not exceeding 150mm and compacted to 95% MOD AASHTO density "]
["G5 Natural gravel in fill under raft foundations in layers not exceeding 150mm and compacted to 95% MOD AASHTO density [CPAP WG: 104] ","m3",124,null,0]
[]
["30MPa/19mm Concrete "]
["Seating base [CPAP WG: 110] ","m3",44,null,0]
["Seating slabs [CPAP WG: 110] ","m3",12,null,0]
["Seating steps [CPAP WG: 110] ","m3",5,null,0]
[]
["Smooth formwork "]
["Edges, risers, ends, etc. not exceeding 300mm high or wide [CPAP WG: 111] ","m",667,null,0]
["Sides of seating base [CPAP WG: 111] ","m2",58,null,0]
[]
["Mesh reinforcement in concrete surface beds, slabs, etc."]
["Mesh Ref.193 [CPAP WG: 114]  ","m2",136,null,0]
[]
["Brickwork of NFP bricks (7 MPa nominal compressive strength) in accordance with SANS 227:2007 in Class II mortar"]
["One brick wall [CPAP WG: 116] ","m2",113,null,0]
[]
["Galvanised high tensile steel welded mesh brick reinforcement consisting of two 3.55mm main wires and 2.80mm cross wires electrically welded at 300mm centres"]
["150mm Wide reinforcement built in horizontally [CPAP WG: 116] ","m",1333,null,0]
[]
["250µm Gunplas USB Green polyethylene waterproof sheeting, with minimum 200mm overlaps at intersections, sealed at laps with Gunplas pressure sensitive tape"]
["One layer damp proofing under seats [CPAP WG: 120] ","m2",136,null,0]
[]
["SOCCER FIELD"]
[]
["Excavation in soft material not exceeding 2 metres deep below natural or reduced ground level and temporary stockpile within the confines of the site for re-use and/or spoil "]
["Reducing levels across soil raft platform areas [CPAP WG: 104] ","m3",683,null,0]
[]
["Levelling and compaction of surfaces"]
["Levelling, scarifying for a depth of 150mm, breaking down oversized material, adding suitable material where necessary and compacting to 95% Mod AASHTO dry density [CPAP WG: 104] ","m2",2275,null,0]
[]
["Prescribed density tests on filling"]
["Modified AASHTO Density test [CPAP WG: 104] ","No",20,null,0]
[]
["Ground preparation"]
["Cultivation and preparation of areas to be planted [CPAP WG: 104] ","m2",2275,null,0]
[]
["Topsoil, compost, lime and fertilizer"]
["Approved imported topsoil, spread evenly in ±150mm layer and roll to compact and level [CPAP WG: 104]  ","m3",341,null,0]
["Fertilize top 150mm depth of soil with a 8,3% \"P-Super phosphate\" mixture to a rate of 0,075kg/m² and a 3:2:1 (30) fertilizer to a rate of 0,035kg/m² before commencing with planting [CPAP WG: 104] ","m2",2275,null,0]
[]
["Grassing"]
["Paspalum grass in sods (instant lawn) closely packed on sufficiently watered base and top-dressed as necessary to even surfaces [CPAP WG: 104] ","m2",2275,null,0]
[]
["Two coats lawn paint"]
["In lines to soccer field [CPAP WG: 104] ","m",700,null,0]
[]
["Soccer equipment"]
["Mild steel powder coated soccer post 2500mm high x 5000mm wide complete as per Tharad Engineering or similar approved with and including all excavations, concrete footings, etc. complete [CPAP WG: 136] ","No",2,null,0]
[]
["BULK OPEN FACE EXCAVATION AND COMPACTED BACKFILLING TO FORM SOIL RAFT FOUNDATIONS UNDER INDIVIDUAL BUILDINGS"]
[]
["Removing topsoil and temporary stockpile within the confines of the site for re-use and/or spoil"]
["Strip topsoil 150mm deep across construction area [CPAP WG: 104]  ","m3",1855,null,0]
[]
["Excavation in soft material not exceeding 2 metres deep below natural or reduced ground level and temporary stockpile within the confines of the site for re-use and/or spoil "]
["Reducing levels across soil raft platform areas [CPAP WG: 104]  ","m3",6585,null,0]
[]
["Approved filling from the excavations in layers not exceeding 150mm and compacted to 95% MOD AASHTO density  "]
["Backfilling to reduced level excavations  [CPAP WG: 104]  ","m3",434,null,0]
[]
["G5 Natural gravel filling imported from an approved source supplied by the Contractor in layers not exceeding 150mm and compacted to 95% MOD AASHTO density "]
["G5 Natural gravel in fill under raft foundations in layers not exceeding 150mm and compacted to 95% MOD AASHTO density [CPAP WG: 104]   ","m3",5481,null,0]
[]
["Compaction of surfaces"]
["Rip in-situ material to a depth of 150mm under raft foundations and re-compact to 90% MOD AASHTO density [CPAP WG: 104]  ","m2",1198,null,0]
[]
["Keeping excavations free of water"]
["Keeping excavations free of all water other than subterranean water [CPAP WG: 104]  ","Item",1,null,0]
[]
["RETAINING WALL"]
[]
["Soft excavation not exceeding 2 metres deep below natural or reduced ground level for"]
["Foundation footings [CPAP WG: 104]  ","m3",52,null,0]
[]
["Risk of collapse of excavations"]
["Allow for risk of collapse to sides of trench and hole excavations not exceeding 1,5 m deep [CPAP WG: 104]  ","m2",150,null,0]
[]
["Keeping excavations free of water"]
["Keeping excavations free of all water other than subterranean water [CPAP WG: 104]   ","Item",1,null,0]
[]
["Approved earth filling obtained from the excavations and/or prescribed stock piles on site, including haulage not exceeding 100m from the perimeter of the excavations, well watered and compacted in layers not exceeding 150mm to a density as specified"]
["Backfilling around walls or columns and compacted to 95% MOD AASHTO dry density [CPAP WG: 104]  ","m3",19,null,0]
[]
["Reinforced Concrete Class 25/19 in "]
["Strip footings [CPAP WG: 110]  ","m3",25,null,0]
[]
["Rough formwork"]
["Edges, risers. ends, etc. not exceeding 300mm high or wide [CPAP WG: 111]  ","m",234,null,0]
[]
["Mild /high tensile steel reinforcement to structural concrete work"]
["Rods of various diameters [CPAP WG: 114]   ","t",1.47,null,0]
[]
["Brickwork of NFX bricks (14 MPa nominal compressive strength) in class I mortar in foundations (Provisional) "]
["One brick wall [CPAP WG: 116]  ","m2",40,null,0]
[]
["Brickwork of NFP bricks in class II mortar "]
["One brick walls [CPAP WG: 116]  ","m2",99,null,0]
[]
["Brick reinforcement"]
["150 mm Wide reinforcement built in horizontally in foundations  [CPAP WG: 116 ]  ","m",351,null,0]
["150 mm Wide reinforcement built in horizontally [CPAP WG: 116]  ","m",293,null,0]
[]
["Face brickwork in Corobrik Nebraska Travertine FBS face bricks to match existing in stretcher bond and pointed with square recessed horizontal and vertical joints"]
["Extra over ordinary brickwork for external face brickwork [CPAP WG: 116]  ","m2",199,null,0]
[]
["Header course copings, sills, etc. of Corobrik Nebraska Travertine FBS face bricks pointed with recessed joints on all exposed faces"]
["230mm Wide brick-on-edge coping to top of wall   pointed on top and both ends [CPAP WG: 116]  ","m",117,null,0]
[]
["TOTAL FOR BILL NO. 19",{"$nulls":3},{"$f":"SUM(E1187:E1364)","v":0}]
["BILL NO. 20"]
["ROADS & PAVING (PROVISIONAL)"]
[]
["CPAP WORK GROUP: As Indicated"]
["MODEL PREAMBLES The tenderer is referred to the \"Model Preambles for  Trades 2008\" for supplementary and comprehensive expansion of descriptions, appropriate provision for which shall be deemed to have been included in all relevant rates"]
["Descriptions and Preambles Tenderers are referred to Trades to follow hereafter for preambles and full descriptions of materials and items not fully described in this Trade and which shall apply equally to work in this Trade, unless otherwise described."]
["Trade Names and Proprietary Products: All descriptions or clauses where trades names or proprietary products are specified, are deemed to include the phrase \"or other approved\"."]
[]
["ROADS AND PAVING"]
[]
["Excavation in soft material not exceeding 2 metres deep below natural or reduced ground level and temporary stockpile within the confines of the site for re-use and/or spoil "]
["Reducing levels across soil raft platform areas [CPAP WG: 104]  ","m3",1746,null,0]
[]
["Compaction of surfaces"]
["Rip in-situ material to a depth of 150mm under raft foundations and re-compact to 90% MOD AASHTO density [CPAP WG: 104]  ","m2",2252,null,0]
[]
["G5 Natural gravel filling imported from an approved source supplied by the Contractor in layers not exceeding 150mm and compacted to 95% MOD AASHTO density "]
["G5 Natural gravel in fill under raft foundations in layers not exceeding 150mm and compacted to 95% MOD AASHTO density [CPAP WG: 104]  ","m3",809,null,0]
["G2 Filling under surface beds and compacted to 98% MOD AASHTO dry density [CPAP WG: 104]  ","m3",272,null,0]
[]
["Precast Concrete"]
["80mm Thick precast concrete interlocking paving blocks type S-A Class 25 pigmented to approved colours, laid on and including 20 mm thick river sand bed, treated with \"Hyvar X\" weedkiller applied at a rate of 50 g/m², to falls, cross falls and cambers including wedging and fitting between kerbs, grouting with cement mortar and all cutting and waste [CPAP WG: 112]  ","m2",1570,null,0]
["60mm Thick precast concrete interlocking paving blocks type S-A Class 25 pigmented to approved colours, laid on and including 20 mm thick river sand bed, treated with \"Hyvar X\" weedkiller applied at a rate of 50 g/m², to falls, cross falls and cambers including wedging and fitting between kerbs, grouting with cement mortar and all cutting and waste [CPAP WG: 112]  ","m2",682,null,0]
["Figure 6 Battered Kerb including 275mm wide 15MPa/19mm concrete footing and 150 x 230 mm triangular concrete backing and jointing and flush pointing in cement mortar with and including all cutting, complete with (average) 175mm wide x 225mm thick 25MPa/19mm concrete channel on inside [CPAP WG: 112]  ","m",355,null,0]
["Figure 6 Battered Kerb circular on plan not exceeding 4,0m radius including 275mm wide Class 15MPa/19mm concrete footing and 150 x 230 mm triangular concrete backing and jointing and flush pointing in cement mortar with and including all cutting, complete with (average) 175mm wide x 225mm thick 25MPa/19mm concrete channel on inside [CPAP WG: 112]  ","m",11,null,0]
[]
["TOTAL FOR BILL NO. 20",{"$nulls":3},{"$f":"SUM(E1377:E1391)","v":0}]
["BILL NO. 21"]
["SOIL DRAINAGE (PROVISIONAL)"]
[]
["CPAP WORK GROUP: 146 - Unless Otherwise Indicated"]
["MODEL PREAMBLES The tenderer is referred to the \"Model Preambles for  Trades 2008\" for supplementary and comprehensive expansion of descriptions, appropriate provision for which shall be deemed to have been included in all relevant rates"]
["Descriptions and Preambles Tenderers are referred to Trades to follow hereafter for preambles and full descriptions of materials and items not fully described in this Trade and which shall apply equally to work in this Trade, unless otherwise described."]
["Trade Names and Proprietary Products: All descriptions or clauses where trades names or proprietary products are specified, are deemed to include the phrase \"or other approved\"."]
[]
["SOIL AND WASTE DRAINAGE "]
[]
["Class 34 solid wall (Heavy Duty) uPVC pipes as per SANS 791"]
["110mm Pipes laid in and including trenches not exceeding 1m deep, including 210mm thick selected layer granular sand material bedding cradle and 300mm thick selected layer sand fill blanket","m",72,null,0]
["110mm Pipes laid in and including trenches exceeding 1m and not exceeding 2m deep, including 210mm thick selected layer granular sand material bedding cradle and 300mm thick selected layer sand fill blanket","m",60,null,0]
["Ø160mm Pipes laid in and including trenches not exceeding 1m deep","m",173,null,0]
["Ø160mm Pipes laid in and including trenches exceeding 1m and not exceeding 2m deep","m",403,null,0]
[]
["Extra over Class 34 solid wall (Heavy Duty) uPVC pipes for fittings:"]
["Ø110mm Bend Plain (87.5º & 135º)","No",7,null,0]
["Ø110mm Bend Plain (45º)","No",35,null,0]
["Ø110mm Bend Access (87.5º & 135º)","No",3,null,0]
["Ø110mm Junction Plain (45º)","No",4,null,0]
["Ø110mm Junction Access (45º)","No",5,null,0]
["Ø110mm Rodding Eye 45°","No",6,null,0]
["Ø110mm Stub Stack with ABC Lid","No",28,null,0]
["Ø110mm Vent Valve","No",11,null,0]
["Ø160mm Bend Plain (45º)","No",3,null,0]
["Ø160mm Junction Plain (45º)","No",6,null,0]
["Ø160mm Junction Access (45º)","No",3,null,0]
["Ø160 x 110mm Junction Access (45º)","No",23,null,0]
["Ø160mm Coupling","No",46,null,0]
["Ø160mm Rodding eye and cover","No",4,null,0]
["100mm Cast iron \"ABC\" cleaning eye","No",12,null,0]
["Cleaning Eye comprising 300x300x30mm Polymer manhole cover with frame, Ø500 x 150mm pre-fabricated reinforced concrete chamber ring on Ø600mm x 50mm concrete 25 MPa base [refer TYPE B: Engineers Drawing R20-002-00-410]","No",3,null,0]
["300x300x300mm Concrete 25MPa encasement to Cleaning Eye [refer TYPE A: Engineers Drawing R20-002-00-410] ","No",9,null,0]
[]
["Excavate for and build new standard precast concrete manhole formed of ±350mm thick 20MPa/19mm concrete base, sides formed of 1 050 mm diameter \"Superocla\" precast concrete sections with starter ring on bottom, 175 mm thick cover slab with Ø560mm Type 1B Polymer cover with frame (Type 2A in roads) by Mavrick Trading or similar approved to SANS 1882 : 2003, including all benching, channels, bends, formwork, etc. as detailed on Engineers Drawing R20-002-00-410] "]
["Manhole with chamber Ø1050mm not exceeding 1m depth","No",5,null,0]
["Manhole with chamber Ø1050mm exceeding 1m and not exceeding 2m depth","No",9,null,0]
["Manhole with chamber Ø1050mm exceeding 1m and not exceeding 2m depth in Road","No",2,null,0]
[]
["TESTING"]
["Testing the entire Soil Drainage Installation ","No",1,null,0]
[]
["TOTAL FOR BILL NO. 21",{"$nulls":3},{"$f":"SUM(E1403:E1436)","v":0}]
["BILL NO. 22"]
["WATER RETICULATION (PROVISIONAL)"]
[]
["CPAP WORK GROUP: As Indicated"]
["MODEL PREAMBLES The tenderer is referred to the \"Model Preambles for  Trades 2008\" for supplementary and comprehensive expansion of descriptions, appropriate provision for which shall be deemed to have been included in all relevant rates"]
["Descriptions and Preambles Tenderers are referred to Trades to follow hereafter for preambles and full descriptions of materials and items not fully described in this Trade and which shall apply equally to work in this Trade, unless otherwise described."]
["Trade Names and Proprietary Products: All descriptions or clauses where trades names or proprietary products are specified, are deemed to include the phrase \"or other approved\"."]
[]
["SUPPLEMENTARY PREAMBLES"]
["uPVC pressure pipes and fittings  Pipes of 50mm Ø and smaller shall be ppain ended with solvent welded uPVC loose sockets and fittings  Pipes of 63mm Ø and greater shall have sockets and spigots with push-in type integral rubber ring joints. Bends shall be uPVC and all other fittings shall be cast iron, all with similar push-in type joints"]
["High density polyethylene (HDPE) pipes and fittings  Pipes shall be type IV and of the class specified with \"Plasson\" or \"Alprene\" compression fittings"]
["Reducing fittings  Where fittings have reducing ends or branches, they are described as \"reducing\" and only the largest end or branch size is given. Should the contractor wish to use other fittings and bushes or reducers, he may do so on the understanding that no claim in this regard will be entertained"]
["Disinfection of water pipework  Water pipework is to be disinfected at completion in accordance with SABS 1200L (provision for disinfection elsewhere)"]
["Excavation of pipe trenches  Excavation of pipe trenches shall be executed by hand unless otherwise described"]
["Laying, backfilling, bedding, etc of pipes  Pipes shall be laid and bedded in accordance with the anufacturer's instructions and trenches shall be carefully backfilled"]
["Where no manufacturer's instructions exist, pipes shall be laid in accordance with Clauses 5.1 and 5.2 of SABS 1200L : Medium-pressure pipelines  Pipe trenches, etc shall be backfilled in accordance with Clauses 3, 5.5, 5.6, 5.7 and 7 of SABS 1200DB : Earthworks (Pipe trenches)  Pipes shall be bedded in accordance with Clauses 3.1 to 3.4.1, 5.1 to 5.3 and 7 of SABS 1200LB : Bedding (Pipes)  Unless otherwise described, bedding of rigid pipes shall be Class B bedding"]
[]
["RAINWATER STORAGE TANKS"]
["Approved 5000 litre Polyethylene Low-Profile water tank with Ø40mm inlet, Ø40mm overflow and Ø40mm outlet, Ø480mm lid with 100 x 75mm opening for rainwater pipe and fitted with Ø20mm an approved threaded one piece uv stabilised ABS ball valve complete with 40/20mm uv stabilised ABS reducing bush, Ø20mm uv stabilised ABS long screw parallel thread and Ø20mm uv stabilised pp/nylon insert male elbow on outlet side of valve, embedded in pedestal to a minimum 400mm above ground level and tied down with 2 No. Ø4mm galvanised double strap stay wires tied to galvanised M12 eye bolts drilled and fixed to corners of concrete supporting base [CPAP WG: 148]  ","No",12,null,0]
[]
["The following in Tankstands"]
["Excavation in soft material not exceeding 2m deep for bases [CPAP WG: 104]  ","m3",55,null,0]
["Extra over excavation in earth for excavation in soft rock [CPAP WG: 104]   ","m3",5,null,0]
["Risk of collapse to sides of trench and hole excavations not exceeding 1,5m deep [CPAP WG: 104]  ","m2",157,null,0]
["Backfilling from excavated material to trenches, holes, etc. and compacting in layers not exceeding 150mm thick to 95% Mod AASHTO dry density [CPAP WG: 104]  ","m3",20,null,0]
["Filling from excavated material and/or stockpiles on site under water tank base including levelling and compacting in layers not exceeding 150mm thick to 95% Mod AASHTO dry density [CPAP WG: 104]  ","m3",39,null,0]
["Apply 'Chlorodane' or 'Aldrin' termite poisoning of ground surfaces under solid floors [CPAP WG: 104]  ","m2",65,null,0]
["Apply 'Chlorodane' or 'Aldrin' termite poisoning of ground surfaces in bottoms and sides of foundation excavations  [CPAP WG: 104]  ","m2",242,null,0]
["15MPa/19mm Unreinforced concrete in blinding under footings [CPAP WG: 110]  ","m3",4,null,0]
["25MPa/19mm Reinforced concrete in strip footings [CPAP WG: 110]  ","m3",26,null,0]
["25MPa/19mm Reinforced concrete in surface beds.[CPAP WG: 110]  ","m3",6,null,0]
["12mm Expansion joints with 12mm bitumen impregnated soft board between vertical concrete and brick surfaces not exceeding 300mm high [CPAP WG: 111]  ","m",111,null,0]
["Sikaflex 1A Polyurethane Sealant or equal approved joint sealant in 12 x 20mm In expansion joints in floors [CPAP WG: 120]  ","m",111,null,0]
["Mild /high tensile steel reinforcement to structural concrete work in rods of various diameters [CPAP WG: 114]  ","t",1.54,null,0]
["Ref 193 mesh reinforcement in concrete surface beds, slabs, etc. [CPAP WG: 114]  ","m2",65,null,0]
["(1:3) Cement mortar filling around tank and steel trowel floated to a smooth finish [CPAP WG: 116]  ","m3",2,null,0]
["One brick wall in NFX clay bricks with 4:1 cement mortar [CPAP WG: 116]  ","m2",140,null,0]
["Extra over ordinary brickwork for Corobrik Nebraska Travertine FBS  face brickwork [CPAP WG: 116]  ","m2",119,null,0]
["230mm Wide Corobrik Nebraska Travertine FBS face brick-on-edge coping to top of one brick wall, pointed on all exposed faces [CPAP WG: 116]  ","m",133,null,0]
["One layer 250 micron USB Green polyethylene waterproof sheeting under surface beds [CPAP WG: 120]  ","m2",65,null,0]
["Ø5mm x ± 1.5m Long double folded galvanised wire anchor wound up in centre, complete with Ø15mm x ± 300mm long standard garden hose sleeve to isolate wire and prevent damage to tank on one end and other end secured to and including Ø16mm \"Hilti\" hook drilled into concrete slab [CPAP WG: 136]  ","No",48,null,0]
[]
["PUMPS, STORAGE TANKS, EQUIPMENT, ETC."]
["GRUNDFOS CM 3-3 A-R-I-E-AQQE C-A-A-N or similar approved Lift Pump complete with Control panel with Dry-Run Float Switch and Level Control Float Switch, Float Switch cabling between pump and tanks, including fitting and commissioning. [CPAP WG: 148]   ","No",1,null,0]
["STRUCTA or similar approved hot dipped galvanised externally bolted pressed steel 5x4x4 panel sectional water storage tank with a capacity of 145kl complete on 10m high galvanised tower complete with walkway around tank and landing platform inclusive of inlet, outlet, overflow and scour pipes, fittings and valves (elsewhere measured) and erected on concrete bases (elsewhere measured), testing and commissioning complete as per Engineers Drawing R20-002-00-311  [CPAP WG: 136]  ","No",1,null,0]
[]
["PIPES, FITTINGS, VALVES, ETC. [CPAP WG: 148]  "]
[]
["Hot dipped galvanised inlet, outlet, overflow and scour pipes, fittings and valves to galvanised pressed steel panel sectional water storage tank (refer Items SP1-SP15 on Engineers Drawing R20-002-00-311)"]
["Ø150mm Flanged pipe with bend, 5785mm girth, and flanged at both ends. All Flanges SABS 1123 Table 1000/3 (SP1) ","No",1,null,0]
["Ø150mm Flanged pipe with bend, 5775mm girth, and flanged at both ends. All Flanges SABS 1123 Table 1000/3 (SP2) ","No",1,null,0]
["Ø80mm Flanged pipe with bend, 5460mm girth, and flanged at both ends. All Flanges SABS 1123 Table 1000/3 (SP6) ","No",1,null,0]
["Ø80mm Flanged pipe with bend, 5150mm girth, and flanged at both ends. All Flanges SABS 1123 Table 1000/3 (SP7) ","No",1,null,0]
["Ø80mm Flanged pipe with bend, 4285mm girth, and flanged at both ends. All Flanges SABS 1123 Table 1000/3 (SP4) ","No",1,null,0]
["Ø80mm Flanged pipe with bend, 3615mm girth, and flanged at one end. All Flanges SABS 1123 Table 1000/3 (SP9) ","No",2,null,0]
["Ø80mm Flanged straight pipe, 6000mm long, and flanged at both ends. All Flanges SABS 1123 Table 1000/3 (SP5,8,10)","No",4,null,0]
["Ø80mm Flanged straight pipe, 1650mm long, and flanged at one end including 20mm Syphon Breaking Hole. All Flanges SABS 1123 Table 1000/3 (SP14) ","No",1,null,0]
["Ø80mm Flanged straight pipe, 500mm long, and flanged at both ends. All Flanges SABS 1123 Table 1000/3 (SP3)","No",1,null,0]
["Ø110mm Flange adaptor flanged to SABS 1123 Table 1000/3 (SP13)","No",1,null,0]
["Ø90mm Flange adaptor flanged to SABS 1123 Table 1000/3 (SP12)","No",3,null,0]
["Ø80mm RSV Valve, 254mm long and flanged at both ends. All Flanges SABS 1123 Table 1000/3 (SP11)","No",1,null,0]
["VOSA Series 7354 or similar approved Equilibrium Valve size 80DN Flange Rating PN10 (SP15)","No",1,null,0]
[]
["Hot dipped galvanised pipe and fittings"]
["DN 50Ø Galvanised steel pipe to SANS 62 Part 1","m",10,null,0]
["DN 50Ø - 90º Galvanised steel elbow","No",4,null,0]
["DN 50Ø Galvanised steel tee","No",2,null,0]
["DN 50Ø Galvanised steel intake bellmouth","No",1,null,0]
["DN 50Ø Connection pipe in galvanised pressed steel reservoir wall","No",1,null,0]
["Connection to pump inlets including bends and required reducers","No",1,null,0]
[]
["HDPE PE100 PN12.5 to SANS 4427 pipes laid in ground not exceeding 1 m deep including Class B bedding, backfilling and compacting of trenches:"]
["20mm Diameter pipe","m",10,null,0]
["25mm Diameter pipe","m",30,null,0]
[]
["HDPE PE100 PN10 to SANS 4427 pipes laid in ground not exceeding 1 m deep including Class B bedding, backfilling and compacting of trenches:"]
["32mm Diameter pipe","m",110,null,0]
["40mm Diameter pipe","m",85,null,0]
["50mm Diameter pipe","m",275,null,0]
["63mm Diameter pipe","m",220,null,0]
["75mm Diameter pipe","m",150,null,0]
["90mm Diameter pipe","m",150,null,0]
["110mm Diameter pipe","m",65,null,0]
[]
["Extra over piping for \"Plasson\" high compression fittings:"]
["20mm - 90º \"Plasson\" tee","No",7,null,0]
["25mm - 90º \"Plasson\" tee","No",7,null,0]
["32mm - 90º \"Plasson\" tee","No",7,null,0]
["40mm - 90º \"Plasson\" tee","No",7,null,0]
["50mm - 90º \"Plasson\" tee","No",10,null,0]
["63mm - 90º \"Plasson\" tee","No",10,null,0]
["75mm - 90º \"Plasson\" tee","No",6,null,0]
["90mm - 90º \"Plasson\" tee","No",10,null,0]
["110mm - 90º \"Plasson\" tee","No",5,null,0]
["20mm - 90º \"Plasson\" elbow","No",5,null,0]
["25mm - 90º \"Plasson\" elbow","No",5,null,0]
["32mm - 90º \"Plasson\" elbow","No",5,null,0]
["40mm - 90º \"Plasson\" elbow","No",5,null,0]
["50mm - 90º \"Plasson\" elbow","No",5,null,0]
["63mm - 90º \"Plasson\" elbow","No",5,null,0]
["75mm - 90º \"Plasson\" elbow","No",5,null,0]
["90mm - 90º \"Plasson\" elbow","No",6,null,0]
["110mm - 90º \"Plasson\" elbow","No",6,null,0]
["20mm - 45º  \"Plasson\" elbow","No",6,null,0]
["25mm - 45º  \"Plasson\" elbow","No",5,null,0]
["32mm - 45º  \"Plasson\" elbow","No",7,null,0]
["40mm - 45º  \"Plasson\" elbow","No",7,null,0]
["50mm - 45º  \"Plasson\" elbow","No",4,null,0]
["63mm - 45º  \"Plasson\" elbow","No",5,null,0]
["75mm - 45º  \"Plasson\" elbow","No",5,null,0]
["90mm - 45º  \"Plasson\" elbow","No",4,null,0]
["110mm - 45º  \"Plasson\" elbow","No",4,null,0]
["25 x 20mm \"Plasson\" reducer","No",5,null,0]
["32 x 25mm \"Plasson\" reducer","No",10,null,0]
["40 x 32mm \"Plasson\" reducer","No",15,null,0]
["50 x 40mm \"Plasson\" reducer","No",20,null,0]
["63 x 50mm \"Plasson\" reducer","No",25,null,0]
["75 x 63mm \"Plasson\" reducer","No",15,null,0]
["90 x 75mm \"Plasson\" reducer","No",15,null,0]
["110 x 90mm \"Plasson\" reducer","No",5,null,0]
[]
["Valves, etc"]
["25mm \"Cobra Watertech\" ref. 1001/125-25 cast brass gate valve","No",5,null,0]
["32mm \"Cobra Watertech\" ref. 1001/125-32 cast brass gate valve","No",5,null,0]
["40mm \"Cobra Watertech\" ref. 1001/125-40 cast brass gate valve","No",2,null,0]
["50mm \"Cobra Watertech\" ref. 1001/125-50 cast brass gate valve","No",10,null,0]
["63mm \"Wedge\" cast iron non-rising spindle gate valve with screw ends","No",8,null,0]
["75mm \"Wedge\" cast iron non-rising spindle gate valve with screw ends","No",2,null,0]
["90mm \"Wedge\" cast iron non-rising spindle gate valve with screw ends","No",3,null,0]
["110mm \"Wedge\" cast iron non-rising spindle gate valve with screw ends","No",3,null,0]
[]
["Garden Taps"]
["Standpipe 1250mm high comprising 20mm galvanised mild steel waterpipe, two x 90º elbows, one 20mm x 15mm reducer and \"Cobra Watertech 108LK/AM-15\" 15mm brass garden tap fixed in position inside and including 110mm uPVC (S&V) sleeve once holed for 20mm pipe, filled solid with Class 25/19 concrete upon completion ","No",15,null,0]
[]
["Gate Valve Housing "]
["Gate Valve Box comprising short section of 250mm Ø uPVC pipe from top of bedding and filled with 100mm thick layer of 20mm clean concrete aggregate, and \"Saint-Gobain 2620\" circular cast iron valve box Type 3B to SABS 558 cast into and including 600Ø x 250mm thick reinforced concrete Class 25/19 surround, including all excavation, backfilling, formwork, etc.","No",26,null,0]
[]
["Thrust Blocks"]
["25MPa/19mm Concrete in thrust blocks in trenches at bends, tees, etc. including extra excavation, formwork, etc.","m3",3,null,0]
[]
["145kl WATER TANK STAND BASES"]
[]
["Excavation in soft material not exceeding 2 metres deep below natural or reduced ground level "]
["Bases [CPAP WG: 104]  ","m3",38,null,0]
[]
["Risk of collapse of excavations"]
["Allow for risk of collapse to sides of trench and hole excavations not exceeding 1,5m deep [CPAP WG: 104]  ","m2",68,null,0]
[]
["Keeping excavations free of water"]
["Keeping excavations free of all water other than subterranean water  [CPAP WG: 104]  ","Item",1,null,0]
[]
["Approved earth filling obtained from the excavations and/or prescribed stock piles on site, including haulage not exceeding 100m from the perimeter of the excavations, well watered and compacted in layers not exceeding 150mm to a density as specified"]
["Backfilling around walls or columns and compacted to 90% MOD AASHTO dry density [CPAP WG: 104]  ","m3",24,null,0]
[]
["Compaction of surfaces "]
["Scarify base of excavation under surface beds, etc. to a depth of 150mm, level, wet to OMC and compact to 100% of Maximum MOD AASHTO dry density [CPAP WG: 104]  ","m2",20,null,0]
[]
["15MPa/19mm Unreinforced Concrete "]
["Blinding under footings and bases [CPAP WG: 110]   ","m3",1,null,0]
[]
["25MPa/19mm Reinforced Concrete "]
["Bases [CPAP WG: 110]  ","m3",12,null,0]
["Plinths [CPAP WG: 110]  ","m3",1,null,0]
[]
["Smooth formwork"]
["Sides of plinths [CPAP WG: 111]  ","m2",12,null,0]
[]
["Mild /high tensile steel reinforcement to structural concrete work"]
["Rods of various diameters [CPAP WG: 114]  ","t",2.02,null,0]
[]
["Hot dipped galvanised mild steel"]
["300 x 300 x 6mm Base Plates [CPAP WG: 136]  ","No",4,null,0]
["Ø25mm EN19 L-shaped Holding Down Bolt 1550mm girth and one end threaded 185mm for M24 nut, inclusive of 2 off M24 nuts and 2 off flat washers per bolt and casting into top of base in exact position [CPAP WG: 136]  ","No",16,null,0]
[]
["TESTING"]
["Allow for pressure testing the whole of the Water Supply Installations and for any re-testing necessary after taking out and replacing any defective work to the satisfaction of the Employer and Local Authority [CPAP WG: 148]  ","Item",1,null,0]
[]
["TOTAL FOR BILL NO. 22",{"$nulls":3},{"$f":"SUM(E1453:E1613)","v":0}]
["BILL NO. 23"]
["STORMWATER DRAINAGE (PROVISIONAL)"]
[]
["CPAP WORK GROUP: As Indicated"]
["MODEL PREAMBLES The tenderer is referred to the \"Model Preambles for  Trades 2008\" for supplementary and comprehensive expansion of descriptions, appropriate provision for which shall be deemed to have been included in all relevant rates"]
["Descriptions and Preambles Tenderers are referred to Trades to follow hereafter for preambles and full descriptions of materials and items not fully described in this Trade and which shall apply equally to work in this Trade, unless otherwise described."]
["Trade Names and Proprietary Products: All descriptions or clauses where trades names or proprietary products are specified, are deemed to include the phrase \"or other approved\"."]
[]
["STORMWATER DISPOSAL "]
[]
["The following in concrete V-drains with one side abutting brickwork"]
["Scarify base of excavation under surface beds, etc. to a depth of 150mm, level, wet to OMC and compact to 100% of Maximum MOD AASHTO dry density [CPAP WG: 104]  ","m2",1387,null,0]
["25MPa/19mm Reinforced concrete in V-drain [CPAP WG: 110]  ","m3",208,null,0]
["Wood Float finish to top of concrete V-drain [CPAP WG: 110]  ","m2",1387,null,0]
["Smooth formwork to edge of concrete not exceeding 300mm high. [CPAP WG: 111]  ","m",1387,null,0]
["Expansion joint of 12mm bitumen impregnated softboard between vertical concrete surfaces not exceeding 300mm high [CPAP WG: 111]  ","m",2081,null,0]
["One layer 250µm Gunplas USB Green polyethylene waterproof sheeting lapped and sealed under V-drain [CPAP WG: 120]  ","m2",1387,null,0]
["Rake out softboard 12mm deep and seal expansion joints with Sikaflex 2HP Polyurethane joint sealing compound including backing cord, bond breaker, primer, etc. in V-drains [CPAP WG: 120]  ","m",2081,null,0]
["Ref.193 mesh reinforcement in concrete V-drain [CPAP WG: 114]  ","m2",1387,null,0]
[]
["Stormwater Spreader"]
["Class A galvanised Reno Mattress size 3m x 3m x 300mm deep with Kaytech U14 Bidim and filled with 100-250mm suitable un-weathered rock, erected in position complete, including all necessary excavation, levelling, scarifying, compacting, etc. [CPAP WG: 118]  ","No",7,null,0]
[]
["STORMWATER DRAINAGE "]
[]
["Excavate for and build Catchpit with chamber size 910 x 910mm formed of 170mm thick 25MPa/19mm concrete base slab size 1700 x 1700mm with Ref.193 mesh, sides of one brick walls in extra hard burnt clay bricks including plaster rendering to inside of chamber, Saint-Gobain (Product Code 2180) double seal cast-iron manhole cover and frame size 600 x 600mm cast into average 150mm thick 25MPa/19mm concrete cover slab size 1370 x 1370mm reinforced with 3 x R10 rebar rings, including all excavations, backfill, benching, channels, bends, formwork, etc."]
["Catchpit exceeding 1.0m and not exceeding 2.0m deep internally [CPAP WG: 146]  ","No",2,null,0]
[]
["Class 50D concrete pipes"]
["450mm Pipes laid in and including trenches not exceeding 1m deep [CPAP WG: 146]  ","m",10,null,0]
[]
["SUB SOIL DRAIN"]
[]
["Excavation in earth not exceeding 2 m deep "]
["Stormwater drain excavations [CPAP WG: 104]  ","m3",241,null,0]
[]
["Extra over all excavations for carting away"]
["Cart away surplus material from excavations and spill over site as instructed  [CPAP WG: 104]  ","m3",241,null,0]
[]
["Backfilling "]
["Coarse clean river sand backfill in trench [CPAP WG: 104]  ","m3",105,null,0]
["19mm Nominal size stone chips backfill in trench [CPAP WG: 104]  ","m3",45,null,0]
["Approved impermeable backfill material (minimum 150mm thick) to top of backfill in trench [CPAP WG: 104]  ","m3",45,null,0]
[]
["Geotextile Lining"]
["Geofabric Bidim A3/U24 or equal approved in single layer lining to trench [CPAP WG: 146]  ","m2",703,null,0]
[]
["Sub Soil Geo-Pipe and Fittings"]
["Ø110mm Drainex HDPE flexible slotted drainage pipe laid in trench exceeding 1m and not exceeding 2m deep [CPAP WG: 146]   ","m",28,null,0]
["Ø110mm Drainex 45º Junction [CPAP WG: 146]  ","No",11,null,0]
["Ø100mm Cast iron ABC rodding eye [CPAP WG: 146]  ","No",11,null,0]
[]
["Thrust Blocks"]
["25MPa/19mm Concrete in thrust blocks in trenches at cleaning eyes, junctions, bends, tees, etc. including extra excavation, formwork, etc. [CPAP WG: 110]  ","m3",3,null,0]
[]
["TRAPEZOIDAL CHANNEL [DWG R20-002-00-210]"]
[]
["Excavation in earth not exceeding 2 m deep "]
["Stormwater drain excavations [CPAP WG: 104]   ","m3",244,null,0]
[]
["Topsoil filling from the excavations previously set aside "]
["Backfilling to drain [CPAP WG: 104]  ","m3",39,null,0]
[]
["Filling imported from an approved source supplied by the Contractor, compacted in layers and to densities as specified"]
["G5 Natural gravel in fill under raft foundations in 100mm layers and compacted to 95% MOD AASHTO density [CPAP WG: 104]  ","m3",29,null,0]
[]
["Compaction of surfaces"]
["Rip in-situ material to a depth of 150mm under raft foundations and re-compact to 90% MOD AASHTO density  [CPAP WG: 104]  ","m2",676,null,0]
[]
["Concrete Class 25/19 in"]
["Linings to bottom and sloping sides of drain  [CPAP WG: 110]  ","m3",29,null,0]
[]
["Finishing top surfaces of concrete"]
["Class U2 finish to top of concrete linings [CPAP WG: 110]  ","m2",288,null,0]
[]
["Class F1 formwork"]
["To edge of concrete not exceeding 300mm high [CPAP WG: 111]    ","m",339,null,0]
[]
["Geotextile Linings"]
["One layer 250µm Gunplas USB Green polyethylene waterproof sheeting lapped and sealed under trapezoidal drain [CPAP WG: 146]  ","m2",322,null,0]
[]
["Grassing"]
["Grassing with sods [CPAP WG: 104]   ","m2",388,null,0]
[]
["TOTAL FOR BILL NO. 23",{"$nulls":3},{"$f":"SUM(E1626:E1699)","v":0}]
["BILL NO. 24"]
["FENCING & GATES (PROVISIONAL)"]
[]
["CPAP WORK GROUP: 136 - Unless Otherwise Indicated"]
["MODEL PREAMBLES The tenderer is referred to the \"Model Preambles for  Trades 2008\" for supplementary and comprehensive expansion of descriptions, appropriate provision for which shall be deemed to have been included in all relevant rates"]
["Descriptions and Preambles Tenderers are referred to Trades to follow hereafter for preambles and full descriptions of materials and items not fully described in this Trade and which shall apply equally to work in this Trade, unless otherwise described."]
["Trade Names and Proprietary Products: All descriptions or clauses where trades names or proprietary products are specified, are deemed to include the phrase \"or other approved\"."]
[]
["SECURITY FENCING"]
[]
["The following in Cochrane Clearvue Invisible Wall or similar approved Section A1 High Security Fence and Gates erected by an Installer approved by the Manufacturer"]
["2.4m High galvanized and Marine Fusion Bond coated 3.5mm mesh Invisible Wall comprising 3.305mm wide panels with aperture size 76.2mm x 12.7mm and panel reinforced with 4 x 50mm deep 'V' formation horizontal recessed bands for rigidity and 2 x 75mm 70° flanges along sides as anti-vandal measure, 1 x 90° flange along top and 1 x 30° flange toe, complete with 100mm wide Shark Tooth Spike and 300mm bitumen dipped Anti-Burrow underdig "]
["Security fencing 2400mm high","m",664,null,0]
[]
["TOTAL FOR BILL NO. 24",{"$nulls":3},{"$f":"SUM(E1702:E1713)","v":0}]
["BILL NO. 25"]
["ELECTRICAL WORK (PROVISIONAL)"]
[]
["CPAP WORK GROUP: 160 - Unless Otherwise Indicated"]
["MODEL PREAMBLES The tenderer is referred to the \"Model Preambles for  Trades 2008\" for supplementary and comprehensive expansion of descriptions, appropriate provision for which shall be deemed to have been included in all relevant rates"]
["Descriptions and Preambles Tenderers are referred to Trades to follow hereafter for preambles and full descriptions of materials and items not fully described in this Trade and which shall apply equally to work in this Trade, unless otherwise described."]
["Trade Names and Proprietary Products: All descriptions or clauses where trades names or proprietary products are specified, are deemed to include the phrase \"or other approved\"."]
[]
["Registered Contractors: Only contractors registered with the Electrical Contracting Board of South Africa in accordance with the Regulations of the Occupational Health and Safety Act will be accepted and permitted to do work under this contract. The requirements of Regulation 5(2) will be strictly enforced by the Head: Works. It will be compulsory for the Contractor to submit proof of valid Registration at the date of site handover before any work commences."]
[]
["SUPPLEMENTARY PREAMBLES"]
[]
["Tenderers are referred to the project specification for full description of materials, etc. to be used.  All work shall be done strictly in accordance with specifications and manufacturer's instructions and to be left in perfect working order after completion."]
[]
["ELECTRICAL INSTALLATION"]
[]
["PRELIMINARY & GENERAL "]
["Allow for any Preliminary & General Items associated with the Electrical Subcontract work as required","SUM",1,null,0]
[]
["DISTRIBUTION BOARDS "]
["Supply, deliver, off load and install the following distribution boards, including all equipment, complete with all accessories. Installation shall include fixing, accessories and earthing."]
["The price shall include for all fixing materials, circuit terminations, lugs, cable straps and any other items necessary for the complete installation.  The price shall also include liaison with the board manufacturer, obtaining shop drawings for approval by the engineer, and the preparation and provision of detailed legend cards, as per the specification."]
["NOTE: The onus is on the contractor to ensure that the boards / frames will fit into the spaces provided."]
[]
["Meter Kiosk - Kiosk-A","No",1,null,0]
["Reticulation Kiosk - Kiosk-B","No",1,null,0]
["DB-A1","No",1,null,0]
["DB-A2","No",1,null,0]
["DB-B1","No",1,null,0]
["DB-B2","No",1,null,0]
["DB-D1 ","No",1,null,0]
["DB-D2","No",1,null,0]
["DB-E","No",1,null,0]
["DB-F","No",1,null,0]
["DB-G","No",1,null,0]
["DB-H","No",1,null,0]
["DB-J","No",1,null,0]
["DB-K","No",1,null,0]
["DB-L","No",1,null,0]
["DB-M","No",1,null,0]
["DB-N","No",1,null,0]
["DB-P","No",1,null,0]
[]
["NOTE: These Distribution boards are to replace existing damaged DB's."]
[]
["6-way surface mounted DB, equipped with 60A DP circuit breaker and earth leakage unit for incomer, 2 x 10A SP for lighting and 1 x 20A SP for plug circuit","No",4,null,0]
[]
["Replace cover plates and doors in existing DB"]
["Powder coated, steel cover plate, cut to size for an 18-way DB. 450 x 350mm, 3 rows","No",1,null,0]
["Cover plate for a 350 x 250mm DB, with 1 x row, 6 modules","No",1,null,0]
["Blank ways fitted in existing DB","No",20,null,0]
[]
["General"]
[]
["Update labels on existing Distribution boards and provide new labels in new DB's","No",12,null,0]
["Test existing distribution boards, and report to the Engineer","No",12,null,0]
[]
["DISTRIBUTION BOARD EQUIPMENT"]
["Replace existing equipment as required. All circuit breakers to match DB kA rating with minimum  5kA. To include removal of existing circuit breaker, installation of new, all wiring, fixings and final connection"]
["15Amp single phase Circuit breaker","No",3,null,0]
["20Amp single phase Circuit breaker","No",1,null,0]
["60Amp double pole Earth Leakage Unit","No",4,null,0]
[]
["POWER CABLING"]
["Supply and install the following cables laid on cable tray, pulled in a sleeve or in a trench, including all fixings and accessories. "]
["Terminations priced elsewhere."]
[]
["Cables: 600/1000V/PVC/SWA/PVC/ECC with copper conductors"]
["50mm2 x 4 core ecc cable","m",45,null,0]
["35mm2 x 4 core ecc cable","m",170,null,0]
["25mm2 x 4 core ecc cable","m",10,null,0]
["16mm2 x 4 core ecc cable","m",95,null,0]
["10mm2 x 4 core ecc cable","m",10,null,0]
["6mm2 x 4 core ecc cable","m",10,null,0]
["16mm2 x 2 core ecc cable","m",270,null,0]
["10mm2 x 2 core ecc cable","m",150,null,0]
["6mm2 x 2 core ecc cable","m",135,null,0]
["4mm2 x 2 core ecc cable","m",220,null,0]
[]
["As an alternative to 2-core ecc cables, tenderers may price 3-core PVC/PVC/SWA/PCV cables.  One core shall be used as Earth."]
[]
["TERMINATIONS"]
[]
["Termination of low voltage cables, as measured above, complete with glands, shrouds, lugs and connection."]
["50mm2 x 4 core ecc cable","No",2,null,0]
["35mm2 x 4 core ecc cable","No",4,null,0]
["25mm2 x 4 core ecc cable","No",2,null,0]
["16mm2 x 4 core ecc cable","No",4,null,0]
["10mm2 x 4 core ecc cable","No",2,null,0]
["6mm2 x 4 core ecc cable","No",2,null,0]
["16mm2 x 2 core ecc cable","No",12,null,0]
["10mm2 x 2 core ecc cable","No",22,null,0]
["6mm2 x 2 core ecc cable","No",4,null,0]
["4mm2 x 2 core ecc cable","No",18,null,0]
[]
["WIREWAYS & WIRING"]
[]
["CODUIT"]
["Supply and install conduit including fixings, couplings, bends, drawboxes, waste, etc. Installed as specified."]
["PVC Conduit"]
[]
["Supply and install PVC conduit cast in concrete, built into brickwork, chased into brickwork, including chasing (making good by others), surface mounted to walls, or in ceiling void."]
["20mm diameter ","m",7400,null,0]
["25mm diameter ","m",2715,null,0]
["32mm diameter ","m",555,null,0]
[]
["CONDUIT BOXES AND FIXINGS"]
[]
["Supply and install conduit boxes as per the specification, including lock nuts, bushes and all fixings.  1,2,3 or 4 way side entries, and or back entry including conduit connection. Installed surface on wall, in ceiling void, in chase, or cast into concrete (Including chasing.) "]
["60mm Round x 25mm deep box for 20mm PVC conduit","No",771,null,0]
["60mm Round x 60mm deep box for 20mm or 25mm PVC conduit","No",191,null,0]
["100 x 50mm x 50mm deep","No",142,null,0]
["100 x 100mm x 50mm deep","No",204,null,0]
["100 x 100mm x 50mm deep conduit box, mounted on surface for isolators / SSO units","No",10,null,0]
["100 x 100mm x 100mm deep for power skirting access","No",50,null,0]
["IP65 junction box, fixed to outside of structure, including compression glands for cables up to 4mm² x 3 core.  Equipped with 3 unit strip connector rated at 30A","No",4,null,0]
[]
["Supply and Install epoxy powder coated steel cover plates for conduit boxes"]
["Oversize cover for 60mm round box","No",38,null,0]
["100 x 50mm","No",9,null,0]
["100 x 100mm","No",33,null,0]
["200 x 200mm x 75mm deep for access controller","No",4,null,0]
["Supply and install a 5A strip connector inside a conduit box for L, N & E conductors","No",2,null,0]
[]
["PVC WIRING CONDUCTORS"]
["Supply and install PVC insulated copper conductors (L+N+E) as specified, coloured as necessary, drawn into conduit or wiring trunking."]
["2.5mm² EW","m",7795,null,0]
["2.5mm² Phase/Neutral conductor","m",13980,null,0]
["4 mm² Phase/Neutral conductor","m",1610,null,0]
[]
["Supply and install Surfix cable"]
["2.5 mm² x 3 core","m",160,null,0]
["4 mm² x 3 core","m",20,null,0]
[]
["DRAW WIRE"]
["Supply and Install galvanised draw wire, drawn into telephone & electronic services sleeves."]
["Draw wire","m",3810,null,0]
[]
["POWER SKIRTING"]
["Supply and install 2 Compartment, 2 cover PVC power skirting as specified, including covers, and all accessories.  "]
["2 compartment PVC Power Skirting","m",113,null,0]
["End caps for 2 compartment power skirting","No",44,null,0]
["90° internal Bends for 2 compartment power skirting","No",1,null,0]
["45° internal Bends for 2 compartment power skirting","No",2,null,0]
[]
["MINI-TOWER"]
["Supply and install Cabstrut Unimod or equal approved Tower 600mm high, including floor outlet box, base plate and covers, for access to power skirting. No outlets required. ","No",3,null,0]
[]
["FITTINGS & OUTLETS"]
[]
["LIGHT SWITCHES"]
["Type to be as specified.  Conduit boxes measured elsewhere."]
[]
["Supply and install Switches in flush or surface mounted conduit box, including cover plate, fixings and all accessories. Connect up switch."]
["1 Lever,  1 way ","No",31,null,0]
["1 Lever,  1 way - Master Switch","No",3,null,0]
["2 Lever, 1 Way","No",28,null,0]
["2 Lever, 1 Way + 1W and dimmer","No",3,null,0]
["1 Lever, non-latching bell press","No",51,null,0]
["Occupancy Sensor type A - PIR with absence sensing - flush with ceiling","No",14,null,0]
["Occupancy Sensor type B - PIR with absence sensing - surface on ceiling","No",10,null,0]
["Occupancy Sensor type C - Microwave with absence sensing - flush with ceiling","No",11,null,0]
["Occupancy Sensor type D - Microwave with absence sensing - surface on ceiling","No",6,null,0]
["Occupancy Sensor type E - PIR with presence sensing - flush with ceiling","No",1,null,0]
["Occupancy Sensor type F - PIR with presence sensing - surface on ceiling","No",1,null,0]
["Photocell","No",19,null,0]
[]
["Remove existing light switch and replace with new"]
["Type to be as specified.  Conduit boxes measured elsewhere."]
["1 Lever,  1 way ","No",2,null,0]
["1 Lever,  2 way ","No",1,null,0]
["Replace existing 10A Photocell","No",2,null,0]
[]
["LUMINAIRES"]
["(Refer to E2: Schedule of Light Fittings for type specification and to the drawings for ceiling types and heights.)"]
[]
["Supply and install the following luminaires. The price shall include all lamps, control gear, drivers and fixing materials."]
["Type A1 - LED Batten (high output)","No",169,null,0]
["Type A2 - Dimmable LED Batten","No",36,null,0]
["Type A3 - LED Batten (low output)","No",30,null,0]
["Type A4 - LED Asymmetrical luminaire","No",31,null,0]
["Type B1 - LED vapour-proof 600mm","No",206,null,0]
["Type B2 - LED vapour-proof 1200mm","No",24,null,0]
["Type D1 - LED recessed panel - 600 x 600mm","No",32,null,0]
["Type F2 - LED Downlight, recessed","No",81,null,0]
["Type F3 - LED Downlight, surface","No",35,null,0]
["Type G1 - LED Bulkhead luminaire","No",9,null,0]
["Type K1 - LED Floodlight (low output)","No",27,null,0]
["Type K2 - LED Floodlight (high output)","No",12,null,0]
["Type P1 - LED streetlight, with pole","No",9,null,0]
["Type R - LED red indicator light","No",1,null,0]
[]
["MODIFICATIONS TO EXISTING LUMINAIRES"]
["New lamps in existing fittings "]
["230V, 1200mm T5 Fluorescent Tubes - 28W. Colour Cool White","No",6,null,0]
["230V, 1500mm T5 Fluorescent Tubes - 49W. Colour Cool White","No",24,null,0]
["230V, 1200mm T8 Fluorescent Tubes - 36W. Colour Cool White","No",6,null,0]
["230V, 1500mm T8 Fluorescent Tubes - 58W. Colour Cool White","No",6,null,0]
["230V, 11W ES/BC Compact Fluorescent lamps. Colour Cool White","No",8,null,0]
[]
["Replace Ballasts in existing fittings"]
["Electronic ballast for 2 x 28W T5 lamps","No",2,null,0]
["Electronic ballast for 2 x 49W T5 lamps","No",8,null,0]
["Electronic ballast for 2 x 36W T8 lamps","No",2,null,0]
["Electronic ballast for 2 x 58W T8 lamps","No",4,null,0]
[]
["New lampholders to replace existing"]
["For T5 Fluorescent lamps","No",8,null,0]
["For T8 Fluorescent lamps","No",6,null,0]
[]
["SWITCHED SOCKET OUTLETS"]
[]
["Supply and install Socket Outlets as specified, including cover plate, fixings and all accessories.  Connect up socket outlet."]
["16 Amp, Double Switched Socket Outlet in flush wall box (1 x SANS 164-1 + 1 x SANS 164-2)","No",170,null,0]
["Modular SSO, type SANS 164-1, in power skirting or floor box, complete with cradle and cover plate","No",72,null,0]
["Modular SSO, type SANS 164-2, in power skirting or floor box, complete with cradle and cover plate","No",72,null,0]
["Dedicated RED SSO with shaved earth pin, in power skirting, complete with cradle and cover plate","No",19,null,0]
["5 Amp, 3-pin unswitched socket outlet in flush or surface conduit box","No",78,null,0]
[]
["Remove existing damaged socket outlet and replace with new."]
["16 Amp, Double Switched Socket Outlet in flush wall box (1 x SANS 164-1 + 1 x SANS 164-2)","No",6,null,0]
[]
["ISOLATORS"]
["Supply and install Isolators as specified, including cover plate, fixings and all accessories. Connect up Isolator."]
["Flush outlets shall be provided with cover plates to suit the range provided for the socket outlets."]
["20 Amp, DP Isolator - flush mounted in wall complete cabtyre connection. (Conduit and outlet box measured elsewhere).","No",13,null,0]
["20 Amp, DP Isolator - flush mounted in wall complete cabtyre connection. ","No",5,null,0]
["20 Amp, DP Isolator - surface mounted in W/P box, including box.","No",6,null,0]
["16 Amp, DP Isolator - mounted in power skirting complete cabtyre connection. ","No",1,null,0]
[]
["Remove existing damaged socket outlet and replace with new."]
["20 Amp, DP Isolator - surface mounted in W/P box, including box.","No",2,null,0]
[]
["COMMS DRAWBOXES"]
[]
["Supply and Install junction boxes for electronic services, flush in wall, with cover."]
["Junction box for electronic services - 400 x 300mm x 150mm deep","No",15,null,0]
[]
["Junction box for electronic services - 600 x 600mm x 150mm deep","No",2,null,0]
[]
["COMMS OUTLETS"]
["Supply and Install cover plates for telephone and data outlets, including fixings.  Cover plates are to match those provided for the socket outlets."]
["The recessed RJ outlet shall be supplied and installed into the cover plate by others."]
["Dual Telephone + Data Outlet Module in power skirting","No",22,null,0]
["Data Outlet Module in power skirting","No",80,null,0]
["Cover for dual Telephone + Data Outlet in flush wall box","No",9,null,0]
[]
["SLEEVES"]
["Supply and install heavy duty PVC sleeves in trench in ground, under hardened surface, and in brickwork"]
["50mm diameter","m",355,null,0]
["75mm diameter","m",500,null,0]
["110mm diameter","m",150,null,0]
["160mm diameter","m",95,null,0]
[]
["Supply and install long radius bends for the following sleeves:"]
["50mm diameter bends","No",23,null,0]
["75mm diameter bends","No",27,null,0]
["110mm diameter bends","No",6,null,0]
["160mm diameter bends","No",4,null,0]
[]
["TRENCHING"]
[]
["NOTE: Cable trench to be 700mm deep for cables to be installed at 600mm below finished ground level.  Trench width to be suitable for number of sleeves and cables, spaced at 300mm. Trenching shall have 100 mm soft soil below and above cables with the top section to be covered with sifted  soil (to remove hard big solid materials) removed from the original excavation."]
[]
["Labour for digging of trenches and backfilling in the following soil conditions:"]
["Hand pickable soil","m3",330,null,0]
["Soft Rock","m3",40,null,0]
["Hard Rock","m3",40,null,0]
["Bedding sand","m3",79,null,0]
["Backfilling","m3",410,null,0]
["Cable Marker tape","m",440,null,0]
[]
["MANHOLES"]
[]
["Material and labour for the construction of manholes, size as specified"]
["600 x 600mm square internal dimensions, by 700mm deep","No",5,null,0]
["Lockable Manhole cover for the above","No",5,null,0]
["Prefabricated manhole, 600mm diameter, with lockable lid for electronic services","No",9,null,0]
[]
["TRUNKING"]
["Trunking shall be supplied with factory purpose made accessories.  Bends, T-pieces, etc., made on site by cutting and joining sections of trunking will not be accepted."]
[]
["Supply and install galvanised wiring trunking, complete with PVC cover, fixed to walkway structure or brck walls.  Price to include for joints, splices, hangers and other materials the required for complete installation, including wastage."]
["P8000 galvanised trunking ","m",480,null,0]
["P8000 galvanised trunking internal / external bends","No",7,null,0]
["P8000 trunking tee-off ","No",8,null,0]
[]
["Supply and install new PVC trunking covers to replace missing covers.  All wiring is to be re-installed in existing trunking"]
["PVC cover for P9000 trunking ","m",80,null,0]
[]
["PVC Trunking"]
["Supply and install white PVC trunking fixed to surface of walls or soffit of slab, including all bends, ends, Tees and cross pieces.  Trunking to be installed behind existing cables, and cables are to be moved into the trunking."]
["16 x 25mm trunking","m",30,null,0]
["16 x 25mm internal angle","No",6,null,0]
["16 x 25mm flat angle","No",6,null,0]
[]
["DISCONNECT, STRIP AND REMOVE"]
["Distribution Boards"]
["Make safe, disconnect and remove the existing distribution board.  The tray is to be reused for the new DB.  ","No",1,null,0]
["Make safe, and disconnect existing distribution board in parkhome to be relocated.  DB to remain in place.","No",12,null,0]
["Make safe, and disconnect and remove existing distribution board in structure to be demolished. DB to be scrapped.","No",5,null,0]
[]
["Cables"]
["Make safe, disconnect and remove existing visible cables.  Cables to be scrapped.  Approximately 250m","SUM",1,null,0]
["Make safe, disconnect and remove existing underground cables.  Cables to be scrapped.  Approximately 300m","SUM",1,null,0]
[]
["Lighting & Small Power"]
["Make safe, disconnect and remove the existing ceiling mounted light fittings, including conduit and wiring.","No",12,null,0]
["Make safe, disconnect and remove the existing wall mounted light fittings, including conduit and wiring.  Make good wall.","No",3,null,0]
["Make safe, disconnect and remove the existing wall mounted light fittings, including wiring.  Conduit and conduit boxes to remain to provide feed to new walkway lighting.","No",3,null,0]
["Make safe, disconnect and remove existing light switches and socket outlets, including conduit and wiring.  Make good wall.","No",3,null,0]
["Make safe, disconnect and remove existing light switches and socket outlets, including wiring.  Conduit and conduit boxes to remain for new outlets / switches.","No",3,null,0]
["Make safe, disconnect and remove existing light switches and socket outlets, including conduit and wiring, on walls to be demolished.","No",2,null,0]
["Make safe, disconnect and remove the existing electrical installation in structures that are to be demolished.  (Approximately 54 light fittings and 12 power outlets).","SUM",1,null,0]
[]
["CONDUIT & CABLE SUPPORT"]
["Refixing of existing cables and conduit"]
["Install saddles to fix existing cable to structure","No",100,null,0]
["Adhesive cradles and cable tie to fix cable to structure","No",100,null,0]
["Easyhold plug and cable tie to fix cable to structure","No",20,null,0]
[]
["LIAISON & ATTENDANCE"]
["Liaison with specialist personnel installing the electronic services, including pointing out of wireways, and confirming positions of all items.  This item shall include any remedial work necessary after the installations, to clean power skirting outlets, straighten covers, replace covers, etc.","Item",1,null,0]
[]
["EARTHING"]
["To provide the earthing and testing of the electrical Reticulation and Installation in accordance with the General Specification, regulations and the requirements of the local authority.  All circuits shall be earthed in accordance with the wiring code. Where the earth conductor is joined at the terminal block, the wires shall be soldered together so that removal of the equipment shall not result in an interruption of the earth continuity of the conductors.","Item",1,null,0]
[]
["TESTING & COMMISSIONING"]
["Test and commission the complete electrical Reticulation and Installation, as included in this bill, and as shown on the drawings. ","SUM",1,null,0]
["Provide a Certificate of Compliance as required by SANS 10142-1 for the installation covered by this Bill.","SUM",1,null,0]
["Provide a Certificate of Compliance as required by SANS 10142-1 for the installations in the Parkhomes that are to be relocated.","No",12,null,0]
[]
["EARTHING & LIGHTNING PROTECTION INSTALLATION"]
[]
["CONDUIT"]
[]
["Supply and install rigid PVC conduit"]
["25mm diameter PVC conduit, built in brickwork","m",410,null,0]
[]
["ALUMINIUM CONDUCTOR"]
[]
["Supply and install Aluminium conductor, fixed to roof structure, including fixings and joints. "]
["8mm diameter round Aluminium conductor","m",510,null,0]
[]
["COPPER CONDUCTOR"]
[]
["Supply and install stranded copper conductor"]
["70mm² green PVC insulated copper conductor","m",45,null,0]
["50mm² green PVC insulated copper conductor","m",250,null,0]
["16mm² green PVC insulated copper conductor","m",240,null,0]
[]
["EARTH ELECTRODES"]
[]
["Supply and install vertically driven A grade copper clad earth electrodes"]
["1200mm x 16mm diameter","No",23,null,0]
["6000mm x 16mm diameter","No",78,null,0]
[]
["CLAMPS & TERMINATIONS"]
["Supply and install clamps and terminations, including lugs and all accessories"]
["Joint box, flush in wall, including box, lugs and accessories, with Equipotential bonding bar, including cable terminations","No",81,null,0]
["Joint box, fixed to metal structure, including box, lugs and accessories, with Equipotential bonding bar, including cable terminations","No",3,null,0]
["Tinned joints between copper and aluminium","No",162,null,0]
["Brass termination clamp for electrode","No",81,null,0]
["Metal stud welded to steel roof structure","No",116,null,0]
["Metal stud welded to steel water tank","No",1,null,0]
[]
["SUNDRIES"]
[]
["Detailed soil resistivity survey","SUM",1,null,0]
["Approved SANS design","SUM",1,null,0]
["Certificate of Compliance","SUM",1,null,0]
["As-built drawings and test results","SUM",1,null,0]
[]
["ELECTRONIC SERVICES"]
[]
["FIRE DETECTION"]
[]
["FIRE ALARM PANEL"]
["Supply and install the addressable fire alarm panel, including all power supplies, network cards, batteries, fixings, accessories and wiring terminations, as specified."]
["2 Loop Addressable Panel (Type ZP3)","No",1,null,0]
[]
["Sensing Devices and Call points"]
[]
["Supply and install the following sensing devices, including all base plates and accessories, as specified."]
["Optical smoke sensor with base","No",32,null,0]
["Heat Sensor with base","No",2,null,0]
["Addressable Call point (beak glass unit) complete with box and hinged cover and resettable element","No",28,null,0]
[]
["Sounder Beacons"]
["Supply and install sounder beacons, including base plates and all accessories, as specified."]
["Sounder Beacons, omni-directional weather-proof, surface on wall, above break glass unit, complete with sounder base.","No",28,null,0]
["Sounder Beacons, flush on ceiling","No",4,null,0]
[]
["Cabling"]
[]
["Supply and install all cabling, drawn into conduit or installed in trunking in walkways.  (Conduit and trunking by others)."]
["PH30 Cable, 1mm Red Fire cable","m",1265,null,0]
[]
["General"]
["Programming of the fire panel messages as per user department requirements","SUM",1,null,0]
["Programming of the \"Action-Event\" logic as per the client's specification ","SUM",1,null,0]
["Testing and commissioning of the Fire Detection and Alarm system installation.","SUM",1,null,0]
["Certification of the system and components","SUM",1,null,0]
[]
["Documentation"]
["Preparation of operating manuals and maintenance manuals as specified","SUM",1,null,0]
["Marking up of As-Built drawings","SUM",1,null,0]
["Training of User Department Personnel","SUM",1,null,0]
[]
["Maintenance"]
["Maintenance of the system for 12 months after Whole Works practical completion, including guarantees and warranties.","SUM",1,null,0]
[]
["VOICE EVACUATION & PUBLIC ADDRESS"]
[]
["SYSTEM"]
["Supply and install a Voice Alarm Controller unit, with built-in 240W amplifier, with 6 zone outputs"]
["Bosch Plena Voice Alarm System","No",1,null,0]
["Bosch Plena Call Station, 6 Zone","No",1,null,0]
["Weekly Timer","No",1,null,0]
["Microphone with 6 zone buttons and \"All Call\" ","No",1,null,0]
[]
["Speakers"]
[]
["Supply and install the following speakers, including all accessories and wiring terminations, as specified."]
["Flush white ceiling speaker, round, 6W, with clamps","No",60,null,0]
["PAVA Horn-type Loudspeakers, 15W, with IP66 rating","No",15,null,0]
[]
["Cabling"]
["Supply and install sounder beacons, including base plates and all accessories, as specified."]
["Supply and install speaker cabling, fire retardant to PR30 specifications","m",1295,null,0]
[]
["General"]
["Testing and commissioning of the Public Address installation.","SUM",1,null,0]
["Sundry items, etc., to allow for the complete installation of the system.","SUM",1,null,0]
[]
["Documentation"]
["Preparation of operating manuals and maintenance manuals as specified","SUM",1,null,0]
["Marking up of As-Built drawings","SUM",1,null,0]
["Training of User Department Personnel","SUM",1,null,0]
[]
["Maintenance"]
[]
["Maintenance of the system for 12 months after Whole Works practical completion, including guarantees and warranties.","SUM",1,null,0]
[]
["SECURITY: INTRUDER DETECTION & ALARM"]
[]
["SECURITY ALARM PANEL"]
[]
["Supply and install an alarm panel, as specified, including expander units, power supply units, batteries, surge protection, fixings and all accessories."]
["8 Zone panel, expandable to 48 zones","No",2,null,0]
["Zone expander to interconnect alarm panels","No",2,null,0]
[]
["Sensors, Contacts, etc."]
[]
["Supply and install the following items, including all brackets, fixings, accessories and wiring terminations, as specified."]
["Passive Infra-Red detector, dual tech, including bracket","No",34,null,0]
["LCD Keypad - IP65 rated","No",4,null,0]
["Alarm Siren","No",5,null,0]
[]
["Cabling"]
["Supply and install cable in conduit or trunking in ceiling void.  (No exposed cable will be accepted.)"]
["Security Alarm Cabling","m",440,null,0]
[]
["General"]
["Testing and commissioning of the Intruder Detection and Alarm installation.","SUM",1,null,0]
["Sundry items, etc., to allow for the complete installation of the system.","SUM",1,null,0]
[]
["Documentation"]
["Preparation of operating manuals and maintenance manuals as specified","SUM",1,null,0]
["Marking up of As-Built drawings","SUM",1,null,0]
["Training of User Department Personnel","SUM",1,null,0]
[]
["Maintenance"]
["Maintenance of the system for 12 months after Whole Works practical completion, including guarantees and warranties.","SUM",1,null,0]
[]
["TV RETICULATION"]
[]
["Antenna"]
["Supply and install a 120 cm stainless steel parabolic antenna including a twin output universal LNB, mounting brackets, earthing, etc","No",1,null,0]
[]
["HD TV Outlets"]
[]
["Supply and install HD TV Outlet, in flush wall box, (excluding conduit and box)"]
["TV outlet in shared box with data","No",9,null,0]
[]
["Reticulation"]
[]
["Supply and install equipment, including all accessories and wiring terminations, as specified."]
["Supply and install all distribution equipment including splitters, amplifiers, etc.","SUM",1,null,0]
["Supply and install HD cabling","m",365,null,0]
[]
["General"]
["Testing and commissioning of the TV Reticulation system.","SUM",1,null,0]
["Sundry items, etc., to allow for the complete installation of the system.","SUM",1,null,0]
[]
["Documentation"]
["Preparation of operating manuals and maintenance manuals as specified","SUM",1,null,0]
["Marking up of As-Built drawings","SUM",1,null,0]
["Training of User Department Personnel","SUM",1,null,0]
[]
["Maintenance"]
["Maintenance of the system for 12 months after Whole Works practical completion, including guarantees and warranties.","SUM",1,null,0]
[]
["ICT INFRASTRUCTURE"]
[]
["Cabling"]
["Supply and install cable drawn into conduit and in trunking"]
["Cat6a cable","m",2500,null,0]
[]
["Outlets"]
["Supply and install outlets in power skirting and wall boxes.  Boxes and cover plates supplied and installed by others."]
["Cat6a Ethernet socket in power skirting - 2 x outlets installed under a common cover plate","No",44,null,0]
["Cat6a Ethernet socket in power skirting - single outlet installed under a  cover plate","No",40,null,0]
["Cat6a Ethernet socket in flush wall box (with TV outlet)","No",9,null,0]
["Cat6a Ethernet socket in box in ceiling","No",43,null,0]
[]
["Cabinets"]
[]
["Cabinets as specified, complete with fans, rack-mounted UPS and switches"]
["6U wall cabinet, equipped","No",2,null,0]
["42U floor mounted / wall mounted cabinet, equipped","No",1,null,0]
[]
["General"]
["Testing and commissioning of the ICT Reticulation system.","SUM",1,null,0]
["Sundry items, etc., to allow for the complete installation of the system.","SUM",1,null,0]
[]
["Documentation"]
["Marking up of As-Built drawings","SUM",1,null,0]
["Handing over to the User Department","SUM",1,null,0]
[]
["CCTV"]
[]
["CCTV Cameras"]
[]
["Existing CCTV Cameras to be reused"]
["Disconnect, remove and store existing CCTV cameras","No",4,null,0]
["Reinstall existing CCTV cameras in position determined by user","No",4,null,0]
[]
["Cabling"]
[]
["Supply and install cable drawn into conduit and in trunking"]
["Cat6 cable","m",100,null,0]
[]
["General"]
["Testing and commissioning of the CCTV system.","SUM",1,null,0]
[]
["TOTAL FOR BILL NO. 25",{"$nulls":3},{"$f":"SUM(E1732:E2261)","v":0}]
["BILL NO. 26"]
["PROVISIONAL SUMS & BUDGETARY ALLOWANCES"]
[]
["NOTE: The following allowances are for specialist activities to be performed "]
[]
["PROVISIONAL SUMS"]
[]
["Electrical Connection Fees"]
["Allow the Provisional Sum of R 166 000.00 for the Electrical Connection Fees payable to Alfred Duma Municipality","Item",1,"166 000.00","166 000.00"]
["Allow for Profit on the Electrical Connection Fees ","%"]
["Allow for Attendance on the Electrical Connection Fees ","%"]
[]
["Connection into existing Sewer Manhole "]
["Allow the Provisional Sum of R30 000.00 for breaking into existing manhole and repairing channelling and manhole walls to suit new sewer line","Item",1,"30 000.00","30 000.00"]
["Allow for Profit on Sewer Connection","%"]
["Allow for Attendance on Sewer Connection","%"]
[]
["Municipal Water Connection "]
["Allow the Provisional Sum of R100 000.00 for Municipal Water Connection","Item",1,"100 000.00","100 000.00"]
["Allow for Profit on Water Connection","%"]
["Allow for Attendance on Water Connection","%"]
[]
["Solar PV System"]
["Allow the Provisional Sum of R 538 000.00 for the Solar PV 40kWp Grid-tied System","Item",1,"538 000.00","538 000.00"]
["Allow for Profit on the Solar PV System","%"]
["Allow for Attendance on the Solar PV System","%"]
[]
["Mechanical Installation"]
["Allow the Provisional Sum of R 135 000.00 for Extract Fans supplied and Installed","Item",1,"135 000.00","135 000.00"]
["Allow for Profit on the Extract Fans","%"]
["Allow for Attendance on the Extract Fans","%"]
["Allow the Provisional Sum of R 14 000.00 for Air-conditioning Units supplied and Installed","Item",1,"14 000.00","14 000.00"]
["Allow for Profit on the Air-conditioning Units ","%"]
["Allow for Attendance on the Air-conditioning Units ","%"]
[]
["BUDGETARY ALLOWANCES"]
[]
["Community Liaison Officer"]
["Allow the Sum of R 450 000.00 for a Community Liaison Officer's salary package for the duration of the project and the amount to be omitted in part or whole as instructed by the Client","SUM",1,null,0]
[]
["Relocation of Temporary Classrooms"]
[]
["Provide all plant and equipment necessary to carefully dismantle, lift, move to new location as specified below and re-assemble as required "]
["Allow the Sum of R 300 000.00 for providing all plant and equipment necessary to carefully dismantle, lift, move to new location existing and new prefabricated structures from site and reconstruction within a radius of not exceeding 50km from Sidingulwazi Primary School","SUM",1,null,0]
[]
["Existing School Electrical Modifications"]
["Allow the Sum of R 182 200.00 for repairs & modifications","SUM",1,null,0]
["Allow the Sum of R 25 000.00 for Thermal Image Testing of Distribution Boards","SUM",1,null,0]
["Allow the Sum of R 60 000.00 for Testing and Certificate of Compliance ","SUM",1,null,0]
["Allow the Sum of R 30 000.00 for Earthing ","SUM",1,null,0]
["Allow the Sum of R 55 000.00 for stripping existing installation and removing and handing over equipment to the school prior to Demolition ","SUM",1,null,0]
[]
["Flagpole"]
["Allow the Sum of R 15 000.00 for the installation of a Flagpole ","Item",1,"15 000.00","15 000.00"]
[]
["Chess Board"]
["Allow the Sum of R 15 000.00 for the installation of a Chess Board ","Item",1,"15 000.00","15 000.00"]
[]
["Landscaping"]
["Allow the Sum of R 250 000.00 for Landscaping","Item",1,"250 000.00","250 000.00"]
[]
["Decommissioning of Pit Toilets and Existing Septic Tanks"]
["Allow the Sum of R 295 000.00 for Decommissioning of Pit Toilets and Existing Septic Tanks","Item",1,"295 000.00","295 000.00"]
[]
["Grade R Playground Facilities"]
["Allow the Sum of R 450 000.00 for Grade R Playground Facilities ","Item",1,"450 000.00","450 000.00"]
[]
["National Road Traffic Signs & Control Measures"]
["Allow the Sum of R 100 000.00 for the provision and installation of National Road Traffic Signs & Control Measures","Item",1,"100 000.00","100 000.00"]
[]
["TOTAL FOR BILL NO. 26",{"$nulls":3},{"$f":"SUM(E2267:E2332)","v":0}]
["BILL NO. 27"]
["Contract Participation Goals (CPG)"]
[]
["Note to tenderers: As CPGs may not provide any bidder a competitive advantage Provisional Amounts and fixed percentages for profit and attendance have been provided. Only the provisional amount will be adjusted once the awarded tender amount and/or the beneficiaries have been appointed, and the final values have been ascertained. "]
[]
["MINIMUM 30% SUB-CONTRACTING "]
["Provision is made for 30% subcontracting to SMMEs in the execution of this project as described in  C3.1 Project Specifications . This is the contractors allowance for the P&G's for the 30% sub-contractors (SMME's).The Employer will  define the actual P&G items applicable to the SMME's  after tender award ","Item",1,"1 627 986.00","1 627 986.00"]
["Allowance for profit all inclusive of associated costs to the contractor for implementation. ","%"]
["Allowance for attendance all inclusive of associated costs to the contractor for implementation. ","%"]
[]
["MINIMUM TARGETED LOCAL BUILDING MATERIAL MANUFACTURERS"]
["Provision is made for the Minimum Targeted Local Building Material Manufacturers CPG in the execution of this project as described in C3.1 Project Specifications.  Allowance for monitoring and monthly reporting on material purchased from Local Building Material Manufacturers by main contractor and subcontractors based on determination by Employer taking into account specific project variables","Item",1,"157 293.00","157 293.00"]
["Allowance for profit all inclusive of associated costs to the contractor for implementation. ","%"]
["Allowance for attendance all inclusive of associated costs to the contractor for implementation. ","%"]
[]
["MINIMUM TARGETED LOCAL BUILDING MATERIAL SUPPLIERS  "]
["Provision is made for the Minimum Targeted Local Building Material Suppliers CPG in the execution of this project as described in   C3.1 Project Specifications. Allowance for monitoring and monthly reporting on material purchased from Local Building Material Suppliers by main contractor and subcontractors based on determination by Employer  taking into account specific project variables ","Item",1,"157 293.00","157 293.00"]
["Allowance for profit all inclusive of associated costs to the contractor for implementation. ","%"]
["Allowance for attendance all inclusive of associated costs to the contractor for implementation. ","%"]
[]
["MINIMUM TARGETED LOCAL LABOUR SKILLS DEVELOPMENT"]
["Provision is made for the Minimum Targeted Local Labour Skills Development CPG in the execution of this project as described in  C3.1 Project Specifications. This allowance is for the cost for a suitably qualified and experienced training service provider appointed by the main contractor including monitoring and monthly reporting.","Item",1,"350 000.00","350 000.00"]
["Allowance for profit all inclusive of associated costs to the contractor for implementation. ","%"]
["Allowance for attendance all inclusive of associated costs to the contractor for implementation. ","%"]
[]
["MINIMUM TARGETED ENTERPRISE DEVELOPMENT"]
["A provisional amount has been allowed for in the execution of this project as described in  C3.1 Project Specifications. The provisional amount allowed is for the appointment of training coordinator, mentor, training service providers and training of the beneficiary enterprises including monitoring and monthly reporting.","Item",1,"1 572 933.00","1 572 933.00"]
["Allowance for profit all inclusive of associated costs to the contractor for implementation. ","%"]
["Allowance for attendance all inclusive of associated costs to the contractor for implementation. ","%"]
[]
["MINIMUM TARGETED SKILLS DEVELOPMENT GOALS "]
["A provisional amount has been allowed for the Minimum Targeted  Development CPG in the execution of this project as described in  C3.1 Project Specifications• stipends payable to the beneficiaries • appointment of training coordinator• appointment of mentor (where applicable)• appointment of training service providers • other additional costs as per table 3 of the Standard                                                          • monitoring and monthly reporting","Item",1,"361 775.00","361 775.00"]
["Allowance for profit all inclusive of associated costs to the contractor for implementation. ","%"]
["Allowance for attendance all inclusive of associated costs to the contractor for implementation. ","%"]
[]
["NATIONAL YOUTH SERVICE TRAINING AND DEVELOPMENT PROGRAMME"]
["The programme shall be implemented in terms of the Implementation of the National Youth Service Programme under the Expanded Public Works (EPWP) • Training of Youth Workers• Travelling during on-site training• Appointment of employment youth workers and monthly  stipends• Provision of Basic Tools for Youth Workers• Provision of EPWP Designed Overalls and hard Hats to Youth Workers                                                       • Appointment of Youth Training Coordinators• Liaison with Service Provider  • Logistics for Exit Workshops","Item",1,"864 893.00","864 893.00"]
["Allowance for monthly reporting based on the implementation of the EPWP-NYS as per the specifications and  all inclusive of associated costs to the contractor.","%"]
[]
["LABOUR INTENSIVE PARTICIPATION GOAL"]
["Labour Intensive Participation Goal - Allowance for monthly reporting of labour intensive works by main contractor based on determination by Employer taking into account specific project variables. Allowance for monitoring and monthly reporting on Works executed by means of Labour Intensive methods by main contractor and subcontractors based on determination by Employer taking into account specific project variables ","Item",1,"135 000.00","135 000.00"]
["Allowance for profit all inclusive of associated costs to the contractor for implementation. ","%"]
[]
["TOTAL FOR BILL NO. 27",{"$nulls":3},{"$f":"SUM(E2337:E2376)","v":0}]
[]
[]
["SUMMARY"]
["Preliminaries",{"$nulls":3},{"$f":"+E175","v":0}]
["Alterations (Provisional)","Page",29,0,{"$f":"+E255","v":0}]
["Earthworks (Provisional)","Page",31,0,{"$f":"+E294","v":0}]
["Concrete, Formwork & Reinforcement","Page",36,0,{"$f":"+E387","v":0}]
["Masonry","Page",41,0,{"$f":"+E474","v":0}]
["Waterproofing","Page",43,0,{"$f":"+E502","v":0}]
["Roof Coverings","Page",45,0,{"$f":"+E534","v":0}]
["Carpentry & Joinery","Page",57,0,{"$f":"+E677","v":0}]
["Ceilings, Partitions & Access Flooring","Page",59,0,{"$f":"+E708","v":0}]
["Floor Coverings, Wall Linings, etc.","Page",60,0,{"$f":"+E725","v":0}]
["Ironmongery","Page",66,0,{"$f":"+E829","v":0}]
["Structural Steelwork (Provisional)","Page",68,0,{"$f":"+E857","v":0}]
["Metalwork","Page",74,0,{"$f":"+E935","v":0}]
["Plastering","Page",77,0,{"$f":"+E973","v":0}]
["Tiling","Page",79,0,{"$f":"+E998","v":0}]
["Plumbing & Drainage (Provisional)","Page",86,0,{"$f":"+E1101","v":0}]
["Glazing","Page",88,0,{"$f":"+E1124","v":0}]
["Paintwork","Page",91,0,{"$f":"+E1179","v":0}]
["General External Works (Provisional)","Page",99,0,{"$f":"+E1366","v":0}]
["Roads & Paving (Provisional)","Page",102,0,{"$f":"+E1393","v":0}]
["Soil Drainage (Provisional)","Page",105,0,{"$f":"+E1437","v":0}]
["Water Reticulation (Provisional)","Page",116,0,{"$f":"+E1615","v":0}]
["Stormwater Drainage (Provisional)","Page",121,0,{"$f":"+E1700","v":0}]
["Fencing & Gates (Provisional)","Page",123,0,{"$f":"+E1715","v":0}]
["Electrical Work (Provisional)",{"$nulls":3},{"$f":"+E2262","v":0}]
["Provisional Sums","Page",125,0,{"$f":"+E2333","v":0}]
["Contract Participation Goals (CPG)","Page",128,0,{"$f":"+E2377","v":0}]
["TOTAL BUILDERS WORK EXCLUDING CONTINGENCIES AND ESCALATION ","ST",0,null,{"$f":"SUM(E2381:E2407)","v":0}]
[]
["Add : Contingencies at 5%","TAX",5,null,{"$f":"+E2408*5%","v":0}]
[]
["TOTAL BUILDERS WORK EXCLUDING ESCALATION ","ST",0,null,{"$f":"+E2408-E2410","v":0}]
[]
["Add: Contract Escalation - SUM - 1","SUM",1,null,{"v":2570657.32,"d":"R2,570,657.32"}]
[]
["TOTAL BUILDERS WORK EXCLUDING VAT ","ST",0,null,{"$f":"+E2412+E2414","v":{"v":2570657.32,"d":"R2,570,657.32"}}]
[]
["Add : Value Added Tax at 15%","TAX",15,null,{"$f":"+E2416*15%","v":{"v":385598.59799999994,"d":"R385,598.60"}}]
["`"]
["TOTAL BUILDERS WORK INCLUDING VAT ","ST",0,null,{"$f":"+E2416+E2418","v":{"v":2956255.9179999996,"d":"R2,956,255.92"}}]